Workbook

Sheet Main
B10: 2017-05-03
B12: Sheet No. | C12: Template Name | D12: Summary
B13: 1 | C13: Future Intra | D13: For Intraday trading in F&O segment
B14: 2 | C14: Cash Intra | D14: For Intraday trading in cash market segment
B15: 3 | C15: Mid-cap Intra | D15: For Intraday trading in Mid-cap stocks
B16: 4 | C16: Bulk Deals | D16: Reveals Bulk Deals carried on NSE & BSE
B17: 5 | C17: Call Tracker

Sheet Future Intra
M5: Back to Main Page
A6: FOR INTRA DAY TRADING | L6: =Main!B10 -> 2017-05-03
A9: Sr.no | B9: Sector | C9: Scrip | D9: CLOSE RATE | E9: Pivot Point | F9: Supports | I9: Resistances
B10: Sector | D10: Point | E10: Point | F10: S1 | G10: S2 | H10: S3 | I10: R1 | J10: R2 | K10: R3 | L10: HIGH | M10: LOW | N10: OI | O10: % Change in OI
A11: 1 | B11: Index | C11: BANKNIFTY | D11: 25643.70 | E11: 25649.57 | F11: 25555.13 | G11: 25466.57 | H11: 25372.13 | I11: 25738.13 | J11: 25832.57 | K11: 25921.13 | L11: 25744 | M11: 25561 | N11: 2470800 | O11: 1.71%
A12: 2 | B12: Index | C12: NIFTY | D12: 10739.40 | E12: 10743.78 | F12: 10701.62 | G12: 10663.83 | H12: 10621.67 | I12: 10781.57 | J12: 10823.73 | K12: 10861.52 | L12: 10785.95 | M12: 10706 | N12: 24545700 | O12: -0.12%
A13: 3 | B13: Index | C13: NIFTYCPSE | D13: 2627.40 | E13: 875.80 | F13: 1751.60 | G13: 875.80 | H13: 1751.60 | I13: 1751.60 | J13: 875.80 | K13: 1751.60 | L13: 0 | M13: 0 | N13: 0 | O13: 0.00%
A14: 4 | B14: Index | C14: NIFTYINFRA | D14: 3441.10 | E14: 1147.03 | F14: 2294.07 | G14: 1147.03 | H14: 2294.07 | I14: 2294.07 | J14: 1147.03 | K14: 2294.07 | L14: 0 | M14: 0 | N14: 0 | O14: 0.00%
A15: 5 | B15: Index | C15: NIFTYIT | D15: 13796.00 | E15: 13846.33 | F15: 13714.67 | G15: 13633.33 | H15: 13501.67 | I15: 13927.67 | J15: 14059.33 | K15: 14140.67 | L15: 13978 | M15: 13765 | N15: 57250 | O15: 19.77%
A16: 6 | B16: Index | C16: NIFTYMID50 | D16: 5152.00 | E16: 1717.33 | F16: 3434.67 | G16: 1717.33 | H16: 3434.67 | I16: 3434.67 | J16: 1717.33 | K16: 3434.67 | L16: 0 | M16: 0 | N16: 591400 | O16: 0.00%
A17: 7 | B17: Index | C17: NIFTYPSE | D17: 4077.45 | E17: 1359.15 | F17: 2718.30 | G17: 1359.15 | H17: 2718.30 | I17: 2718.30 | J17: 1359.15 | K17: 2718.30 | L17: 0 | M17: 0 | N17: 0 | O17: 0.00%
A18: 8 | B18: Cement | C18: ACC | D18: 1551.15 | E18: 1561.05 | F18: 1532.10 | G18: 1513.05 | H18: 1484.10 | I18: 1580.10 | J18: 1609.05 | K18: 1628.10 | L18: 1590 | M18: 1542 | N18: 1533600 | O18: 1.89%
A19: 9 | B19: Others | C19: ADANIENT | D19: 129.35 | E19: 132.10 | F19: 121.90 | G19: 114.45 | H19: 104.25 | I19: 139.55 | J19: 149.75 | K19: 157.20 | L19: 142.3 | M19: 124.65 | N19: 13932000 | O19: 1.46%
A20: 10 | B20: Others | C20: ADANIPORTS | D20: 401.90 | E20: 404.15 | F20: 396.10 | G20: 390.30 | H20: 382.25 | I20: 409.95 | J20: 418.00 | K20: 423.80 | L20: 412.2 | M20: 398.35 | N20: 14430000 | O20: -0.96%
A21: 11 | B21: Power | C21: ADANIPOWER | D21: 25.30 | E21: 25.52 | F21: 24.78 | G21: 24.27 | H21: 23.53 | I21: 26.03 | J21: 26.77 | K21: 27.28 | L21: 26.25 | M21: 25 | N21: 91760000 | O21: -0.84%
A22: 12 | B22: Pharma | C22: AJANTPHARM | D22: 1350.05 | E22: 1345.68 | F22: 1324.37 | G22: 1298.68 | H22: 1277.37 | I22: 1371.37 | J22: 1392.68 | K22: 1418.37 | L22: 1367 | M22: 1320 | N22: 832000 | O22: -3.31%
A23: 13 | B23: Banking | C23: ALBK | D23: 48.10 | E23: 48.60 | F23: 47.00 | G23: 45.90 | H23: 44.30 | I23: 49.70 | J23: 51.30 | K23: 52.40 | L23: 50.2 | M23: 47.5 | N23: 14710000 | O23: 4.77%
A24: 14 | B24: Automobile | C24: AMARAJABAT | D24: 891.15 | E24: 885.82 | F24: 870.33 | G24: 849.52 | H24: 834.03 | I24: 906.63 | J24: 922.12 | K24: 942.93 | L24: 901.3 | M24: 865 | N24: 1338400 | O24: 17.37%
A25: 15 | B25: Cement | C25: AMBUJACEM | D25: 247.05 | E25: 248.70 | F25: 244.65 | G25: 242.25 | H25: 238.20 | I25: 251.10 | J25: 255.15 | K25: 257.55 | L25: 252.75 | M25: 246.3 | N25: 9315000 | O25: -0.29%
A26: 16 | B26: Banking | C26: ANDHRABANK | D26: 38.35 | E26: 38.75 | F26: 37.30 | G26: 36.25 | H26: 34.80 | I26: 39.80 | J26: 41.25 | K26: 42.30 | L26: 40.2 | M26: 37.7 | N26: 23953000 | O26: 0.34%
A27: 17 | B27: Others | C27: APOLLOHOSP | D27: 1084.60 | E27: 1089.32 | F27: 1077.93 | G27: 1071.27 | H27: 1059.88 | I27: 1095.98 | J27: 1107.37 | K27: 1114.03 | L27: 1100.7 | M27: 1082.65 | N27: 752500 | O27: 1.55%
A28: 18 | B28: Automobile | C28: APOLLOTYRE | D28: 290.60 | E28: 293.30 | F28: 285.60 | G28: 280.60 | H28: 272.90 | I28: 298.30 | J28: 306.00 | K28: 311.00 | L28: 301 | M28: 288.3 | N28: 9417000 | O28: -7.21%
A29: 19 | B29: Textile | C29: ARVIND | D29: 409.85 | E29: 414.88 | F29: 402.27 | G29: 394.68 | H29: 382.07 | I29: 422.47 | J29: 435.08 | K29: 442.67 | L29: 427.5 | M29: 407.3 | N29: 6406000 | O29: 15.34%
A30: 20 | B30: Automobile | C30: ASHOKLEY | D30: 162.45 | E30: 163.55 | F30: 160.15 | G30: 157.85 | H30: 154.45 | I30: 165.85 | J30: 169.25 | K30: 171.55 | L30: 166.95 | M30: 161.25 | N30: 53121000 | O30: 4.03%
A31: 21 | B31: FMCG | C31: ASIANPAINT | D31: 1219.70 | E31: 1217.22 | F31: 1204.43 | G31: 1189.17 | H31: 1176.38 | I31: 1232.48 | J31: 1245.27 | K31: 1260.53 | L31: 1230 | M31: 1201.95 | N31: 4588800 | O31: 6.99%
A32: 22 | B32: Pharma | C32: AUROPHARMA | D32: 635.80 | E32: 638.37 | F32: 628.93 | G32: 622.07 | H32: 612.63 | I32: 645.23 | J32: 654.67 | K32: 661.53 | L32: 647.8 | M32: 631.5 | N32: 20916000 | O32: -0.08%
A33: 23 | B33: Banking | C33: AXISBANK | D33: 525.15 | E33: 524.08 | F33: 518.82 | G33: 512.48 | H33: 507.22 | I33: 530.42 | J33: 535.68 | K33: 542.02 | L33: 529.35 | M33: 517.75 | N33: 51639600 | O33: -1.63%
A34: 24 | B34: Automobile | C34: BAJAJ-AUTO | D34: 2978.50 | E34: 2996.75 | F34: 2943.55 | G34: 2908.60 | H34: 2855.40 | I34: 3031.70 | J34: 3084.90 | K34: 3119.85 | L34: 3049.95 | M34: 2961.8 | N34: 2147500 | O34: -0.53%
A35: 25 | B35: Others | C35: BAJAJFINSV | D35: 5463.30 | E35: 5482.25 | F35: 5405.50 | G35: 5347.70 | H35: 5270.95 | I35: 5540.05 | J35: 5616.80 | K35: 5674.60 | L35: 5559 | M35: 5424.45 | N35: 687500 | O35: -0.02%
A36: 26 | B36: Finance | C36: BAJFINANCE | D36: 1917.15 | E36: 1925.48 | F36: 1902.02 | G36: 1886.88 | H36: 1863.42 | I36: 1940.62 | J36: 1964.08 | K36: 1979.22 | L36: 1948.95 | M36: 1910.35 | N36: 5115500 | O36: 2.83%
A37: 27 | B37: Others | C37: BALKRISIND | D37: 1251.40 | E37: 1263.48 | F37: 1230.62 | G37: 1209.83 | H37: 1176.97 | I37: 1284.27 | J37: 1317.13 | K37: 1337.92 | L37: 1296.35 | M37: 1242.7 | N37: 1156800 | O37: 13.68%
A38: 28 | B38: Others | C38: BALRAMCHIN | D38: 66.80 | E38: 68.80 | F38: 63.90 | G38: 61.00 | H38: 56.10 | I38: 71.70 | J38: 76.60 | K38: 79.50 | L38: 73.7 | M38: 65.9 | N38: 18592000 | O38: 5.19%
A39: 29 | B39: Banking | C39: BANKBARODA | D39: 144.95 | E39: 145.98 | F39: 142.47 | G39: 139.98 | H39: 136.47 | I39: 148.47 | J39: 151.98 | K39: 154.47 | L39: 149.5 | M39: 143.5 | N39: 49896000 | O39: -1.41%
A40: 30 | B40: Banking | C40: BANKINDIA | D40: 101.95 | E40: 102.83 | F40: 99.82 | G40: 97.68 | H40: 94.67 | I40: 104.97 | J40: 107.98 | K40: 110.12 | L40: 105.85 | M40: 100.7 | N40: 25920000 | O40: 1.79%
A41: 31 | B41: FMCG | C41: BATAINDIA | D41: 782.40 | E41: 789.18 | F41: 766.22 | G41: 750.03 | H41: 727.07 | I41: 805.37 | J41: 828.33 | K41: 844.52 | L41: 812.15 | M41: 773 | N41: 2907300 | O41: 5.64%
A42: 32 | B42: Capital_Goods | C42: BEL | D42: 130.90 | E42: 131.42 | F42: 129.83 | G42: 128.77 | H42: 127.18 | I42: 132.48 | J42: 134.07 | K42: 135.13 | L42: 133 | M42: 130.35 | N42: 33892650 | O42: 1.51%
A43: 33 | B43: Infrastructure | C43: BEML | D43: 1046.25 | E43: 1057.62 | F43: 1021.48 | G43: 996.72 | H43: 960.58 | I43: 1082.38 | J43: 1118.52 | K43: 1143.28 | L43: 1093.75 | M43: 1032.85 | N43: 2205000 | O43: 0.52%
A44: 34 | B44: Others | C44: BERGEPAINT | D44: 278.95 | E44: 279.33 | F44: 274.87 | G44: 270.78 | H44: 266.32 | I44: 283.42 | J44: 287.88 | K44: 291.97 | L44: 283.8 | M44: 275.25 | N44: 1973400 | O44: -2.50%
A45: 35 | B45: Finance | C45: BHARATFIN | D45: 1154.55 | E45: 1158.67 | F45: 1145.83 | G45: 1137.12 | H45: 1124.28 | I45: 1167.38 | J45: 1180.22 | K45: 1188.93 | L45: 1171.5 | M45: 1149.95 | N45: 4833500 | O45: -2.39%
A46: 36 | B46: Automobile | C46: BHARATFORG | D46: 771.85 | E46: 775.32 | F46: 763.13 | G46: 754.42 | H46: 742.23 | I46: 784.03 | J46: 796.22 | K46: 804.93 | L46: 787.5 | M46: 766.6 | N46: 8142000 | O46: 0.40%
A47: 37 | B47: Telecom | C47: BHARTIARTL | D47: 409.95 | E47: 410.12 | F47: 406.98 | G47: 404.02 | H47: 400.88 | I47: 413.08 | J47: 416.22 | K47: 419.18 | L47: 413.25 | M47: 407.15 | N47: 56737500 | O47: -1.37%
A48: 38 | B48: Capital_Goods | C48: BHEL | D48: 88.10 | E48: 88.55 | F48: 87.15 | G48: 86.20 | H48: 84.80 | I48: 89.50 | J48: 90.90 | K48: 91.85 | L48: 89.95 | M48: 87.6 | N48: 39757500 | O48: -1.05%
A49: 39 | B49: Pharma | C49: BIOCON | D49: 667.50 | E49: 668.22 | F49: 660.68 | G49: 653.87 | H49: 646.33 | I49: 675.03 | J49: 682.57 | K49: 689.38 | L49: 675.75 | M49: 661.4 | N49: 7270200 | O49: -3.86%
A50: 40 | B50: Automobile | C50: BOSCHLTD | D50: 19635.85 | E50: 19621.02 | F50: 19542.18 | G50: 19448.52 | H50: 19369.68 | I50: 19714.68 | J50: 19793.52 | K50: 19887.18 | L50: 19699.85 | M50: 19527.35 | N50: 157575 | O50: 0.03%
A51: 41 | B51: Oil_Gas | C51: BPCL | D51: 383.05 | E51: 386.15 | F51: 378.95 | G51: 374.85 | H51: 367.65 | I51: 390.25 | J51: 397.45 | K51: 401.55 | L51: 393.35 | M51: 382.05 | N51: 15861600 | O51: 2.20%
A52: 42 | B52: FMCG | C52: BRITANNIA | D52: 5453.90 | E52: 5486.38 | F52: 5392.77 | G52: 5331.63 | H52: 5238.02 | I52: 5547.52 | J52: 5641.13 | K52: 5702.27 | L52: 5580 | M52: 5425.25 | N52: 878000 | O52: -1.46%
A53: 43 | B53: Pharma | C53: CADILAHC | D53: 408.80 | E53: 411.40 | F53: 403.40 | G53: 398.00 | H53: 390.00 | I53: 416.80 | J53: 424.80 | K53: 430.20 | L53: 419.4 | M53: 406 | N53: 8051200 | O53: 5.51%
A54: 44 | B54: Banking | C54: CANBK | D54: 257.90 | E54: 260.53 | F54: 251.82 | G54: 245.73 | H54: 237.02 | I54: 266.62 | J54: 275.33 | K54: 281.42 | L54: 269.25 | M54: 254.45 | N54: 10124000 | O54: 4.16%
A55: 45 | B55: Others | C55: CANFINHOME | D55: 418.75 | E55: 422.02 | F55: 412.98 | G55: 407.22 | H55: 398.18 | I55: 427.78 | J55: 436.82 | K55: 442.58 | L55: 431.05 | M55: 416.25 | N55: 6161250 | O55: -4.70%
A56: 46 | B56: Finance | C56: CAPF | D56: 640.10 | E56: 642.50 | F56: 634.00 | G56: 627.90 | H56: 619.40 | I56: 648.60 | J56: 657.10 | K56: 663.20 | L56: 651 | M56: 636.4 | N56: 7088000 | O56: 1.84%
A57: 47 | B57: Oil_Gas | C57: CASTROLIND | D57: 201.60 | E57: 200.60 | F57: 196.70 | G57: 191.80 | H57: 187.90 | I57: 205.50 | J57: 209.40 | K57: 214.30 | L57: 204.5 | M57: 195.7 | N57: 13322400 | O57: 11.66%
A58: 48 | B58: Automobile | C58: CEATLTD | D58: 1597.25 | E58: 1614.43 | F58: 1568.92 | G58: 1540.58 | H58: 1495.07 | I58: 1642.77 | J58: 1688.28 | K58: 1716.62 | L58: 1659.95 | M58: 1586.1 | N58: 1611400 | O58: -1.12%
A59: 49 | B59: Textile | C59: CENTURYTEX | D59: 1146.30 | E59: 1187.10 | F59: 1094.20 | G59: 1042.10 | H59: 949.20 | I59: 1239.20 | J59: 1332.10 | K59: 1384.20 | L59: 1280 | M59: 1135 | N59: 6783150 | O59: 8.36%
A60: 50 | B60: Power | C60: CESC | D60: 1046.40 | E60: 1052.13 | F60: 1029.37 | G60: 1012.33 | H60: 989.57 | I60: 1069.17 | J60: 1091.93 | K60: 1108.97 | L60: 1074.9 | M60: 1035.1 | N60: 6093450 | O60: -1.35%
A61: 51 | B61: Power | C61: CGPOWER | D61: 82.00 | E61: 82.60 | F61: 80.55 | G61: 79.10 | H61: 77.05 | I61: 84.05 | J61: 86.10 | K61: 87.55 | L61: 84.65 | M61: 81.15 | N61: 18468000 | O61: 2.60%
A62: 52 | B62: Others | C62: CHENNPETRO | D62: 313.00 | E62: 316.73 | F62: 307.47 | G62: 301.93 | H62: 292.67 | I62: 322.27 | J62: 331.53 | K62: 337.07 | L62: 326 | M62: 311.2 | N62: 3309000 | O62: 5.35%
A63: 53 | B63: Others | C63: CHOLAFIN | D63: 1721.95 | E63: 1730.13 | F63: 1693.32 | G63: 1664.68 | H63: 1627.87 | I63: 1758.77 | J63: 1795.58 | K63: 1824.22 | L63: 1766.95 | M63: 1701.5 | N63: 656500 | O63: 8.24%
A64: 54 | B64: Pharma | C64: CIPLA | D64: 613.20 | E64: 615.80 | F64: 607.60 | G64: 602.00 | H64: 593.80 | I64: 621.40 | J64: 629.60 | K64: 635.20 | L64: 624 | M64: 610.2 | N64: 7943000 | O64: 1.25%
A65: 55 | B65: Others | C65: COALINDIA | D65: 280.30 | E65: 281.05 | F65: 278.40 | G65: 276.50 | H65: 273.85 | I65: 282.95 | J65: 285.60 | K65: 287.50 | L65: 283.7 | M65: 279.15 | N65: 19030000 | O65: 1.75%
A66: 56 | B66: FMCG | C66: COLPAL | D66: 1136.40 | E66: 1137.03 | F66: 1124.67 | G66: 1112.93 | H66: 1100.57 | I66: 1148.77 | J66: 1161.13 | K66: 1172.87 | L66: 1149.4 | M66: 1125.3 | N66: 1535800 | O66: 5.94%
A67: 57 | B67: Others | C67: CONCOR | D67: 1335.50 | E67: 1336.53 | F67: 1325.02 | G67: 1314.53 | H67: 1303.02 | I67: 1347.02 | J67: 1358.53 | K67: 1369.02 | L67: 1348.05 | M67: 1326.05 | N67: 1360000 | O67: 1.73%
A68: 58 | B68: Capital_Goods | C68: CUMMINSIND | D68: 746.70 | E68: 755.72 | F68: 729.13 | G68: 711.57 | H68: 684.98 | I68: 773.28 | J68: 799.87 | K68: 817.43 | L68: 782.3 | M68: 738.15 | N68: 882000 | O68: 3.16%
A69: 59 | B69: FMCG | C69: DABUR | D69: 373.80 | E69: 375.97 | F69: 368.13 | G69: 362.47 | H69: 354.63 | I69: 381.63 | J69: 389.47 | K69: 395.13 | L69: 383.8 | M69: 370.3 | N69: 13342500 | O69: 6.12%
A70: 60 | B70: Cement | C70: DALMIABHA | D70: 2982.00 | E70: 3006.33 | F70: 2945.67 | G70: 2909.33 | H70: 2848.67 | I70: 3042.67 | J70: 3103.33 | K70: 3139.67 | L70: 3067 | M70: 2970 | N70: 656400 | O70: -1.04%
A71: 61 | B71: Banking | C71: DCBBANK | D71: 194.25 | E71: 194.85 | F71: 192.40 | G71: 190.55 | H71: 188.10 | I71: 196.70 | J71: 199.15 | K71: 201.00 | L71: 197.3 | M71: 193 | N71: 8199000 | O71: 0.28%
A72: 62 | B72: Finance | C72: DHFL | D72: 652.85 | E72: 654.88 | F72: 626.07 | G72: 599.28 | H72: 570.47 | I72: 681.67 | J72: 710.48 | K72: 737.27 | L72: 683.7 | M72: 628.1 | N72: 27075000 | O72: 4.82%
A73: 63 | B73: Media | C73: DISHTV | D73: 74.75 | E73: 75.25 | F73: 74.00 | G73: 73.25 | H73: 72.00 | I73: 76.00 | J73: 77.25 | K73: 78.00 | L73: 76.5 | M73: 74.5 | N73: 43645000 | O73: -0.24%
A74: 64 | B74: Pharma | C74: DIVISLAB | D74: 1193.70 | E74: 1203.55 | F74: 1180.15 | G74: 1166.60 | H74: 1143.20 | I74: 1217.10 | J74: 1240.50 | K74: 1254.05 | L74: 1226.95 | M74: 1190 | N74: 2222400 | O74: -0.14%
A75: 65 | B75: Realty | C75: DLF | D75: 216.55 | E75: 218.37 | F75: 211.93 | G75: 207.32 | H75: 200.88 | I75: 222.98 | J75: 229.42 | K75: 234.03 | L75: 224.8 | M75: 213.75 | N75: 42625000 | O75: -2.69%
A76: 66 | B76: Pharma | C76: DRREDDY | D76: 2126.15 | E76: 2124.40 | F76: 2110.80 | G76: 2095.45 | H76: 2081.85 | I76: 2139.75 | J76: 2153.35 | K76: 2168.70 | L76: 2138 | M76: 2109.05 | N76: 4643000 | O76: -0.84%
A77: 67 | B77: Automobile | C77: EICHERMOT | D77: 30661.05 | E77: 30924.48 | F77: 30201.97 | G77: 29742.88 | H77: 29020.37 | I77: 31383.57 | J77: 32106.08 | K77: 32565.17 | L77: 31647 | M77: 30465.4 | N77: 215350 | O77: 0.60%
A78: 68 | B78: Infrastructure | C78: ENGINERSIN | D78: 155.75 | E78: 156.98 | F78: 153.42 | G78: 151.08 | H78: 147.52 | I78: 159.32 | J78: 162.88 | K78: 165.22 | L78: 160.55 | M78: 154.65 | N78: 9884000 | O78: 7.01%
A79: 69 | B79: Finance | C79: EQUITAS | D79: 165.70 | E79: 163.08 | F79: 158.82 | G79: 151.93 | H79: 147.67 | I79: 169.97 | J79: 174.23 | K79: 181.12 | L79: 167.35 | M79: 156.2 | N79: 19958400 | O79: -9.28%
A80: 70 | B80: Automobile | C80: ESCORTS | D80: 991.05 | E80: 997.85 | F80: 975.70 | G80: 960.35 | H80: 938.20 | I80: 1013.20 | J80: 1035.35 | K80: 1050.70 | L80: 1020 | M80: 982.5 | N80: 3356100 | O80: -2.34%
A81: 71 | B81: Automobile | C81: EXIDEIND | D81: 249.10 | E81: 250.15 | F81: 246.20 | G81: 243.30 | H81: 239.35 | I81: 253.05 | J81: 257.00 | K81: 259.90 | L81: 254.1 | M81: 247.25 | N81: 9288000 | O81: 4.41%
A82: 72 | B82: Banking | C82: FEDERALBNK | D82: 99.30 | E82: 99.83 | F82: 98.17 | G82: 97.03 | H82: 95.37 | I82: 100.97 | J82: 102.63 | K82: 103.77 | L82: 101.5 | M82: 98.7 | N82: 61242500 | O82: -1.41%
A83: 73 | B83: Oil_Gas | C83: GAIL | D83: 324.45 | E83: 326.38 | F83: 320.77 | G83: 317.08 | H83: 311.47 | I83: 330.07 | J83: 335.68 | K83: 339.37 | L83: 332 | M83: 322.7 | N83: 13524357 | O83: 2.07%
A84: 74 | B84: Pharma | C84: GLENMARK | D84: 553.55 | E84: 559.95 | F84: 543.90 | G84: 534.25 | H84: 518.20 | I84: 569.60 | J84: 585.65 | K84: 595.30 | L84: 576 | M84: 550.3 | N84: 5489200 | O84: 4.58%
A85: 75 | B85: Infrastructure | C85: GMRINFRA | D85: 20.10 | E85: 20.35 | F85: 19.65 | G85: 19.20 | H85: 18.50 | I85: 20.80 | J85: 21.50 | K85: 21.95 | L85: 21.05 | M85: 19.9 | N85: 292860000 | O85: 0.63%
A86: 76 | B86: Others | C86: GODFRYPHLP | D86: 875.05 | E86: 878.15 | F86: 865.75 | G86: 856.45 | H86: 844.05 | I86: 887.45 | J86: 899.85 | K86: 909.15 | L86: 890.55 | M86: 868.85 | N86: 637500 | O86: 1.27%
A87: 77 | B87: FMCG | C87: GODREJCP | D87: 1117.95 | E87: 1127.08 | F87: 1104.17 | G87: 1090.38 | H87: 1067.47 | I87: 1140.87 | J87: 1163.78 | K87: 1177.57 | L87: 1150 | M87: 1113.3 | N87: 2369600 | O87: 0.95%
A88: 78 | B88: FMCG | C88: GODREJIND | D88: 617.50 | E88: 618.17 | F88: 603.13 | G88: 588.77 | H88: 573.73 | I88: 632.53 | J88: 647.57 | K88: 661.93 | L88: 633.2 | M88: 603.8 | N88: 2550000 | O88: -1.51%
A89: 79 | B89: Pharma | C89: GRANULES | D89: 107.35 | E89: 108.03 | F89: 105.87 | G89: 104.38 | H89: 102.22 | I89: 109.52 | J89: 111.68 | K89: 113.17 | L89: 110.2 | M89: 106.55 | N89: 14985000 | O89: 1.77%
A90: 80 | B90: Cement | C90: GRASIM | D90: 1098.50 | E90: 1099.37 | F90: 1080.43 | G90: 1062.37 | H90: 1043.43 | I90: 1117.43 | J90: 1136.37 | K90: 1154.43 | L90: 1118.3 | M90: 1081.3 | N90: 6485250 | O90: -2.02%
A91: 81 | B91: Others | C91: GSFC | D91: 132.15 | E91: 133.28 | F91: 129.97 | G91: 127.78 | H91: 124.47 | I91: 135.47 | J91: 138.78 | K91: 140.97 | L91: 136.6 | M91: 131.1 | N91: 18234000 | O91: 1.12%
A92: 82 | B92: Others | C92: HAVELLS | D92: 546.30 | E92: 546.35 | F92: 536.95 | G92: 527.60 | H92: 518.20 | I92: 555.70 | J92: 565.10 | K92: 574.45 | L92: 555.75 | M92: 537 | N92: 6671000 | O92: -0.25%
A93: 83 | B93: Others | C93: HCC | D93: 23.55 | E93: 23.68 | F93: 23.17 | G93: 22.78 | H93: 22.27 | I93: 24.07 | J93: 24.58 | K93: 24.97 | L93: 24.2 | M93: 23.3 | N93: 39585000 | O93: -1.27%
A94: 84 | B94: Technology | C94: HCLTECH | D94: 1005.40 | E94: 1020.70 | F94: 985.40 | G94: 965.40 | H94: 930.10 | I94: 1040.70 | J94: 1076.00 | K94: 1096.00 | L94: 1056 | M94: 1000.7 | N94: 11518500 | O94: 9.30%
A95: 85 | B95: Finance | C95: HDFC | D95: 1917.35 | E95: 1906.62 | F95: 1893.23 | G95: 1869.12 | H95: 1855.73 | I95: 1930.73 | J95: 1944.12 | K95: 1968.23 | L95: 1920 | M95: 1882.5 | N95: 18682500 | O95: -2.44%
A96: 86 | B96: Banking | C96: HDFCBANK | D96: 1975.50 | E96: 1967.05 | F96: 1954.50 | G96: 1933.50 | H96: 1920.95 | I96: 1988.05 | J96: 2000.60 | K96: 2021.60 | L96: 1979.6 | M96: 1946.05 | N96: 21869500 | O96: 4.87%
A97: 88 | B97: Automobile | C97: HEROMOTOCO | D97: 3680.45 | E97: 3711.48 | F97: 3624.97 | G97: 3569.48 | H97: 3482.97 | I97: 3766.97 | J97: 3853.48 | K97: 3908.97 | L97: 3798 | M97: 3656 | N97: 1716600 | O97: 2.01%
A98: 89 | B98: Technology | C98: HEXAWARE | D98: 437.50 | E98: 440.07 | F98: 432.68 | G98: 427.87 | H98: 420.48 | I98: 444.88 | J98: 452.27 | K98: 457.08 | L98: 447.45 | M98: 435.25 | N98: 4242000 | O98: 2.91%
A99: 90 | B99: Metals | C99: HINDALCO | D99: 229.50 | E99: 231.50 | F99: 225.60 | G99: 221.70 | H99: 215.80 | I99: 235.40 | J99: 241.30 | K99: 245.20 | L99: 237.4 | M99: 227.6 | N99: 48727000 | O99: 2.21%
A100: 91 | B100: Oil_Gas | C100: HINDPETRO | D100: 298.95 | E100: 302.08 | F100: 294.37 | G100: 289.78 | H100: 282.07 | I100: 306.67 | J100: 314.38 | K100: 318.97 | L100: 309.8 | M100: 297.5 | N100: 31832325 | O100: 0.45%
A101: 92 | B101: FMCG | C101: HINDUNILVR | D101: 1480.25 | E101: 1488.57 | F101: 1465.18 | G101: 1450.12 | H101: 1426.73 | I101: 1503.63 | J101: 1527.02 | K101: 1542.08 | L101: 1511.95 | M101: 1473.5 | N101: 9373800 | O101: -1.03%
A102: 93 | B102: Metals | C102: HINDZINC | D102: 309.95 | E102: 313.57 | F102: 305.18 | G102: 300.42 | H102: 292.03 | I102: 318.33 | J102: 326.72 | K102: 331.48 | L102: 321.95 | M102: 308.8 | N102: 12691200 | O102: 8.66%
A103: 94 | B103: Finance | C103: IBULHSGFIN | D103: 1305.25 | E103: 1308.75 | F103: 1290.50 | G103: 1275.75 | H103: 1257.50 | I103: 1323.50 | J103: 1341.75 | K103: 1356.50 | L103: 1327 | M103: 1294 | N103: 13553200 | O103: 0.19%
A104: 95 | B104: Banking | C104: ICICIBANK | D104: 278.65 | E104: 280.45 | F104: 274.80 | G104: 270.95 | H104: 265.30 | I104: 284.30 | J104: 289.95 | K104: 293.80 | L104: 286.1 | M104: 276.6 | N104: 84914500 | O104: 4.65%
A105: 96 | B105: Others | C105: ICICIPRULI | D105: 435.40 | E105: 434.88 | F105: 428.82 | G105: 422.23 | H105: 416.17 | I105: 441.47 | J105: 447.53 | K105: 454.12 | L105: 440.95 | M105: 428.3 | N105: 5196100 | O105: 5.55%
A106: 97 | B106: Banking | C106: IDBI | D106: 65.50 | E106: 65.87 | F106: 64.43 | G106: 63.37 | H106: 61.93 | I106: 66.93 | J106: 68.37 | K106: 69.43 | L106: 67.3 | M106: 64.8 | N106: 52390000 | O106: 1.24%
A107: 98 | B107: Telecom | C107: IDEA | D107: 67.50 | E107: 67.97 | F107: 66.28 | G107: 65.07 | H107: 63.38 | I107: 69.18 | J107: 70.87 | K107: 72.08 | L107: 69.65 | M107: 66.75 | N107: 141001000 | O107: 3.74%
A108: 99 | B108: Finance | C108: IDFC | D108: 57.75 | E108: 58.25 | F108: 57.00 | G108: 56.25 | H108: 55.00 | I108: 59.00 | J108: 60.25 | K108: 61.00 | L108: 59.5 | M108: 57.5 | N108: 151021200 | O108: -0.05%
A109: 100 | B109: Banking | C109: IDFCBANK | D109: 48.05 | E109: 48.25 | F109: 47.60 | G109: 47.15 | H109: 46.50 | I109: 48.70 | J109: 49.35 | K109: 49.80 | L109: 48.9 | M109: 47.8 | N109: 190996000 | O109: 0.89%
A110: 101 | B110: Finance | C110: IFCI | D110: 20.00 | E110: 20.10 | F110: 19.75 | G110: 19.50 | H110: 19.15 | I110: 20.35 | J110: 20.70 | K110: 20.95 | L110: 20.45 | M110: 19.85 | N110: 69982000 | O110: -1.33%
A111: 102 | B111: Oil_Gas | C111: IGL | D111: 281.90 | E111: 284.38 | F111: 278.57 | G111: 275.23 | H111: 269.42 | I111: 287.72 | J111: 293.53 | K111: 296.87 | L111: 290.2 | M111: 281.05 | N111: 5860250 | O111: 10.02%
A112: 103 | B112: Cement | C112: INDIACEM | D112: 143.65 | E112: 145.05 | F112: 140.50 | G112: 137.35 | H112: 132.80 | I112: 148.20 | J112: 152.75 | K112: 155.90 | L112: 149.6 | M112: 141.9 | N112: 26407500 | O112: 2.26%
A113: 104 | B113: Banking | C113: INDIANB | D113: 309.70 | E113: 313.57 | F113: 302.13 | G113: 294.57 | H113: 283.13 | I113: 321.13 | J113: 332.57 | K113: 340.13 | L113: 325 | M113: 306 | N113: 3250000 | O113: 8.19%
A114: 105 | B114: Others | C114: INDIGO | D114: 1344.80 | E114: 1359.27 | F114: 1316.53 | G114: 1288.27 | H114: 1245.53 | I114: 1387.53 | J114: 1430.27 | K114: 1458.53 | L114: 1402 | M114: 1331 | N114: 3717000 | O114: 4.79%
A115: 106 | B115: Banking | C115: INDUSINDBK | D115: 1868.75 | E115: 1880.92 | F115: 1850.33 | G115: 1831.92 | H115: 1801.33 | I115: 1899.33 | J115: 1929.92 | K115: 1948.33 | L115: 1911.5 | M115: 1862.5 | N115: 6504600 | O115: -0.37%
A116: 107 | B116: Technology | C116: INFIBEAM | D116: 165.50 | E116: 166.03 | F116: 163.77 | G116: 162.03 | H116: 159.77 | I116: 167.77 | J116: 170.03 | K116: 171.77 | L116: 168.3 | M116: 164.3 | N116: 32876000 | O116: 2.40%
A117: 108 | B117: Telecom | C117: INFRATEL | D117: 315.60 | E117: 315.65 | F117: 312.70 | G117: 309.80 | H117: 306.85 | I117: 318.55 | J117: 321.50 | K117: 324.40 | L117: 318.6 | M117: 312.75 | N117: 7813200 | O117: 0.02%
A118: 109 | B118: Technology | C118: INFY | D118: 1192.90 | E118: 1189.78 | F118: 1181.72 | G118: 1170.53 | H118: 1162.47 | I118: 1200.97 | J118: 1209.03 | K118: 1220.22 | L118: 1197.85 | M118: 1178.6 | N118: 43773000 | O118: 2.05%
A119: 110 | B119: Oil_Gas | C119: IOC | D119: 162.05 | E119: 162.67 | F119: 160.58 | G119: 159.12 | H119: 157.03 | I119: 164.13 | J119: 166.22 | K119: 167.68 | L119: 164.75 | M119: 161.2 | N119: 43869000 | O119: 1.25%
A120: 111 | B120: Infrastructure | C120: IRB | D120: 271.00 | E120: 275.05 | F120: 264.20 | G120: 257.40 | H120: 246.55 | I120: 281.85 | J120: 292.70 | K120: 299.50 | L120: 285.9 | M120: 268.25 | N120: 23050000 | O120: 4.02%
A121: 112 | B121: FMCG | C121: ITC | D121: 283.40 | E121: 282.03 | F121: 279.52 | G121: 275.63 | H121: 273.12 | I121: 285.92 | J121: 288.43 | K121: 292.32 | L121: 284.55 | M121: 278.15 | N121: 86152800 | O121: 0.61%
A122: 113 | B122: Others | C122: JETAIRWAYS | D122: 593.05 | E122: 609.63 | F122: 568.27 | G122: 543.48 | H122: 502.12 | I122: 634.42 | J122: 675.78 | K122: 700.57 | L122: 651 | M122: 584.85 | N122: 8150400 | O122: 7.49%
A123: 114 | B123: Metals | C123: JINDALSTEL | D123: 239.30 | E123: 243.62 | F123: 232.43 | G123: 225.57 | H123: 214.38 | I123: 250.48 | J123: 261.67 | K123: 268.53 | L123: 254.8 | M123: 236.75 | N123: 36870750 | O123: 3.60%
A124: 115 | B124: Others | C124: JISLJALEQS | D124: 113.55 | E124: 114.78 | F124: 110.67 | G124: 107.78 | H124: 103.67 | I124: 117.67 | J124: 121.78 | K124: 124.67 | L124: 118.9 | M124: 111.9 | N124: 37359000 | O124: 2.70%
A125: 116 | B125: Realty | C125: JPASSOCIAT | D125: 19.75 | E125: 19.95 | F125: 19.30 | G125: 18.85 | H125: 18.20 | I125: 20.40 | J125: 21.05 | K125: 21.50 | L125: 20.6 | M125: 19.5 | N125: 230282000 | O125: 2.30%
A126: 117 | B126: Metals | C126: JSWSTEEL | D126: 317.15 | E126: 320.47 | F126: 311.98 | G126: 306.82 | H126: 298.33 | I126: 325.63 | J126: 334.12 | K126: 339.28 | L126: 328.95 | M126: 315.3 | N126: 66066000 | O126: -1.32%
A127: 118 | B127: Others | C127: JUBLFOOD | D127: 2566.50 | E127: 2570.50 | F127: 2533.00 | G127: 2499.50 | H127: 2462.00 | I127: 2604.00 | J127: 2641.50 | K127: 2675.00 | L127: 2608 | M127: 2537 | N127: 2149750 | O127: 4.90%
A128: 119 | B128: Others | C128: JUSTDIAL | D128: 407.95 | E128: 417.47 | F128: 378.68 | G128: 349.42 | H128: 310.63 | I128: 446.73 | J128: 485.52 | K128: 514.78 | L128: 456.25 | M128: 388.2 | N128: 4869200 | O128: 4.38%
A129: 120 | B129: Others | C129: KAJARIACER | D129: 540.60 | E129: 542.97 | F129: 536.93 | G129: 533.27 | H129: 527.23 | I129: 546.63 | J129: 552.67 | K129: 556.33 | L129: 549 | M129: 539.3 | N129: 1608000 | O129: 0.05%
A130: 121 | B130: Banking | C130: KOTAKBANK | D130: 1259.05 | E130: 1257.15 | F130: 1226.95 | G130: 1194.85 | H130: 1164.65 | I130: 1289.25 | J130: 1319.45 | K130: 1351.55 | L130: 1287.35 | M130: 1225.05 | N130: 14888800 | O130: 10.29%
A131: 122 | B131: Technology | C131: KPIT | D131: 254.45 | E131: 255.18 | F131: 250.37 | G131: 246.28 | H131: 241.47 | I131: 259.27 | J131: 264.08 | K131: 268.17 | L131: 260 | M131: 251.1 | N131: 8676000 | O131: -9.01%
A132: 123 | B132: Others | C132: KSCL | D132: 518.40 | E132: 523.25 | F132: 506.15 | G132: 493.90 | H132: 476.80 | I132: 535.50 | J132: 552.60 | K132: 564.85 | L132: 540.35 | M132: 511 | N132: 2328000 | O132: 2.17%
A133: 124 | B133: Banking | C133: KTKBANK | D133: 121.80 | E133: 122.30 | F133: 120.30 | G133: 118.80 | H133: 116.80 | I133: 123.80 | J133: 125.80 | K133: 127.30 | L133: 124.3 | M133: 120.8 | N133: 24757700 | O133: 0.66%
A134: 125 | B134: Finance | C134: L&TFH | D134: 174.65 | E134: 174.55 | F134: 172.85 | G134: 171.05 | H134: 169.35 | I134: 176.35 | J134: 178.05 | K134: 179.85 | L134: 176.25 | M134: 172.75 | N134: 34263000 | O134: -1.83%
A135: 126 | B135: Finance | C135: LICHSGFIN | D135: 540.90 | E135: 544.38 | F135: 533.87 | G135: 526.83 | H135: 516.32 | I135: 551.42 | J135: 561.93 | K135: 568.97 | L135: 554.9 | M135: 537.35 | N135: 13096600 | O135: 2.52%
A136: 127 | B136: Capital_Goods | C136: LT | D136: 1400.90 | E136: 1406.27 | F136: 1386.98 | G136: 1373.07 | H136: 1353.78 | I136: 1420.18 | J136: 1439.47 | K136: 1453.38 | L136: 1425.55 | M136: 1392.35 | N136: 13147500 | O136: -0.65%
A137: 128 | B137: Pharma | C137: LUPIN | D137: 804.35 | E137: 808.98 | F137: 795.47 | G137: 786.58 | H137: 773.07 | I137: 817.87 | J137: 831.38 | K137: 840.27 | L137: 822.5 | M137: 800.1 | N137: 13699100 | O137: 1.31%
A138: 129 | B138: Automobile | C138: M&M | D138: 866.40 | E138: 870.65 | F138: 859.30 | G138: 852.20 | H138: 840.85 | I138: 877.75 | J138: 889.10 | K138: 896.20 | L138: 882 | M138: 863.55 | N138: 14010000 | O138: 0.86%
A139: 130 | B139: Finance | C139: M&MFIN | D139: 511.60 | E139: 517.95 | F139: 501.65 | G139: 491.70 | H139: 475.40 | I139: 527.90 | J139: 544.20 | K139: 554.15 | L139: 534.25 | M139: 508 | N139: 8505000 | O139: 0.03%
A140: 131 | B140: Others | C140: MANAPPURAM | D140: 122.55 | E140: 123.20 | F140: 120.75 | G140: 118.95 | H140: 116.50 | I140: 125.00 | J140: 127.45 | K140: 129.25 | L140: 125.65 | M140: 121.4 | N140: 15798000 | O140: -1.02%
A141: 132 | B141: FMCG | C141: MARICO | D141: 317.35 | E141: 326.28 | F141: 304.07 | G141: 290.78 | H141: 268.57 | I141: 339.57 | J141: 361.78 | K141: 375.07 | L141: 348.5 | M141: 313 | N141: 8221200 | O141: 12.85%
A142: 133 | B142: Automobile | C142: MARUTI | D142: 8801.40 | E142: 8869.78 | F142: 8709.62 | G142: 8617.83 | H142: 8457.67 | I142: 8961.57 | J142: 9121.73 | K142: 9213.52 | L142: 9029.95 | M142: 8778 | N142: 3034500 | O142: -0.05%
A143: 134 | B143: FMCG | C143: MCDOWELL-N | D143: 3597.60 | E143: 3616.58 | F143: 3553.17 | G143: 3508.73 | H143: 3445.32 | I143: 3661.02 | J143: 3724.43 | K143: 3768.87 | L143: 3680 | M143: 3572.15 | N143: 2077750 | O143: -1.52%
A144: 135 | B144: Others | C144: MCX | D144: 761.15 | E144: 766.53 | F144: 745.37 | G144: 729.58 | H144: 708.42 | I144: 782.32 | J144: 803.48 | K144: 819.27 | L144: 787.7 | M144: 750.75 | N144: 3836000 | O144: 0.54%
A145: 136 | B145: Finance | C145: MFSL | D145: 513.95 | E145: 518.48 | F145: 507.17 | G145: 500.38 | H145: 489.07 | I145: 525.27 | J145: 536.58 | K145: 543.37 | L145: 529.8 | M145: 511.7 | N145: 2518000 | O145: 1.17%
A146: 137 | B146: Others | C146: MGL | D146: 893.90 | E146: 894.57 | F146: 887.63 | G146: 881.37 | H146: 874.43 | I146: 900.83 | J146: 907.77 | K146: 914.03 | L146: 901.5 | M146: 888.3 | N146: 3423000 | O146: -2.51%
A147: 138 | B147: Technology | C147: MINDTREE | D147: 1055.50 | E147: 1064.92 | F147: 1036.03 | G147: 1016.57 | H147: 987.68 | I147: 1084.38 | J147: 1113.27 | K147: 1132.73 | L147: 1093.8 | M147: 1045.45 | N147: 3282000 | O147: -5.59%
A148: 139 | B148: Automobile | C148: MOTHERSUMI | D148: 353.00 | E148: 353.98 | F148: 350.82 | G148: 348.63 | H148: 345.47 | I148: 356.17 | J148: 359.33 | K148: 361.52 | L148: 357.15 | M148: 351.8 | N148: 13500800 | O148: 0.19%
A149: 140 | B149: Automobile | C149: MRF | D149: 80019.30 | E149: 80472.77 | F149: 79245.53 | G149: 78471.77 | H149: 77244.53 | I149: 81246.53 | J149: 82473.77 | K149: 83247.53 | L149: 81700 | M149: 79699 | N149: 37155 | O149: 1.31%
A150: 141 | B150: Others | C150: MRPL | D150: 107.10 | E150: 107.57 | F150: 106.48 | G150: 105.87 | H150: 104.78 | I150: 108.18 | J150: 109.27 | K150: 109.88 | L150: 108.65 | M150: 106.95 | N150: 5557500 | O150: 0.57%
A151: 142 | B151: Finance | C151: MUTHOOTFIN | D151: 445.75 | E151: 448.67 | F151: 438.83 | G151: 431.92 | H151: 422.08 | I151: 455.58 | J151: 465.42 | K151: 472.33 | L151: 458.5 | M151: 441.75 | N151: 1455000 | O151: -3.77%
A152: 143 | B152: Others | C152: NATIONALUM | D152: 79.95 | E152: 80.33 | F152: 78.82 | G152: 77.68 | H152: 76.17 | I152: 81.47 | J152: 82.98 | K152: 84.12 | L152: 81.85 | M152: 79.2 | N152: 45600000 | O152: -3.11%
A153: 144 | B153: Others | C153: NBCC | D153: 105.95 | E153: 106.45 | F153: 104.30 | G153: 102.65 | H153: 100.50 | I153: 108.10 | J153: 110.25 | K153: 111.90 | L153: 108.6 | M153: 104.8 | N153: 18906000 | O153: -0.32%
A154: 145 | B154: Infrastructure | C154: NCC | D154: 131.15 | E154: 132.93 | F154: 128.37 | G154: 125.58 | H154: 121.02 | I154: 135.72 | J154: 140.28 | K154: 143.07 | L154: 137.5 | M154: 130.15 | N154: 30288000 | O154: 3.13%
A155: 146 | B155: Others | C155: NESTLEIND | D155: 9237.50 | E155: 9323.42 | F155: 9134.08 | G155: 9030.67 | H155: 8841.33 | I155: 9426.83 | J155: 9616.17 | K155: 9719.58 | L155: 9512.75 | M155: 9220 | N155: 292900 | O155: -0.17%
A156: 147 | B156: Power | C156: NHPC | D156: 28.25 | E156: 28.38 | F156: 27.92 | G156: 27.58 | H156: 27.12 | I156: 28.72 | J156: 29.18 | K156: 29.52 | L156: 28.85 | M156: 28.05 | N156: 30240000 | O156: -1.32%
A157: 148 | B157: Technology | C157: NIITTECH | D157: 1107.15 | E157: 1123.95 | F157: 1078.90 | G157: 1050.65 | H157: 1005.60 | I157: 1152.20 | J157: 1197.25 | K157: 1225.50 | L157: 1169 | M157: 1095.7 | N157: 2023500 | O157: 13.41%
A158: 149 | B158: Metals | C158: NMDC | D158: 124.20 | E158: 124.85 | F158: 123.20 | G158: 122.20 | H158: 120.55 | I158: 125.85 | J158: 127.50 | K158: 128.50 | L158: 126.5 | M158: 123.85 | N158: 25458000 | O158: -1.58%
A159: 150 | B159: Power | C159: NTPC | D159: 171.40 | E159: 171.93 | F159: 170.47 | G159: 169.53 | H159: 168.07 | I159: 172.87 | J159: 174.33 | K159: 175.27 | L159: 173.4 | M159: 171 | N159: 38224000 | O159: -0.17%
A160: 151 | B160: Technology | C160: OFSS | D160: 4214.85 | E160: 4249.92 | F160: 4162.83 | G160: 4110.82 | H160: 4023.73 | I160: 4301.93 | J160: 4389.02 | K160: 4441.03 | L160: 4337 | M160: 4197.9 | N160: 106950 | O160: 4.24%
A161: 152 | B161: Oil_Gas | C161: OIL | D161: 223.10 | E161: 225.40 | F161: 220.05 | G161: 217.00 | H161: 211.65 | I161: 228.45 | J161: 233.80 | K161: 236.85 | L161: 230.75 | M161: 222.35 | N161: 2872155 | O161: 1.32%
A162: 153 | B162: Oil_Gas | C162: ONGC | D162: 180.65 | E162: 181.00 | F162: 179.65 | G162: 178.65 | H162: 177.30 | I162: 182.00 | J162: 183.35 | K162: 184.35 | L162: 182.35 | M162: 180 | N162: 39097500 | O162: -1.62%
A163: 154 | B163: Banking | C163: ORIENTBANK | D163: 89.85 | E163: 91.37 | F163: 87.13 | G163: 84.42 | H163: 80.18 | I163: 94.08 | J163: 98.32 | K163: 101.03 | L163: 95.6 | M163: 88.65 | N163: 15246000 | O163: 2.46%
A164: 155 | B164: Textile | C164: PAGEIND | D164: 23799.50 | E164: 23998.85 | F164: 23498.70 | G164: 23197.90 | H164: 22697.75 | I164: 24299.65 | J164: 24799.80 | K164: 25100.60 | L164: 24499 | M164: 23698.05 | N164: 52425 | O164: 1.45%
A165: 156 | B165: Others | C165: PCJEWELLER | D165: 110.80 | E165: 122.82 | F165: 90.98 | G165: 71.17 | H165: 39.33 | I165: 142.63 | J165: 174.47 | K165: 194.28 | L165: 154.65 | M165: 103 | N165: 16779000 | O165: -18.47%
A166: 157 | B166: Pharma | C166: PEL | D166: 2596.95 | E166: 2605.02 | F166: 2572.93 | G166: 2548.92 | H166: 2516.83 | I166: 2629.03 | J166: 2661.12 | K166: 2685.13 | L166: 2637.1 | M166: 2581 | N166: 1934310 | O166: 1.36%
A167: 158 | B167: Oil_Gas | C167: PETRONET | D167: 226.80 | E167: 227.23 | F167: 225.67 | G167: 224.53 | H167: 222.97 | I167: 228.37 | J167: 229.93 | K167: 231.07 | L167: 228.8 | M167: 226.1 | N167: 20631000 | O167: -0.66%
A168: 159 | B168: Finance | C168: PFC | D168: 86.05 | E168: 87.43 | F168: 84.37 | G168: 82.68 | H168: 79.62 | I168: 89.12 | J168: 92.18 | K168: 93.87 | L168: 90.5 | M168: 85.75 | N168: 70104000 | O168: -0.84%
A169: 160 | B169: FMCG | C169: PIDILITIND | D169: 1106.55 | E169: 1103.15 | F169: 1091.40 | G169: 1076.25 | H169: 1064.50 | I169: 1118.30 | J169: 1130.05 | K169: 1145.20 | L169: 1114.9 | M169: 1088 | N169: 1317000 | O169: 9.66%
A170: 161 | B170: Banking | C170: PNB | D170: 93.30 | E170: 94.10 | F170: 91.90 | G170: 90.50 | H170: 88.30 | I170: 95.50 | J170: 97.70 | K170: 99.10 | L170: 96.3 | M170: 92.7 | N170: 67370000 | O170: 0.99%
A171: 162 | B171: Power | C171: POWERGRID | D171: 206.20 | E171: 207.35 | F171: 204.55 | G171: 202.90 | H171: 200.10 | I171: 209.00 | J171: 211.80 | K171: 213.45 | L171: 210.15 | M171: 205.7 | N171: 31284000 | O171: -0.15%
A172: 163 | B172: Power | C172: PTC | D172: 91.40 | E172: 92.40 | F172: 90.00 | G172: 88.60 | H172: 86.20 | I172: 93.80 | J172: 96.20 | K172: 97.60 | L172: 94.8 | M172: 91 | N172: 21336000 | O172: 0.95%
A173: 164 | B173: Others | C173: PVR | D173: 1418.65 | E173: 1421.67 | F173: 1383.33 | G173: 1348.02 | H173: 1309.68 | I173: 1456.98 | J173: 1495.32 | K173: 1530.63 | L173: 1460 | M173: 1386.35 | N173: 871200 | O173: 4.31%
A174: 165 | B174: Cement | C174: RAMCOCEM | D174: 824.50 | E174: 825.53 | F174: 809.07 | G174: 793.63 | H174: 777.17 | I174: 840.97 | J174: 857.43 | K174: 872.87 | L174: 842 | M174: 810.1 | N174: 1280000 | O174: 0.50%
A175: 166 | B175: Others | C175: RAYMOND | D175: 1123.50 | E175: 1131.28 | F175: 1103.02 | G175: 1082.53 | H175: 1054.27 | I175: 1151.77 | J175: 1180.03 | K175: 1200.52 | L175: 1159.55 | M175: 1110.8 | N175: 5075200 | O175: 0.19%
A176: 167 | B176: Banking | C176: RBLBANK | D176: 518.55 | E176: 520.78 | F176: 510.77 | G176: 502.98 | H176: 492.97 | I176: 528.57 | J176: 538.58 | K176: 546.37 | L176: 530.8 | M176: 513 | N176: 4305000 | O176: -0.78%
A177: 168 | B177: Telecom | C177: RCOM | D177: 16.15 | E177: 16.48 | F177: 14.82 | G177: 13.48 | H177: 11.82 | I177: 17.82 | J177: 19.48 | K177: 20.82 | L177: 18.15 | M177: 15.15 | N177: 124404000 | O177: 1.37%
A178: 169 | B178: Capital_Goods | C178: RNAVAL | D178: 18.10 | E178: 18.65 | F178: 17.05 | G178: 16.00 | H178: 14.40 | I178: 19.70 | J178: 21.30 | K178: 22.35 | L178: 20.25 | M178: 17.6 | N178: 39816000 | O178: -2.48%
A179: 170 | B179: Power | C179: RECLTD | D179: 124.95 | E179: 126.40 | F179: 122.80 | G179: 120.65 | H179: 117.05 | I179: 128.55 | J179: 132.15 | K179: 134.30 | L179: 130 | M179: 124.25 | N179: 40392000 | O179: 0.20%
A180: 171 | B180: Finance | C180: RELCAPITAL | D180: 421.45 | E180: 430.12 | F180: 409.03 | G180: 396.62 | H180: 375.53 | I180: 442.53 | J180: 463.62 | K180: 476.03 | L180: 451.2 | M180: 417.7 | N180: 12388500 | O180: 6.47%
A181: 172 | B181: Oil_Gas | C181: RELIANCE | D181: 971.55 | E181: 971.30 | F181: 964.10 | G181: 956.65 | H181: 949.45 | I181: 978.75 | J181: 985.95 | K181: 993.40 | L181: 978.5 | M181: 963.85 | N181: 51010000 | O181: 2.89%
A182: 173 | B182: Power | C182: RELINFRA | D182: 434.85 | E182: 443.25 | F182: 423.15 | G182: 411.45 | H182: 391.35 | I182: 454.95 | J182: 475.05 | K182: 486.75 | L182: 463.35 | M182: 431.55 | N182: 8589100 | O182: -0.95%
A183: 174 | B183: Others | C183: REPCOHOME | D183: 590.50 | E183: 601.63 | F183: 551.17 | G183: 511.83 | H183: 461.37 | I183: 640.97 | J183: 691.43 | K183: 730.77 | L183: 652.1 | M183: 562.3 | N183: 1026900 | O183: 5.46%
A184: 175 | B184: Power | C184: RPOWER | D184: 36.35 | E184: 37.50 | F184: 34.90 | G184: 33.45 | H184: 30.85 | I184: 38.95 | J184: 41.55 | K184: 43.00 | L184: 40.1 | M184: 36.05 | N184: 67288000 | O184: 2.60%
A185: 176 | B185: Metals | C185: SAIL | D185: 73.30 | E185: 75.00 | F185: 71.35 | G185: 69.40 | H185: 65.75 | I185: 76.95 | J185: 80.60 | K185: 82.55 | L185: 78.65 | M185: 73.05 | N185: 91944000 | O185: 8.51%
A186: 177 | B186: Banking | C186: SBIN | D186: 241.55 | E186: 242.95 | F186: 238.50 | G186: 235.45 | H186: 231.00 | I186: 246.00 | J186: 250.45 | K186: 253.50 | L186: 247.4 | M186: 239.9 | N186: 86898000 | O186: 3.25%
A187: 178 | B187: Cement | C187: SHREECEM | D187: 16660.25 | E187: 16750.35 | F187: 16454.90 | G187: 16249.55 | H187: 15954.10 | I187: 16955.70 | J187: 17251.15 | K187: 17456.50 | L187: 17045.8 | M187: 16545 | N187: 79550 | O187: -2.75%
A188: 179 | B188: Capital_Goods | C188: SIEMENS | D188: 1133.80 | E188: 1138.93 | F188: 1118.87 | G188: 1103.93 | H188: 1083.87 | I188: 1153.87 | J188: 1173.93 | K188: 1188.87 | L188: 1159 | M188: 1124 | N188: 1398000 | O188: -0.92%
A189: 180 | B189: Banking | C189: SOUTHBANK | D189: 26.20 | E189: 26.32 | F189: 25.88 | G189: 25.57 | H189: 25.13 | I189: 26.63 | J189: 27.07 | K189: 27.38 | L189: 26.75 | M189: 26 | N189: 141246942 | O189: -0.63%
A190: 181 | B190: Others | C190: SREINFRA | D190: 83.90 | E190: 84.50 | F190: 81.60 | G190: 79.30 | H190: 76.40 | I190: 86.80 | J190: 89.70 | K190: 92.00 | L190: 87.4 | M190: 82.2 | N190: 17027000 | O190: 6.29%
A191: 182 | B191: Textile | C191: SRF | D191: 2360.15 | E191: 2374.25 | F191: 2332.00 | G191: 2303.85 | H191: 2261.60 | I191: 2402.40 | J191: 2444.65 | K191: 2472.80 | L191: 2416.5 | M191: 2346.1 | N191: 476000 | O191: -4.23%
A192: 183 | B192: Finance | C192: SRTRANSFIN | D192: 1564.40 | E192: 1577.68 | F192: 1521.72 | G192: 1479.03 | H192: 1423.07 | I192: 1620.37 | J192: 1676.33 | K192: 1719.02 | L192: 1633.65 | M192: 1535 | N192: 4129200 | O192: 2.46%
A193: 184 | B193: Pharma | C193: STAR | D193: 629.00 | E193: 634.08 | F193: 620.02 | G193: 611.03 | H193: 596.97 | I193: 643.07 | J193: 657.13 | K193: 666.12 | L193: 648.15 | M193: 625.1 | N193: 2090400 | O193: 2.17%
A194: 185 | B194: Pharma | C194: SUNPHARMA | D194: 518.20 | E194: 521.93 | F194: 509.32 | G194: 500.43 | H194: 487.82 | I194: 530.82 | J194: 543.43 | K194: 552.32 | L194: 534.55 | M194: 513.05 | N194: 58302200 | O194: 1.33%
A195: 186 | B195: Media | C195: SUNTV | D195: 875.10 | E195: 884.05 | F195: 857.35 | G195: 839.60 | H195: 812.90 | I195: 901.80 | J195: 928.50 | K195: 946.25 | L195: 910.75 | M195: 866.3 | N195: 5833000 | O195: 1.11%
A196: 187 | B196: Power | C196: SUZLON | D196: 10.90 | E196: 10.92 | F196: 10.78 | G196: 10.67 | H196: 10.53 | I196: 11.03 | J196: 11.17 | K196: 11.28 | L196: 11.05 | M196: 10.8 | N196: 325875000 | O196: -0.06%
A197: 188 | B197: Banking | C197: SYNDIBANK | D197: 54.10 | E197: 54.48 | F197: 53.17 | G197: 52.23 | H197: 50.92 | I197: 55.42 | J197: 56.73 | K197: 57.67 | L197: 55.8 | M197: 53.55 | N197: 30168000 | O197: 0.48%
A198: 189 | B198: Fertilisers | C198: TATACHEM | D198: 769.65 | E198: 772.33 | F198: 757.27 | G198: 744.88 | H198: 729.82 | I198: 784.72 | J198: 799.78 | K198: 812.17 | L198: 787.4 | M198: 759.95 | N198: 5089500 | O198: -9.86%
A199: 190 | B199: Telecom | C199: TATACOMM | D199: 631.75 | E199: 630.25 | F199: 622.60 | G199: 613.45 | H199: 605.80 | I199: 639.40 | J199: 647.05 | K199: 656.20 | L199: 637.9 | M199: 621.1 | N199: 6181600 | O199: -0.77%
A200: 191 | B200: Technology | C200: TATAELXSI | D200: 1219.55 | E200: 1226.43 | F200: 1202.92 | G200: 1186.28 | H200: 1162.77 | I200: 1243.07 | J200: 1266.58 | K200: 1283.22 | L200: 1249.95 | M200: 1209.8 | N200: 2073600 | O200: -5.02%
A201: 192 | B201: FMCG | C201: TATAGLOBAL | D201: 293.50 | E201: 294.80 | F201: 288.70 | G201: 283.90 | H201: 277.80 | I201: 299.60 | J201: 305.70 | K201: 310.50 | L201: 300.9 | M201: 290 | N201: 23114250 | O201: -4.07%
A202: 193 | B202: Automobile | C202: TATAMOTORS | D202: 337.35 | E202: 341.93 | F202: 331.27 | G202: 325.18 | H202: 314.52 | I202: 348.02 | J202: 358.68 | K202: 364.77 | L202: 352.6 | M202: 335.85 | N202: 76284000 | O202: 1.32%
A203: 194 | B203: Automobile | C203: TATAMTRDVR | D203: 189.75 | E203: 192.42 | F203: 186.48 | G203: 183.22 | H203: 177.28 | I203: 195.68 | J203: 201.62 | K203: 204.88 | L203: 198.35 | M203: 189.15 | N203: 26526500 | O203: 0.24%
A204: 195 | B204: Power | C204: TATAPOWER | D204: 87.30 | E204: 87.77 | F204: 86.03 | G204: 84.77 | H204: 83.03 | I204: 89.03 | J204: 90.77 | K204: 92.03 | L204: 89.5 | M204: 86.5 | N204: 49779000 | O204: 2.09%
A205: 196 | B205: Metals | C205: TATASTEEL | D205: 577.95 | E205: 584.20 | F205: 570.20 | G205: 562.45 | H205: 548.45 | I205: 591.95 | J205: 605.95 | K205: 613.70 | L205: 598.2 | M205: 576.45 | N205: 21206207 | O205: 7.40%
A206: 197 | B206: Technology | C206: TCS | D206: 3511.95 | E206: 3515.08 | F206: 3481.22 | G206: 3450.48 | H206: 3416.62 | I206: 3545.82 | J206: 3579.68 | K206: 3610.42 | L206: 3548.95 | M206: 3484.35 | N206: 6731500 | O206: -2.41%
... 35 more rows

Sheet Cash Intra
M5: Back to Main Page
A6: FOR INTRA DAY TRADING | K6: =Main!B10 -> 2017-05-03
A8: Sr.no | B8: Scrip | C8: CLOSE RATE | D8: Pivot Point | E8: Supports | H8: Resistances
C9: Point | E9: S1 | F9: S2 | G9: S3 | H9: R1 | I9: R2 | J9: R3 | K9: HIGH | L9: LOW | M9: Total Trade Quanity in Lakhs
A10: 1 | B10: Nifty 50 | C10: 10718.05 | D10: 10730.83 | E10: 10677.02 | F10: 10635.98 | G10: 10582.17 | H10: 10771.87 | I10: 10825.68 | J10: 10866.72 | K10: 10784.65 | L10: 10689.8
A11: 2 | B11: Nifty Bank | C11: 25568.3 | D11: 25594.80 | E11: 25472.85 | F11: 25377.40 | G11: 25255.45 | H11: 25690.25 | I11: 25812.20 | J11: 25907.65 | K11: 25716.75 | L11: 25499.35
A12: 3 | B12: Nifty CPSE | C12: 2379.3 | D12: 2388.58 | E12: 2366.17 | F12: 2353.03 | G12: 2330.62 | H12: 2401.72 | I12: 2424.13 | J12: 2437.27 | K12: 2411 | L12: 2375.45
A13: 4 | B13: Nifty Infra | C13: 3479.9 | D13: 3494.30 | E13: 3458.70 | F13: 3437.50 | G13: 3401.90 | H13: 3515.50 | I13: 3551.10 | J13: 3572.30 | K13: 3529.9 | L13: 3473.1
A14: 5 | B14: Nifty IT | C14: 13754.3 | D14: 13821.17 | E14: 13656.78 | F14: 13559.27 | G14: 13394.88 | H14: 13918.68 | I14: 14083.07 | J14: 14180.58 | K14: 13985.55 | L14: 13723.65
A15: 6 | B15: Nifty PSE | C15: 3800.95 | D15: 3818.33 | E15: 3778.37 | F15: 3755.78 | G15: 3715.82 | H15: 3840.92 | I15: 3880.88 | J15: 3903.47 | K15: 3858.3 | L15: 3795.75
A16: 7 | B16: Nifty Midcap 50 | C16: 5365.4 | D16: 5393.42 | E16: 5312.68 | F16: 5259.97 | G16: 5179.23 | H16: 5446.13 | I16: 5526.87 | J16: 5579.58 | K16: 5474.15 | L16: 5340.7
A17: 8 | B17: ABB | C17: 170.55 | D17: 173.82 | E17: 172.63 | F17: 174.72 | G17: 173.53 | H17: 171.73 | I17: 172.92 | J17: 170.83 | K17: 175 | L17: 175.9 | M17: 0.00175
A18: 9 | B18: ACC | C18: 145.5 | D18: 146.48 | E18: 146.47 | F18: 147.43 | G18: 147.42 | H18: 145.52 | I18: 145.53 | J18: 144.57 | K18: 146.5 | L18: 147.45 | M18: 0.0014675
A19: 10 | B19: AIAENG | C19: 353.55 | D19: 371.38 | E19: 362.77 | F19: 371.98 | G19: 363.37 | H19: 362.17 | I19: 370.78 | J19: 361.57 | K19: 380 | L19: 380.6 | M19: 0.003625
A20: 11 | B20: AUBANK | C20: 445.1 | D20: 447.28 | E20: 449.07 | F20: 453.03 | G20: 454.82 | H20: 443.32 | I20: 441.53 | J20: 437.57 | K20: 445.5 | L20: 451.25 | M20: 0.0044425
A21: 12 | B21: ADANIENT | C21: 180.4 | D21: 185.27 | E21: 183.03 | F21: 185.67 | G21: 183.43 | H21: 182.63 | I21: 184.87 | J21: 182.23 | K21: 187.5 | L21: 187.9 | M21: 0.001869
A22: 13 | B22: ADANIPORTS | C22: 124.2 | D22: 135.35 | E22: 130.35 | F22: 136.50 | G22: 131.50 | H22: 129.20 | I22: 134.20 | J22: 128.05 | K22: 140.35 | L22: 141.5 | M22: 0.001401
A23: 14 | B23: ADANIPOWER | C23: 397.3 | D23: 405.50 | E23: 403.00 | F23: 408.70 | G23: 406.20 | H23: 399.80 | I23: 402.30 | J23: 396.60 | K23: 408 | L23: 411.2 | M23: 0.004073
A24: 15 | B24: ABFRL | C24: 159.1 | D24: 160.93 | E24: 161.37 | F24: 163.63 | G24: 164.07 | H24: 158.67 | I24: 158.23 | J24: 155.97 | K24: 160.5 | L24: 163.2 | M24: 0.0015975
A25: 16 | B25: AJANTPHARM | C25: 1415 | D25: 1438.33 | E25: 1426.67 | F25: 1438.33 | G25: 1426.67 | H25: 1426.67 | I25: 1438.33 | J25: 1426.67 | K25: 1450 | L25: 1450 | M25: 0.0144385
A26: 17 | B26: ALKEM | C26: 56.9 | D26: 57.45 | E26: 57.45 | F26: 58.00 | G26: 58.00 | H26: 56.90 | I26: 56.90 | J26: 56.35 | K26: 57.45 | L26: 58 | M26: 0.0005735
A27: 18 | B27: AMARAJABAT | C27: 37.1 | D27: 37.90 | E27: 37.50 | F27: 37.90 | G27: 37.50 | H27: 37.50 | I27: 37.90 | J27: 37.50 | K27: 38.3 | L27: 38.3 | M27: 0.0003715
A28: 19 | B28: AMBUJACEM | C28: 1115.5 | D28: 1133.17 | E28: 1124.33 | F28: 1133.17 | G28: 1124.33 | H28: 1124.33 | I28: 1133.17 | J28: 1124.33 | K28: 1142 | L28: 1142 | M28: 0.011387
A29: 20 | B29: APOLLOHOSP | C29: 529.2 | D29: 531.63 | E29: 534.07 | F29: 538.93 | G29: 541.37 | H29: 526.77 | I29: 524.33 | J29: 519.47 | K29: 529.2 | L29: 536.5 | M29: 0.0053405
A30: 21 | B30: APOLLOTYRE | C30: 222.25 | D30: 228.38 | E30: 228.77 | F30: 235.28 | G30: 235.67 | H30: 221.87 | I30: 221.48 | J30: 214.97 | K30: 228 | L30: 234.9 | M30: 0.0022835
A31: 22 | B31: ARVIND | C31: 405.1 | D31: 417.92 | E31: 412.23 | F31: 419.37 | G31: 413.68 | H31: 410.78 | I31: 416.47 | J31: 409.33 | K31: 423.6 | L31: 425.05 | M31: 0.004236
A32: 23 | B32: ASHOKLEY | C32: 160.5 | D32: 163.82 | E32: 162.88 | F32: 165.27 | G32: 164.33 | H32: 161.43 | I32: 162.37 | J32: 159.98 | K32: 164.75 | L32: 166.2 | M32: 0.0016445
A33: 24 | B33: ASIANPAINT | C33: 315 | D33: 323.33 | E33: 321.67 | F33: 328.33 | G33: 326.67 | H33: 316.67 | I33: 318.33 | J33: 311.67 | K33: 325 | L33: 330 | M33: 0.0032385
A34: 25 | B34: AUROPHARMA | C34: 227.95 | D34: 233.33 | E34: 232.62 | F34: 237.28 | G34: 236.57 | H34: 228.67 | I34: 229.38 | J34: 224.72 | K34: 234.05 | L34: 238 | M34: 0.0023445
A35: 26 | B35: DMART | C35: 92.45 | D35: 94.53 | E35: 93.92 | F35: 95.38 | G35: 94.77 | H35: 93.07 | I35: 93.68 | J35: 92.22 | K35: 95.15 | L35: 96 | M35: 0.0009535
A36: 27 | B36: AXISBANK | C36: 36.85 | D36: 37.88 | E36: 37.37 | F36: 37.88 | G36: 37.37 | H36: 37.37 | I36: 37.88 | J36: 37.37 | K36: 38.4 | L36: 38.4 | M36: 0.0003745
A37: 28 | B37: BAJAJ-AUTO | C37: 5.2 | D37: 5.33 | E37: 5.32 | F37: 5.43 | G37: 5.42 | H37: 5.22 | I37: 5.23 | J37: 5.12 | K37: 5.35 | L37: 5.45 | M37: 5.35e-05
A38: 29 | B38: BAJFINANCE | C38: 2676 | D38: 2700.45 | E38: 2695.25 | F38: 2714.50 | G38: 2709.30 | H38: 2681.20 | I38: 2686.40 | J38: 2667.15 | K38: 2705.65 | L38: 2719.7 | M38: 0.0270565
A39: 30 | B39: BAJAJFINSV | C39: 628.3 | D39: 646.82 | E39: 638.48 | F39: 648.67 | G39: 640.33 | H39: 636.63 | I39: 644.97 | J39: 634.78 | K39: 655.15 | L39: 657 | M39: 0.0065615
A40: 31 | B40: BALKRISIND | C40: 80 | D40: 81.58 | E40: 82.17 | F40: 84.33 | G40: 84.92 | H40: 79.42 | I40: 78.83 | J40: 76.67 | K40: 81 | L40: 83.75 | M40: 0.000812
A41: 32 | B41: BANKBARODA | C41: 34.65 | D41: 35.40 | E41: 36.10 | F41: 37.55 | G41: 38.25 | H41: 33.95 | I41: 33.25 | J41: 31.80 | K41: 34.7 | L41: 36.85 | M41: 0.000361
A42: 33 | B42: BANKINDIA | C42: 2590.01 | D42: 2601.10 | E42: 2604.19 | F42: 2618.38 | G42: 2621.47 | H42: 2586.91 | I42: 2583.82 | J42: 2569.63 | K42: 2598 | L42: 2615.28 | M42: 0.0259827
A43: 34 | B43: BATAINDIA | C43: 234.65 | D43: 240.53 | E43: 237.62 | F43: 240.58 | G43: 237.67 | H43: 237.57 | I43: 240.48 | J43: 237.52 | K43: 243.45 | L43: 243.5 | M43: 0.0023675
A44: 35 | B44: BERGEPAINT | C44: 277.75 | D44: 283.65 | E44: 280.70 | F44: 283.65 | G44: 280.70 | H44: 280.70 | I44: 283.65 | J44: 280.70 | K44: 286.6 | L44: 286.6 | M44: 0.002866
A45: 36 | B45: BEL | C45: 129.8 | D45: 131.35 | E45: 130.70 | F45: 131.60 | G45: 130.95 | H45: 130.45 | I45: 131.10 | J45: 130.20 | K45: 132 | L45: 132.25 | M45: 0.001312
A46: 37 | B46: BHARATFIN | C46: 763.6 | D46: 774.12 | E46: 774.28 | F46: 784.97 | G46: 785.13 | H46: 763.43 | I46: 763.27 | J46: 752.58 | K46: 773.95 | L46: 784.8 | M46: 0.007747
A47: 38 | B47: BHARATFORG | C47: 184 | D47: 187.83 | E47: 191.67 | F47: 199.33 | G47: 203.17 | H47: 180.17 | I47: 176.33 | J47: 168.67 | K47: 184 | L47: 195.5 | M47: 0.001824
A48: 39 | B48: BHEL | C48: 21.1 | D48: 21.78 | E48: 21.97 | F48: 22.83 | G48: 23.02 | H48: 20.92 | I48: 20.73 | J48: 19.87 | K48: 21.6 | L48: 22.65 | M48: 0.000216
A49: 40 | B49: BPCL | C49: 5408.8 | D49: 5506.43 | E49: 5467.87 | F49: 5526.93 | G49: 5488.37 | H49: 5447.37 | I49: 5485.93 | J49: 5426.87 | K49: 5545 | L49: 5565.5 | M49: 0.055132
A50: 41 | B50: BHARTIARTL | C50: 87.35 | D50: 88.68 | E50: 88.17 | F50: 88.98 | G50: 88.47 | H50: 87.87 | I50: 88.38 | J50: 87.57 | K50: 89.2 | L50: 89.5 | M50: 0.000878
A51: 42 | B51: INFRATEL | C51: 351.78 | D51: 355.93 | E51: 353.85 | F51: 355.93 | G51: 353.85 | H51: 353.85 | I51: 355.93 | J51: 353.85 | K51: 358 | L51: 358 | M51: 0.0035749
A52: 43 | B52: BIOCON | C52: 735.2 | D52: 750.73 | E52: 749.47 | F52: 763.73 | G52: 762.47 | H52: 736.47 | I52: 737.73 | J52: 723.47 | K52: 752 | L52: 765 | M52: 0.0076415
A53: 44 | B53: BOSCHLTD | C53: 271.95 | D53: 281.47 | E53: 281.48 | F53: 291.02 | G53: 291.03 | H53: 271.93 | I53: 271.92 | J53: 262.38 | K53: 281.45 | L53: 291 | M53: 0.002817
A54: 45 | B54: BRITANNIA | C54: 808 | D54: 823.30 | E54: 815.65 | F54: 823.30 | G54: 815.65 | H54: 815.65 | I54: 823.30 | J54: 815.65 | K54: 830.95 | L54: 830.95 | M54: 0.00824
A55: 46 | B55: CRISIL | C55: 63.5 | D55: 65.03 | E55: 64.27 | F55: 65.03 | G55: 64.27 | H55: 64.27 | I55: 65.03 | J55: 64.27 | K55: 65.8 | L55: 65.8 | M55: 0.0006475
A56: 47 | B56: CADILAHC | C56: 253.65 | D56: 262.52 | E56: 259.03 | F56: 264.42 | G56: 260.93 | H56: 257.13 | I56: 260.62 | J56: 255.23 | K56: 266 | L56: 267.9 | M56: 0.0026595
A57: 48 | B57: CANBK | C57: 348 | D57: 354.23 | E57: 353.47 | F57: 358.93 | G57: 358.17 | H57: 348.77 | I57: 349.53 | J57: 344.07 | K57: 355 | L57: 359.7 | M57: 0.0035685
A58: 49 | B58: CASTROLIND | C58: 309 | D58: 314.53 | E58: 312.17 | F58: 315.33 | G58: 312.97 | H58: 311.37 | I58: 313.73 | J58: 310.57 | K58: 316.9 | L58: 317.7 | M58: 0.0031285
A59: 50 | B59: CENTRALBK | C59: 321.95 | D59: 326.30 | E59: 326.60 | F59: 331.25 | G59: 331.55 | H59: 321.65 | I59: 321.35 | J59: 316.70 | K59: 326 | L59: 330.95 | M59: 0.0032595
A60: 51 | B60: CENTURYTEX | C60: 91.7 | D60: 93.27 | E60: 92.88 | F60: 94.07 | G60: 93.68 | H60: 92.08 | I60: 92.47 | J60: 91.28 | K60: 93.65 | L60: 94.45 | M60: 0.000933
A61: 52 | B61: CHOLAFIN | C61: 608.95 | D61: 613.62 | E61: 617.23 | F61: 625.52 | G61: 629.13 | H61: 605.33 | I61: 601.72 | J61: 593.43 | K61: 610 | L61: 621.9 | M61: 0.006074
A62: 53 | B62: CIPLA | C62: 34.3 | D62: 35.10 | E62: 35.00 | F62: 35.70 | G62: 35.60 | H62: 34.40 | I62: 34.50 | J62: 33.80 | K62: 35.2 | L62: 35.8 | M62: 0.000338
A63: 54 | B63: COALINDIA | C63: 39 | D63: 40.50 | E63: 39.75 | F63: 40.50 | G63: 39.75 | H63: 39.75 | I63: 40.50 | J63: 39.75 | K63: 41.25 | L63: 41.25 | M63: 0.0003985
A64: 55 | B64: COLPAL | C64: 61.25 | D64: 63.12 | E64: 62.18 | F64: 63.12 | G64: 62.18 | H64: 62.18 | I64: 63.12 | J64: 62.18 | K64: 64.05 | L64: 64.05 | M64: 0.000624
A65: 56 | B65: CONCOR | C65: 91.75 | D65: 95.92 | E65: 93.83 | F65: 95.92 | G65: 93.83 | H65: 93.83 | I65: 95.92 | J65: 93.83 | K65: 98 | L65: 98 | M65: 0.000944
A66: 57 | B66: COROMANDEL | C66: 216.25 | D66: 219.82 | E66: 218.03 | F66: 219.82 | G66: 218.03 | H66: 218.03 | I66: 219.82 | J66: 218.03 | K66: 221.6 | L66: 221.6 | M66: 0.002199
A67: 58 | B67: CROMPTON | C67: 735 | D67: 761.15 | E67: 751.60 | F67: 768.20 | G67: 758.65 | H67: 744.55 | I67: 754.10 | J67: 737.50 | K67: 770.7 | L67: 777.75 | M67: 0.007695
A68: 59 | B68: CUMMINSIND | C68: 756.5 | D68: 782.85 | E68: 802.65 | F68: 848.80 | G68: 868.60 | H68: 736.70 | I68: 716.90 | J68: 670.75 | K68: 763.05 | L68: 829 | M68: 0.007609
A69: 60 | B69: DLF | C69: 416 | D69: 422.98 | E69: 429.52 | F69: 443.03 | G69: 449.57 | H69: 409.47 | I69: 402.93 | J69: 389.42 | K69: 416.45 | L69: 436.5 | M69: 0.0041605
A70: 61 | B70: DABUR | C70: 129 | D70: 131.07 | E70: 132.43 | F70: 135.87 | G70: 137.23 | H70: 127.63 | I70: 126.27 | J70: 122.83 | K70: 129.7 | L70: 134.5 | M70: 0.001297
A71: 62 | B71: DALMIABHA | C71: 123.05 | D71: 127.98 | E71: 125.97 | F71: 128.88 | G71: 126.87 | H71: 125.07 | I71: 127.08 | J71: 124.17 | K71: 130 | L71: 130.9 | M71: 0.001288
A72: 63 | B72: DHFL | C72: 1348.2 | D72: 1361.60 | E72: 1371.20 | F72: 1394.20 | G72: 1403.80 | H72: 1338.60 | I72: 1329.00 | J72: 1306.00 | K72: 1352 | L72: 1384.6 | M72: 0.0137845
A73: 64 | B73: DISHTV | C73: 213.15 | D73: 220.02 | E73: 217.23 | F73: 221.32 | G73: 218.53 | H73: 215.93 | I73: 218.72 | J73: 214.63 | K73: 222.8 | L73: 224.1 | M73: 0.002231
A74: 65 | B74: DIVISLAB | C74: 1489 | D74: 1499.60 | E74: 1499.10 | F74: 1509.20 | G74: 1508.70 | H74: 1489.50 | I74: 1490.00 | J74: 1479.90 | K74: 1500.1 | L74: 1509.7 | M74: 0.0149065
A75: 66 | B75: LALPATHLAB | C75: 39 | D75: 40.27 | E75: 39.63 | F75: 40.27 | G75: 39.63 | H75: 39.63 | I75: 40.27 | J75: 39.63 | K75: 40.9 | L75: 40.9 | M75: 0.000396
A76: 67 | B76: DRREDDY | C76: 28.5 | D76: 29.70 | E76: 29.10 | F76: 29.70 | G76: 29.10 | H76: 29.10 | I76: 29.70 | J76: 29.10 | K76: 30.3 | L76: 30.3 | M76: 0.0002925
A77: 68 | B77: EDELWEISS | C77: 273.1 | D77: 276.28 | E77: 276.82 | F77: 280.53 | G77: 281.07 | H77: 272.57 | I77: 272.03 | J77: 268.32 | K77: 275.75 | L77: 280 | M77: 0.002744
A78: 69 | B78: EICHERMOT | C78: 562 | D78: 588.67 | E78: 592.28 | F78: 622.57 | G78: 626.18 | H78: 558.38 | I78: 554.77 | J78: 524.48 | K78: 585.05 | L78: 618.95 | M78: 0.005832
A79: 70 | B79: EMAMILTD | C79: 173.15 | D79: 178.38 | E79: 175.77 | F79: 178.38 | G79: 175.77 | H79: 175.77 | I79: 178.38 | J79: 175.77 | K79: 181 | L79: 181 | M79: 0.001796
A80: 71 | B80: ENDURANCE | C80: 673.05 | D80: 684.25 | E80: 678.65 | F80: 684.25 | G80: 678.65 | H80: 678.65 | I80: 684.25 | J80: 678.65 | K80: 689.85 | L80: 689.85 | M80: 0.006896
A81: 72 | B81: ENGINERSIN | C81: 263 | D81: 274.33 | E81: 278.67 | F81: 294.33 | G81: 298.67 | H81: 258.67 | I81: 254.33 | J81: 238.67 | K81: 270 | L81: 290 | M81: 0.0027589
A82: 73 | B82: EXIDEIND | C82: 56.85 | D82: 59.00 | E82: 58.10 | F82: 59.35 | G82: 58.45 | H82: 57.75 | I82: 58.65 | J82: 57.40 | K82: 59.9 | L82: 60.25 | M82: 0.0005955
A83: 74 | B83: FEDERALBNK | C83: 210.7 | D83: 220.00 | E83: 216.30 | F83: 221.90 | G83: 218.20 | H83: 214.40 | I83: 218.10 | J83: 212.50 | K83: 223.7 | L83: 225.6 | M83: 0.0022405
A84: 75 | B84: GAIL | C84: 297.05 | D84: 309.18 | E84: 303.12 | F84: 309.18 | G84: 303.12 | H84: 303.12 | I84: 309.18 | J84: 303.12 | K84: 315.25 | L84: 315.25 | M84: 0.002968
A85: 76 | B85: GMRINFRA | C85: 447.95 | D85: 471.65 | E85: 464.30 | F85: 480.65 | G85: 473.30 | H85: 455.30 | I85: 462.65 | J85: 446.30 | K85: 479 | L85: 488 | M85: 0.0047645
A86: 77 | B86: GSKCONS | C86: 178.3 | D86: 180.43 | E86: 181.87 | F86: 185.43 | G86: 186.87 | H86: 176.87 | I86: 175.43 | J86: 171.87 | K86: 179 | L86: 184 | M86: 0.0017845
A87: 78 | B87: GLAXO | C87: 120.3 | D87: 124.85 | E87: 123.25 | F87: 126.20 | G87: 124.60 | H87: 121.90 | I87: 123.50 | J87: 120.55 | K87: 126.45 | L87: 127.8 | M87: 0.001243
A88: 79 | B88: GLENMARK | C88: 25.5 | D88: 26.73 | E88: 26.57 | F88: 27.63 | G88: 27.47 | H88: 25.67 | I88: 25.83 | J88: 24.77 | K88: 26.9 | L88: 27.8 | M88: 0.000265
A89: 80 | B89: GODREJCP | C89: 790 | D89: 804.42 | E89: 807.58 | F89: 825.17 | G89: 828.33 | H89: 786.83 | I89: 783.67 | J89: 766.08 | K89: 801.25 | L89: 822 | M89: 0.0080525
A90: 81 | B90: GODREJIND | C90: 101.6 | D90: 104.47 | E90: 104.63 | F90: 107.67 | G90: 107.83 | H90: 101.43 | I90: 101.27 | J90: 98.23 | K90: 104.3 | L90: 107.5 | M90: 0.001028
A91: 82 | B91: GRUH | C91: 30.4 | D91: 31.00 | E91: 31.30 | F91: 32.20 | G91: 32.50 | H91: 30.10 | I91: 29.80 | J91: 28.90 | K91: 30.7 | L91: 31.9 | M91: 0.000312
A92: 83 | B92: GPPL | C92: 184 | D92: 187.00 | E92: 189.00 | F92: 194.00 | G92: 196.00 | H92: 182.00 | I92: 180.00 | J92: 175.00 | K92: 185 | L92: 192 | M92: 0.001837
A93: 84 | B93: GSPL | C93: 72.8 | D93: 76.68 | E93: 75.22 | F93: 77.63 | G93: 76.17 | H93: 74.27 | I93: 75.73 | J93: 73.32 | K93: 78.15 | L93: 79.1 | M93: 0.000781
A94: 85 | B94: HCLTECH | C94: 1871.35 | D94: 1893.62 | E94: 1890.23 | F94: 1909.12 | G94: 1905.73 | H94: 1874.73 | I94: 1878.12 | J94: 1859.23 | K94: 1897 | L94: 1912.5 | M94: 0.0188325
A95: 86 | B95: HDFCBANK | C95: 508.1 | D95: 518.05 | E95: 515.35 | F95: 522.60 | G95: 519.90 | H95: 510.80 | I95: 513.50 | J95: 506.25 | K95: 520.75 | L95: 525.3 | M95: 0.0051805
A96: 87 | B96: HAVELLS | C96: 47.1 | D96: 48.65 | E96: 48.65 | F96: 50.20 | G96: 50.20 | H96: 47.10 | I96: 47.10 | J96: 45.55 | K96: 48.65 | L96: 50.2 | M96: 0.0004855
A97: 88 | B97: HEROMOTOCO | C97: 440.65 | D97: 449.62 | E97: 449.23 | F97: 457.82 | G97: 457.43 | H97: 441.03 | I97: 441.42 | J97: 432.83 | K97: 450 | L97: 458.2 | M97: 0.004489
A98: 89 | B98: HEXAWARE | C98: 333.35 | D98: 336.33 | E98: 335.87 | F98: 338.38 | G98: 337.92 | H98: 333.82 | I98: 334.28 | J98: 331.77 | K98: 336.8 | L98: 338.85 | M98: 0.0033595
A99: 90 | B99: HINDALCO | C99: 2.6 | D99: 2.73 | E99: 2.67 | F99: 2.73 | G99: 2.67 | H99: 2.67 | I99: 2.73 | J99: 2.67 | K99: 2.8 | L99: 2.8 | M99: 2.7e-05
A100: 91 | B100: HINDPETRO | C100: 5.85 | D100: 6.12 | E100: 6.08 | F100: 6.32 | G100: 6.28 | H100: 5.88 | I100: 5.92 | J100: 5.68 | K100: 6.15 | L100: 6.35 | M100: 6.15e-05
A101: 92 | B101: HINDUNILVR | C101: 1464.65 | D101: 1496.88 | E101: 1481.77 | F101: 1498.88 | G101: 1483.77 | H101: 1479.77 | I101: 1494.88 | J101: 1477.77 | K101: 1512 | L101: 1514 | M101: 0.015089
A102: 93 | B102: HINDZINC | C102: 307 | D102: 316.12 | E102: 312.23 | F102: 317.47 | G102: 313.58 | H102: 310.88 | I102: 314.77 | J102: 309.53 | K102: 320 | L102: 321.35 | M102: 0.0032685
A103: 94 | B103: HUDCO | C103: 64.75 | D103: 65.42 | E103: 65.08 | F103: 65.42 | G103: 65.08 | H103: 65.08 | I103: 65.42 | J103: 65.08 | K103: 65.75 | L103: 65.75 | M103: 0.0006565
A104: 95 | B104: HDFC | C104: 1946 | D104: 1958.00 | E104: 1966.00 | F104: 1986.00 | G104: 1994.00 | H104: 1938.00 | I104: 1930.00 | J104: 1910.00 | K104: 1950 | L104: 1978 | M104: 0.019443
A105: 96 | B105: ITC | C105: 7.6 | D105: 7.87 | E105: 8.13 | F105: 8.67 | G105: 8.93 | H105: 7.33 | I105: 7.07 | J105: 6.53 | K105: 7.6 | L105: 8.4 | M105: 8e-05
A106: 97 | B106: ICICIBANK | C106: 275.55 | D106: 280.98 | E106: 278.32 | F106: 281.08 | G106: 278.42 | H106: 278.22 | I106: 280.88 | J106: 278.12 | K106: 283.65 | L106: 283.75 | M106: 0.002842
A107: 98 | B107: ICICIPRULI | C107: 426 | D107: 430.53 | E107: 434.97 | F107: 443.93 | G107: 448.37 | H107: 421.57 | I107: 417.13 | J107: 408.17 | K107: 426.1 | L107: 439.5 | M107: 0.004263
A108: 99 | B108: IDBI | C108: 64.6 | D108: 66.12 | E108: 65.48 | F108: 66.37 | G108: 65.73 | H108: 65.23 | I108: 65.87 | J108: 64.98 | K108: 66.75 | L108: 67 | M108: 0.0006615
A109: 100 | B109: IDFCBANK | C109: 47.55 | D109: 48.13 | E109: 48.02 | F109: 48.48 | G109: 48.37 | H109: 47.67 | I109: 47.78 | J109: 47.32 | K109: 48.25 | L109: 48.6 | M109: 0.0004835
A110: 101 | B110: IDFC | C110: 57.15 | D110: 58.32 | E110: 58.03 | F110: 58.92 | G110: 58.63 | H110: 57.43 | I110: 57.72 | J110: 56.83 | K110: 58.6 | L110: 59.2 | M110: 0.000587
A111: 102 | B111: IRB | C111: 726.05 | D111: 744.73 | E111: 736.47 | F111: 746.88 | G111: 738.62 | H111: 734.32 | I111: 742.58 | J111: 732.17 | K111: 753 | L111: 755.15 | M111: 0.007517
A112: 103 | B112: IDEA | C112: 66.5 | D112: 68.43 | E112: 67.47 | F112: 68.43 | G112: 67.47 | H112: 67.47 | I112: 68.43 | J112: 67.47 | K112: 69.4 | L112: 69.4 | M112: 0.0006915
A113: 104 | B113: IBULHSGFIN | C113: 1286.55 | D113: 1307.17 | E113: 1298.33 | F113: 1310.12 | G113: 1301.28 | H113: 1295.38 | I113: 1304.22 | J113: 1292.43 | K113: 1316 | L113: 1318.95 | M113: 0.01307
A114: 105 | B114: INDIANB | C114: 303.6 | D114: 316.65 | E114: 311.10 | F114: 318.60 | G114: 313.05 | H114: 309.15 | I114: 314.70 | J114: 307.20 | K114: 322.2 | L114: 324.15 | M114: 0.003215
A115: 106 | B115: INDHOTEL | C115: 145.1 | D115: 148.28 | E115: 147.12 | F115: 149.13 | G115: 147.97 | H115: 146.27 | I115: 147.43 | J115: 145.42 | K115: 149.45 | L115: 150.3 | M115: 0.0014795
A116: 107 | B116: IOC | C116: 16 | D116: 16.17 | E116: 16.33 | F116: 16.67 | G116: 16.83 | H116: 15.83 | I116: 15.67 | J116: 15.33 | K116: 16 | L116: 16.5 | M116: 0.000161
A117: 108 | B117: IGL | C117: 723.15 | D117: 757.05 | E117: 746.35 | F117: 769.55 | G117: 758.85 | H117: 733.85 | I117: 744.55 | J117: 721.35 | K117: 767.75 | L117: 780.25 | M117: 0.0076775
A118: 109 | B118: INDUSINDBK | C118: 186.35 | D118: 190.02 | E118: 190.83 | F118: 195.32 | G118: 196.13 | H118: 185.53 | I118: 184.72 | J118: 180.23 | K118: 189.2 | L118: 194.5 | M118: 0.0018965
A119: 110 | B119: NAUKRI | C119: 55.6 | D119: 56.72 | E119: 56.38 | F119: 57.17 | G119: 56.83 | H119: 55.93 | I119: 56.27 | J119: 55.48 | K119: 57.05 | L119: 57.5 | M119: 0.0005705
A120: 111 | B120: INFY | C120: 312.35 | D120: 315.23 | E120: 315.52 | F120: 318.68 | G120: 318.97 | H120: 312.07 | I120: 311.78 | J120: 308.62 | K120: 314.95 | L120: 318.4 | M120: 0.003131
A121: 112 | B121: INDIGO | C121: 1331.1 | D121: 1385.57 | E121: 1358.33 | F121: 1385.57 | G121: 1358.33 | H121: 1358.33 | I121: 1385.57 | J121: 1358.33 | K121: 1412.8 | L121: 1412.8 | M121: 0.014028
A122: 113 | B122: IPCALAB | C122: 321 | D122: 330.50 | E122: 329.30 | F122: 337.60 | G122: 336.40 | H122: 322.20 | I122: 323.40 | J122: 315.10 | K122: 331.7 | L122: 338.8 | M122: 0.003308
A123: 114 | B123: JSWENERGY | C123: 81.5 | D123: 84.43 | E123: 83.07 | F123: 84.63 | G123: 83.27 | H123: 82.87 | I123: 84.23 | J123: 82.67 | K123: 85.8 | L123: 86 | M123: 0.0008475
A124: 115 | B124: JSWSTEEL | C124: 314.05 | D124: 323.22 | E124: 318.63 | F124: 323.22 | G124: 318.63 | H124: 318.63 | I124: 323.22 | J124: 318.63 | K124: 327.8 | L124: 327.8 | M124: 0.00325
A125: 116 | B125: JINDALSTEL | C125: 236.2 | D125: 247.30 | E125: 242.15 | F125: 248.10 | G125: 242.95 | H125: 241.35 | I125: 246.50 | J125: 240.55 | K125: 252.45 | L125: 253.25 | M125: 0.002521
A126: 117 | B126: JUBLFOOD | C126: 2520.15 | D126: 2556.65 | E126: 2558.30 | F126: 2596.45 | G126: 2598.10 | H126: 2518.50 | I126: 2516.85 | J126: 2478.70 | K126: 2555 | L126: 2594.8 | M126: 0.0254025
A127: 118 | B127: JUBILANT | C127: 830 | D127: 865.42 | E127: 851.03 | F127: 872.07 | G127: 857.68 | H127: 844.38 | I127: 858.77 | J127: 837.73 | K127: 879.8 | L127: 886.45 | M127: 0.008796
A128: 119 | B128: KARURVYSYA | C128: 104.8 | D128: 108.27 | E128: 106.53 | F128: 108.27 | G128: 106.53 | H128: 106.53 | I128: 108.27 | J128: 106.53 | K128: 110 | L128: 110 | M128: 0.001089
A129: 120 | B129: KOTAKBANK | C129: 318.5 | D129: 325.92 | E129: 324.58 | F129: 330.67 | G129: 329.33 | H129: 319.83 | I129: 321.17 | J129: 315.08 | K129: 327.25 | L129: 332 | M129: 0.0032465
A130: 121 | B130: L&TFH | C130: 130.5 | D130: 132.88 | E130: 132.72 | F130: 134.93 | G130: 134.77 | H130: 130.67 | I130: 130.83 | J130: 128.62 | K130: 133.05 | L130: 135.1 | M130: 0.001324
A131: 122 | B131: LICHSGFIN | C131: 75.2 | D131: 77.27 | E131: 78.73 | F131: 82.27 | G131: 83.73 | H131: 73.73 | I131: 72.27 | J131: 68.73 | K131: 75.8 | L131: 80.8 | M131: 0.0007555
A132: 123 | B132: LT | C132: 0.9 | D132: 0.90 | E132: 0.90 | F132: 0.90 | G132: 0.90 | H132: 0.90 | I132: 0.90 | J132: 0.90 | K132: 0.9 | L132: 0.9 | M132: 9.5e-06
A133: 124 | B133: LUPIN | C133: 3.65 | D133: 3.82 | E133: 3.73 | F133: 3.82 | G133: 3.73 | H133: 3.73 | I133: 3.82 | J133: 3.73 | K133: 3.9 | L133: 3.9 | M133: 3.8e-05
A134: 125 | B134: MRF | C134: 2.75 | D134: 2.85 | E134: 2.85 | F134: 2.95 | G134: 2.95 | H134: 2.75 | I134: 2.75 | J134: 2.65 | K134: 2.85 | L134: 2.95 | M134: 2.85e-05
A135: 126 | B135: MGL | C135: 80.25 | D135: 81.92 | E135: 81.53 | F135: 82.82 | G135: 82.43 | H135: 80.63 | I135: 81.02 | J135: 79.73 | K135: 82.3 | L135: 83.2 | M135: 0.000827
A136: 127 | B136: M&MFIN | C136: 864.55 | D136: 878.97 | E136: 881.18 | F136: 897.82 | G136: 900.03 | H136: 862.33 | I136: 860.12 | J136: 843.48 | K136: 876.75 | L136: 895.6 | M136: 0.0087645
A137: 128 | B137: M&M | C137: 2260 | D137: 2297.93 | E137: 2285.87 | F137: 2311.73 | G137: 2299.67 | H137: 2272.07 | I137: 2284.13 | J137: 2258.27 | K137: 2310 | L137: 2323.8 | M137: 0.022928
A138: 129 | B138: MANAPPURAM | C138: 555 | D138: 571.13 | E138: 563.07 | F138: 571.13 | G138: 563.07 | H138: 563.07 | I138: 571.13 | J138: 563.07 | K138: 579.2 | L138: 579.2 | M138: 0.0057545
A139: 130 | B139: MRPL | C139: 350.2 | D139: 353.20 | E139: 352.80 | F139: 355.40 | G139: 355.00 | H139: 350.60 | I139: 351.00 | J139: 348.40 | K139: 353.6 | L139: 355.8 | M139: 0.003527
A140: 131 | B140: MARICO | C140: 129.75 | D140: 134.20 | E140: 134.45 | F140: 139.15 | G140: 139.40 | H140: 129.50 | I140: 129.25 | J140: 124.55 | K140: 133.95 | L140: 138.9 | M140: 0.001332
A141: 132 | B141: MARUTI | C141: 391.3 | D141: 400.42 | E141: 398.88 | F141: 406.47 | G141: 404.93 | H141: 392.83 | I141: 394.37 | J141: 386.78 | K141: 401.95 | L141: 408 | M141: 0.004005
A142: 133 | B142: MFSL | C142: 113.15 | D142: 115.35 | E142: 116.70 | F142: 120.25 | G142: 121.60 | H142: 111.80 | I142: 110.45 | J142: 106.90 | K142: 114 | L142: 118.9 | M142: 0.001139
A143: 134 | B143: MINDTREE | C143: 883.65 | D143: 890.32 | E143: 890.63 | F143: 897.62 | G143: 897.93 | H143: 883.33 | I143: 883.02 | J143: 876.03 | K143: 890 | L143: 897.3 | M143: 0.008894
A144: 135 | B144: MOTHERSUMI | C144: 13.2 | D144: 13.20 | E144: 13.20 | F144: 13.20 | G144: 13.20 | H144: 13.20 | I144: 13.20 | J144: 13.20 | K144: 13.2 | L144: 13.2 | M144: 0.0001385
A145: 136 | B145: MPHASIS | C145: 41.65 | D145: 42.20 | E145: 42.20 | F145: 42.75 | G145: 42.75 | H145: 41.65 | I145: 41.65 | J145: 41.10 | K145: 42.2 | L145: 42.75 | M145: 0.000428
A146: 137 | B146: MUTHOOTFIN | C146: 71 | D146: 72.87 | E146: 72.53 | F146: 74.07 | G146: 73.73 | H146: 71.33 | I146: 71.67 | J146: 70.13 | K146: 73.2 | L146: 74.4 | M146: 0.000726
A147: 138 | B147: NATCOPHARM | C147: 41.55 | D147: 42.40 | E147: 43.15 | F147: 44.75 | G147: 45.50 | H147: 40.80 | I147: 40.05 | J147: 38.45 | K147: 41.65 | L147: 44 | M147: 0.0004165
A148: 139 | B148: NBCC | C148: 78.9 | D148: 80.47 | E148: 79.93 | F148: 80.97 | G148: 80.43 | H148: 79.43 | I148: 79.97 | J148: 78.93 | K148: 81 | L148: 81.5 | M148: 0.0008055
A149: 140 | B149: NHPC | C149: 51.6 | D149: 53.63 | E149: 52.82 | F149: 54.03 | G149: 53.22 | H149: 52.42 | I149: 53.23 | J149: 52.02 | K149: 54.45 | L149: 54.85 | M149: 0.0005415
A150: 141 | B150: NMDC | C150: 1679.6 | D150: 1705.73 | E150: 1692.67 | F150: 1705.73 | G150: 1692.67 | H150: 1692.67 | I150: 1705.73 | J150: 1692.67 | K150: 1718.8 | L150: 1718.8 | M150: 0.0170505
A151: 142 | B151: NTPC | C151: 123.35 | D151: 124.72 | E151: 124.43 | F151: 125.52 | G151: 125.23 | H151: 123.63 | I151: 123.92 | J151: 122.83 | K151: 125 | L151: 125.8 | M151: 0.00125
A152: 143 | B152: NATIONALUM | C152: 132.1 | D152: 135.92 | E152: 135.68 | F152: 139.27 | G152: 139.03 | H152: 132.33 | I152: 132.57 | J152: 128.98 | K152: 136.15 | L152: 139.5 | M152: 0.001355
A153: 144 | B153: OBEROIRLTY | C153: 9 | D153: 9.13 | E153: 9.07 | F153: 9.13 | G153: 9.07 | H153: 9.07 | I153: 9.13 | J153: 9.07 | K153: 9.2 | L153: 9.2 | M153: 8.8e-05
A154: 145 | B154: ONGC | C154: 4194.85 | D154: 4272.55 | E154: 4260.10 | F154: 4325.35 | G154: 4312.90 | H154: 4207.30 | I154: 4219.75 | J154: 4154.50 | K154: 4285 | L154: 4337.8 | M154: 0.043101
A155: 146 | B155: OIL | C155: 3.15 | D155: 3.22 | E155: 3.23 | F155: 3.32 | G155: 3.33 | H155: 3.13 | I155: 3.12 | J155: 3.03 | K155: 3.2 | L155: 3.3 | M155: 3.25e-05
A156: 147 | B156: OFSS | C156: 1223.4 | D156: 1241.60 | E156: 1259.80 | F156: 1296.20 | G156: 1314.40 | H156: 1205.20 | I156: 1187.00 | J156: 1150.60 | K156: 1223.4 | L156: 1278 | M156: 0.012551
A157: 148 | B157: PCJEWELLER | C157: 8.4 | D157: 8.90 | E157: 8.65 | F157: 8.90 | G157: 8.65 | H157: 8.65 | I157: 8.90 | J157: 8.65 | K157: 9.15 | L157: 9.15 | M157: 8.7e-05
A158: 149 | B158: PIIND | C158: 224.6 | D158: 226.75 | E158: 225.85 | F158: 227.10 | G158: 226.20 | H158: 225.50 | I158: 226.40 | J158: 225.15 | K158: 227.65 | L158: 228 | M158: 0.002268
A159: 150 | B159: PNBHOUSING | C159: 252.15 | D159: 259.47 | E159: 258.03 | F159: 263.92 | G159: 262.48 | H159: 253.58 | I159: 255.02 | J159: 249.13 | K159: 260.9 | L159: 265.35 | M159: 0.002608
A160: 151 | B160: PAGEIND | C160: 143.35 | D160: 146.53 | E160: 145.57 | F160: 147.78 | G160: 146.82 | H160: 144.32 | I160: 145.28 | J160: 143.07 | K160: 147.5 | L160: 148.75 | M160: 0.00142
A161: 152 | B161: PETRONET | C161: 102.3 | D161: 134.82 | E161: 121.63 | F161: 140.97 | G161: 127.78 | H161: 115.48 | I161: 128.67 | J161: 109.33 | K161: 148 | L161: 154.15 | M161: 0.001445
A162: 153 | B162: PIDILITIND | C162: 761.1 | D162: 794.97 | E162: 779.93 | F162: 798.77 | G162: 783.73 | H162: 776.13 | I162: 791.17 | J162: 772.33 | K162: 810 | L162: 813.8 | M162: 0.0080765
A163: 154 | B163: PEL | C163: 14.95 | D163: 15.43 | E163: 15.87 | F163: 16.78 | G163: 17.22 | H163: 14.52 | I163: 14.08 | J163: 13.17 | K163: 15 | L163: 16.35 | M163: 0.000149
A164: 155 | B164: PFC | C164: 27.05 | D164: 28.05 | E164: 27.90 | F164: 28.75 | G164: 28.60 | H164: 27.20 | I164: 27.35 | J164: 26.50 | K164: 28.2 | L164: 28.9 | M164: 0.000282
A165: 156 | B165: POWERGRID | C165: 92.55 | D165: 94.82 | E165: 93.73 | F165: 94.92 | G165: 93.83 | H165: 93.63 | I165: 94.72 | J165: 93.53 | K165: 95.9 | L165: 96 | M165: 0.000954
A166: 157 | B166: PRESTIGE | C166: 10.65 | D166: 10.97 | E166: 11.03 | F166: 11.42 | G166: 11.48 | H166: 10.58 | I166: 10.52 | J166: 10.13 | K166: 10.9 | L166: 11.35 | M166: 0.0001085
A167: 158 | B167: PGHH | C167: 2566.1 | D167: 2598.10 | E167: 2587.20 | F167: 2608.30 | G167: 2597.40 | H167: 2577.00 | I167: 2587.90 | J167: 2566.80 | K167: 2609 | L167: 2619.2 | M167: 0.025996
A168: 159 | B168: PNB | C168: 9465 | D168: 9575.17 | E168: 9613.83 | F168: 9762.67 | G168: 9801.33 | H168: 9426.33 | I168: 9387.67 | J168: 9238.83 | K168: 9536.5 | L168: 9724 | M168: 0.095367
A169: 160 | B169: RBLBANK | C169: 31.3 | D169: 32.88 | E169: 32.32 | F169: 33.33 | G169: 32.77 | H169: 31.87 | I169: 32.43 | J169: 31.42 | K169: 33.45 | L169: 33.9 | M169: 0.000329
A170: 161 | B170: RAJESHEXPO | C170: 509.1 | D170: 529.70 | E170: 519.40 | F170: 529.70 | G170: 519.40 | H170: 519.40 | I170: 529.70 | J170: 519.40 | K170: 540 | L170: 540 | M170: 0.0053885
A171: 162 | B171: RELCAPITAL | C171: 454.35 | D171: 465.97 | E171: 465.93 | F171: 477.52 | G171: 477.48 | H171: 454.38 | I171: 454.42 | J171: 442.83 | K171: 466 | L171: 477.55 | M171: 0.0046595
A172: 163 | B172: RCOM | C172: 219.55 | D172: 221.52 | E172: 222.03 | F172: 224.52 | G172: 225.03 | H172: 219.03 | I172: 218.52 | J172: 216.03 | K172: 221 | L172: 224 | M172: 0.0022045
A173: 164 | B173: RELIANCE | C173: 2648.9 | D173: 2684.63 | E173: 2689.27 | F173: 2729.63 | G173: 2734.27 | H173: 2644.27 | I173: 2639.63 | J173: 2599.27 | K173: 2680 | L173: 2725 | M173: 0.0269175
A174: 165 | B174: RELINFRA | C174: 1106.55 | D174: 1125.83 | E174: 1133.72 | F174: 1160.88 | G174: 1168.77 | H174: 1098.67 | I174: 1090.78 | J174: 1063.62 | K174: 1117.95 | L174: 1153 | M174: 0.0111205
A175: 166 | B175: RPOWER | C175: 445.25 | D175: 455.62 | E175: 453.23 | F175: 461.22 | G175: 458.83 | H175: 447.63 | I175: 450.02 | J175: 442.03 | K175: 458 | L175: 463.6 | M175: 0.0045755
A176: 167 | B176: RECLTD | C176: 26.3 | D176: 27.83 | E176: 27.07 | F176: 27.83 | G176: 27.07 | H176: 27.07 | I176: 27.83 | J176: 27.07 | K176: 28.6 | L176: 28.6 | M176: 0.0002755
A177: 168 | B177: SRF | C177: 350.1 | D177: 360.33 | E177: 357.62 | F177: 365.13 | G177: 362.42 | H177: 352.82 | I177: 355.53 | J177: 348.02 | K177: 363.05 | L177: 367.85 | M177: 0.003587
A178: 169 | B178: SHREECEM | C178: 39.25 | D178: 39.85 | E178: 40.45 | F178: 41.65 | G178: 42.25 | H178: 38.65 | I178: 38.05 | J178: 36.85 | K178: 39.25 | L178: 41.05 | M178: 0.0004105
A179: 170 | B179: SRTRANSFIN | C179: 408.95 | D179: 418.58 | E179: 417.17 | F179: 425.38 | G179: 423.97 | H179: 410.37 | I179: 411.78 | J179: 403.57 | K179: 420 | L179: 426.8 | M179: 0.0042245
A180: 171 | B180: SIEMENS | C180: 126.6 | D180: 128.18 | E180: 129.12 | F180: 131.63 | G180: 132.57 | H180: 125.67 | I180: 124.73 | J180: 122.22 | K180: 127.25 | L180: 130.7 | M180: 0.0012665
A181: 172 | B181: SBIN | C181: 1066 | D181: 1076.08 | E181: 1082.87 | F181: 1099.73 | G181: 1106.52 | H181: 1059.22 | I181: 1052.43 | J181: 1035.57 | K181: 1069.3 | L181: 1092.95 | M181: 0.0108945
A182: 173 | B182: SAIL | C182: 16.81 | D182: 17.00 | E182: 16.91 | F182: 17.00 | G182: 16.91 | H182: 16.91 | I182: 17.00 | J182: 16.91 | K182: 17.1 | L182: 17.1 | M182: 0.000171
A183: 174 | B183: SPARC | C183: 103.85 | D183: 104.95 | E183: 104.75 | F183: 105.65 | G183: 105.45 | H183: 104.05 | I183: 104.25 | J183: 103.35 | K183: 105.15 | L183: 105.85 | M183: 0.0010515
A184: 175 | B184: SUNPHARMA | C184: 116.55 | D184: 121.25 | E184: 120.00 | F184: 123.45 | G184: 122.20 | H184: 117.80 | I184: 119.05 | J184: 115.60 | K184: 122.5 | L184: 124.7 | M184: 0.0012265
A185: 176 | B185: SUNTV | C185: 13.7 | D185: 14.33 | E185: 14.87 | F185: 16.03 | G185: 16.57 | H185: 13.17 | I185: 12.63 | J185: 11.47 | K185: 13.8 | L185: 15.5 | M185: 0.0001465
A186: 177 | B186: SUZLON | C186: 584.3 | D186: 594.72 | E186: 589.58 | F186: 594.87 | G186: 589.73 | H186: 589.43 | I186: 594.57 | J186: 589.28 | K186: 599.85 | L186: 600 | M186: 0.005971
A187: 178 | B187: SYNDIBANK | C187: 136.1 | D187: 141.07 | E187: 138.58 | F187: 141.07 | G187: 138.58 | H187: 138.58 | I187: 141.07 | J187: 138.58 | K187: 143.55 | L187: 143.55 | M187: 0.0014025
A188: 179 | B188: SYNGENE | C188: 308 | D188: 312.27 | E188: 315.53 | F188: 323.07 | G188: 326.33 | H188: 304.73 | I188: 301.47 | J188: 293.93 | K188: 309 | L188: 319.8 | M188: 0.003084
A189: 180 | B189: TV18BRDCST | C189: 349.7 | D189: 354.55 | E189: 353.10 | F189: 356.50 | G189: 355.05 | H189: 351.15 | I189: 352.60 | J189: 349.20 | K189: 356 | L189: 357.95 | M189: 0.0035405
A190: 181 | B190: TVSMOTOR | C190: 1368.55 | D190: 1407.02 | E190: 1391.53 | F190: 1414.52 | G190: 1399.03 | H190: 1384.03 | I190: 1399.52 | J190: 1376.53 | K190: 1422.5 | L190: 1430 | M190: 0.014185
A191: 182 | B191: TATACHEM | C191: 10.75 | D191: 10.85 | E191: 10.85 | F191: 10.95 | G191: 10.95 | H191: 10.75 | I191: 10.75 | J191: 10.65 | K191: 10.85 | L191: 10.95 | M191: 0.000109
A192: 183 | B192: TATACOMM | C192: 2010 | D192: 2049.97 | E192: 2089.93 | F192: 2169.87 | G192: 2209.83 | H192: 1970.03 | I192: 1930.07 | J192: 1850.13 | K192: 2010 | L192: 2129.9 | M192: 0.0212725
A193: 184 | B193: TCS | C193: 131.55 | D193: 134.68 | E193: 133.77 | F193: 135.98 | G193: 135.07 | H193: 132.47 | I193: 133.38 | J193: 131.17 | K193: 135.6 | L193: 136.9 | M193: 0.0013585
A194: 185 | B194: TATAGLOBAL | C194: 1784.55 | D194: 1830.08 | E194: 1839.47 | F194: 1894.38 | G194: 1903.77 | H194: 1775.17 | I194: 1765.78 | J194: 1710.87 | K194: 1820.7 | L194: 1885 | M194: 0.018207
A195: 186 | B195: TATAMTRDVR | C195: 221 | D195: 227.55 | E195: 228.05 | F195: 235.10 | G195: 235.60 | H195: 220.50 | I195: 220.00 | J195: 212.95 | K195: 227.05 | L195: 234.6 | M195: 0.0022585
A196: 187 | B196: TATAMOTORS | C196: 614.15 | D196: 622.62 | E196: 621.23 | F196: 628.32 | G196: 626.93 | H196: 615.53 | I196: 616.92 | J196: 609.83 | K196: 624 | L196: 629.7 | M196: 0.00624
A197: 188 | B197: TATAPOWER | C197: 215.2 | D197: 217.83 | E197: 219.22 | F197: 223.23 | G197: 224.62 | H197: 213.82 | I197: 212.43 | J197: 208.42 | K197: 216.45 | L197: 221.85 | M197: 0.002155
A198: 189 | B198: TATASTEEL | C198: 65.7 | D198: 69.60 | E198: 67.65 | F198: 69.60 | G198: 67.65 | H198: 67.65 | I198: 69.60 | J198: 67.65 | K198: 71.55 | L198: 71.55 | M198: 0.0006915
A199: 190 | B199: TECHM | C199: 289.4 | D199: 295.60 | E199: 293.80 | F199: 298.20 | G199: 296.40 | H199: 291.20 | I199: 293.00 | J199: 288.60 | K199: 297.4 | L199: 300 | M199: 0.0029755
A200: 191 | B200: RAMCOCEM | C200: 1374 | D200: 1381.23 | E200: 1377.62 | F200: 1381.23 | G200: 1377.62 | H200: 1377.62 | I200: 1381.23 | J200: 1377.62 | K200: 1384.85 | L200: 1384.85 | M200: 0.01385
A201: 192 | B201: TITAN | C201: 516.75 | D201: 519.83 | E201: 522.92 | F201: 529.08 | G201: 532.17 | H201: 513.67 | I201: 510.58 | J201: 504.42 | K201: 516.75 | L201: 526 | M201: 0.0052025
A202: 193 | B202: TORNTPHARM | C202: 22.35 | D202: 22.80 | E202: 22.70 | F202: 23.05 | G202: 22.95 | H202: 22.45 | I202: 22.55 | J202: 22.20 | K202: 22.9 | L202: 23.15 | M202: 0.000229
A203: 194 | B203: TORNTPOWER | C203: 6350 | D203: 6403.33 | E203: 6376.67 | F203: 6403.33 | G203: 6376.67 | H203: 6376.67 | I203: 6403.33 | J203: 6376.67 | K203: 6430 | L203: 6430 | M203: 0.0638565
A204: 195 | B204: UPL | C204: 386.5 | D204: 391.13 | E204: 391.27 | F204: 396.03 | G204: 396.17 | H204: 386.37 | I204: 386.23 | J204: 381.47 | K204: 391 | L204: 395.9 | M204: 0.0038995
A205: 196 | B205: ULTRACEMCO | C205: 90.55 | D205: 92.45 | E205: 92.15 | F205: 93.75 | G205: 93.45 | H205: 90.85 | I205: 91.15 | J205: 89.55 | K205: 92.75 | L205: 94.05 | M205: 0.0009385
... 29 more rows

Sheet MidCap Intra
L5: Back To Main Page
A6: FOR INTRA DAY TRADING | K6: =Main!B10 -> 2017-05-03
A9: Sr.no | B9: Scrip | C9: CLOSE RATE | D9: Pivot Point | E9: Supports | H9: Resistances
C10: Point | E10: S1 | F10: S2 | G10: S3 | H10: R1 | I10: R2 | J10: R3 | K10: HIGH | L10: LOW | M10: Total Trade Quanity in Lakhs
A11: 1 | B11: 3MINDIA | C11: 20320 | D11: 20625.13 | E11: 20724.87 | F11: 21129.73 | G11: 21229.47 | H11: 20220.27 | I11: 20120.53 | J11: 19715.67 | K11: 20525.4 | L11: 21030 | M11: 0.205241
A12: 2 | B12: 8KMILES | C12: 87 | D12: 89.52 | E12: 88.88 | F12: 90.77 | G12: 90.13 | H12: 87.63 | I12: 88.27 | J12: 86.38 | K12: 90.15 | L12: 91.4 | M12: 0.000904
A13: 3 | B13: ABB | C13: 170.55 | D13: 173.82 | E13: 172.63 | F13: 174.72 | G13: 173.53 | H13: 171.73 | I13: 172.92 | J13: 170.83 | K13: 175 | L13: 175.9 | M13: 0.00175
A14: 4 | B14: ACC | C14: 145.5 | D14: 146.48 | E14: 146.47 | F14: 147.43 | G14: 147.42 | H14: 145.52 | I14: 145.53 | J14: 144.57 | K14: 146.5 | L14: 147.45 | M14: 0.0014675
A15: 5 | B15: AIAENG | C15: 353.55 | D15: 371.38 | E15: 362.77 | F15: 371.98 | G15: 363.37 | H15: 362.17 | I15: 370.78 | J15: 361.57 | K15: 380 | L15: 380.6 | M15: 0.003625
A16: 6 | B16: APLAPOLLO | C16: 579 | D16: 597.33 | E16: 594.57 | F16: 610.13 | G16: 607.37 | H16: 581.77 | I16: 584.53 | J16: 568.97 | K16: 600.1 | L16: 612.9 | M16: 0.005943
A17: 7 | B17: AUBANK | C17: 445.1 | D17: 447.28 | E17: 449.07 | F17: 453.03 | G17: 454.82 | H17: 443.32 | I17: 441.53 | J17: 437.57 | K17: 445.5 | L17: 451.25 | M17: 0.0044425
A18: 8 | B18: AARTIIND | C18: 570 | D18: 577.52 | E18: 579.48 | F18: 588.97 | G18: 590.93 | H18: 568.03 | I18: 566.07 | J18: 556.58 | K18: 575.55 | L18: 587 | M18: 0.005737
A19: 9 | B19: ABAN | C19: 43.1 | D19: 45.70 | E19: 45.40 | F19: 47.70 | G19: 47.40 | H19: 43.40 | I19: 43.70 | J19: 41.40 | K19: 46 | L19: 48 | M19: 0.0004545
A20: 10 | B20: ADANIENT | C20: 180.4 | D20: 185.27 | E20: 183.03 | F20: 185.67 | G20: 183.43 | H20: 182.63 | I20: 184.87 | J20: 182.23 | K20: 187.5 | L20: 187.9 | M20: 0.001869
A21: 11 | B21: ADANIPORTS | C21: 124.2 | D21: 135.35 | E21: 130.35 | F21: 136.50 | G21: 131.50 | H21: 129.20 | I21: 134.20 | J21: 128.05 | K21: 140.35 | L21: 141.5 | M21: 0.001401
A22: 12 | B22: ADANIPOWER | C22: 397.3 | D22: 405.50 | E22: 403.00 | F22: 408.70 | G22: 406.20 | H22: 399.80 | I22: 402.30 | J22: 396.60 | K22: 408 | L22: 411.2 | M22: 0.004073
A23: 13 | B23: ADANITRANS | C23: 24.9 | D23: 25.52 | E23: 25.48 | F23: 26.07 | G23: 26.03 | H23: 24.93 | I23: 24.97 | J23: 24.38 | K23: 25.55 | L23: 26.1 | M23: 0.000257
A24: 14 | B24: ABFRL | C24: 159.1 | D24: 160.93 | E24: 161.37 | F24: 163.63 | G24: 164.07 | H24: 158.67 | I24: 158.23 | J24: 155.97 | K24: 160.5 | L24: 163.2 | M24: 0.0015975
A25: 15 | B25: ADVENZYMES | C25: 20.2 | D25: 21.38 | E25: 20.82 | F25: 21.43 | G25: 20.87 | H25: 20.77 | I25: 21.33 | J25: 20.72 | K25: 21.95 | L25: 22 | M25: 0.0002105
A26: 16 | B26: AEGISCHEM | C26: 67 | D26: 69.03 | E26: 68.87 | F26: 70.73 | G26: 70.57 | H26: 67.17 | I26: 67.33 | J26: 65.47 | K26: 69.2 | L26: 70.9 | M26: 0.000688
A27: 17 | B27: AHLUCONT | C27: 102.1 | D27: 104.63 | E27: 103.97 | F27: 105.83 | G27: 105.17 | H27: 102.77 | I27: 103.43 | J27: 101.57 | K27: 105.3 | L27: 106.5 | M27: 0.0010605
A28: 18 | B28: AJANTPHARM | C28: 1415 | D28: 1438.33 | E28: 1426.67 | F28: 1438.33 | G28: 1426.67 | H28: 1426.67 | I28: 1438.33 | J28: 1426.67 | K28: 1450 | L28: 1450 | M28: 0.0144385
A29: 19 | B29: AKZOINDIA | C29: 612.3 | D29: 623.62 | E29: 620.58 | F29: 628.87 | G29: 625.83 | H29: 615.33 | I29: 618.37 | J29: 610.08 | K29: 626.65 | L29: 631.9 | M29: 0.006289
A30: 20 | B30: APLLTD | C30: 630 | D30: 639.93 | E30: 634.97 | F30: 639.93 | G30: 634.97 | H30: 634.97 | I30: 639.93 | J30: 634.97 | K30: 644.9 | L30: 644.9 | M30: 0.0063715
A31: 21 | B31: ALKEM | C31: 56.9 | D31: 57.45 | E31: 57.45 | F31: 58.00 | G31: 58.00 | H31: 56.90 | I31: 56.90 | J31: 56.35 | K31: 57.45 | L31: 58 | M31: 0.0005735
A32: 22 | B32: ALBK | C32: 1920 | D32: 1930.12 | E32: 1927.28 | F32: 1934.57 | G32: 1931.73 | H32: 1922.83 | I32: 1925.67 | J32: 1918.38 | K32: 1932.95 | L32: 1937.4 | M32: 0.019267
A33: 23 | B33: ALLCARGO | C33: 74.2 | D33: 77.38 | E33: 76.77 | F33: 79.33 | G33: 78.72 | H33: 74.82 | I33: 75.43 | J33: 72.87 | K33: 78 | L33: 79.95 | M33: 0.0007875
A34: 24 | B34: AMARAJABAT | C34: 37.1 | D34: 37.90 | E34: 37.50 | F34: 37.90 | G34: 37.50 | H34: 37.50 | I34: 37.90 | J34: 37.50 | K34: 38.3 | L34: 38.3 | M34: 0.0003715
A35: 25 | B35: AMBUJACEM | C35: 1115.5 | D35: 1133.17 | E35: 1124.33 | F35: 1133.17 | G35: 1124.33 | H35: 1124.33 | I35: 1133.17 | J35: 1124.33 | K35: 1142 | L35: 1142 | M35: 0.011387
A36: 26 | B36: ANDHRABANK | C36: 25.65 | D36: 26.42 | E36: 26.73 | F36: 27.82 | G36: 28.13 | H36: 25.33 | I36: 25.02 | J36: 23.93 | K36: 26.1 | L36: 27.5 | M36: 0.0002695
A37: 27 | B37: APARINDS | C37: 21.8 | D37: 22.42 | E37: 22.68 | F37: 23.57 | G37: 23.83 | H37: 21.53 | I37: 21.27 | J37: 20.38 | K37: 22.15 | L37: 23.3 | M37: 0.000221
A38: 28 | B38: APOLLOHOSP | C38: 529.2 | D38: 531.63 | E38: 534.07 | F38: 538.93 | G38: 541.37 | H38: 526.77 | I38: 524.33 | J38: 519.47 | K38: 529.2 | L38: 536.5 | M38: 0.0053405
A39: 29 | B39: APOLLOTYRE | C39: 222.25 | D39: 228.38 | E39: 228.77 | F39: 235.28 | G39: 235.67 | H39: 221.87 | I39: 221.48 | J39: 214.97 | K39: 228 | L39: 234.9 | M39: 0.0022835
A40: 30 | B40: ARVIND | C40: 405.1 | D40: 417.92 | E40: 412.23 | F40: 419.37 | G40: 413.68 | H40: 410.78 | I40: 416.47 | J40: 409.33 | K40: 423.6 | L40: 425.05 | M40: 0.004236
A41: 31 | B41: ASHOKLEY | C41: 160.5 | D41: 163.82 | E41: 162.88 | F41: 165.27 | G41: 164.33 | H41: 161.43 | I41: 162.37 | J41: 159.98 | K41: 164.75 | L41: 166.2 | M41: 0.0016445
A42: 32 | B42: ASHOKA | C42: 275 | D42: 282.12 | E42: 279.33 | F42: 283.67 | G42: 280.88 | H42: 277.78 | I42: 280.57 | J42: 276.23 | K42: 284.9 | L42: 286.45 | M42: 0.0028425
A43: 33 | B43: ASIANPAINT | C43: 315 | D43: 323.33 | E43: 321.67 | F43: 328.33 | G43: 326.67 | H43: 316.67 | I43: 318.33 | J43: 311.67 | K43: 325 | L43: 330 | M43: 0.0032385
A44: 34 | B44: ASTRAZEN | C44: 106.65 | D44: 108.85 | E44: 109.70 | F44: 112.75 | G44: 113.60 | H44: 105.80 | I44: 104.95 | J44: 101.90 | K44: 108 | L44: 111.9 | M44: 0.001083
A45: 35 | B45: ASTRAL | C45: 166.45 | D45: 169.35 | E45: 167.90 | F45: 169.35 | G45: 167.90 | H45: 167.90 | I45: 169.35 | J45: 167.90 | K45: 170.8 | L45: 170.8 | M45: 0.0017055
A46: 36 | B46: ATUL | C46: 75.3 | D46: 78.20 | E46: 76.75 | F46: 78.20 | G46: 76.75 | H46: 76.75 | I46: 78.20 | J46: 76.75 | K46: 79.65 | L46: 79.65 | M46: 0.000785
A47: 37 | B47: AUROPHARMA | C47: 227.95 | D47: 233.33 | E47: 232.62 | F47: 237.28 | G47: 236.57 | H47: 228.67 | I47: 229.38 | J47: 224.72 | K47: 234.05 | L47: 238 | M47: 0.0023445
A48: 38 | B48: AVANTIFEED | C48: 363.45 | D48: 379.62 | E48: 381.23 | F48: 399.02 | G48: 400.63 | H48: 361.83 | I48: 360.22 | J48: 342.43 | K48: 378 | L48: 397.4 | M48: 0.003832
A49: 39 | B49: DMART | C49: 92.45 | D49: 94.53 | E49: 93.92 | F49: 95.38 | G49: 94.77 | H49: 93.07 | I49: 93.68 | J49: 92.22 | K49: 95.15 | L49: 96 | M49: 0.0009535
A50: 40 | B50: AXISBANK | C50: 36.85 | D50: 37.88 | E50: 37.37 | F50: 37.88 | G50: 37.37 | H50: 37.37 | I50: 37.88 | J50: 37.37 | K50: 38.4 | L50: 38.4 | M50: 0.0003745
A51: 41 | B51: BASF | C51: 15.7 | D51: 16.75 | E51: 16.25 | F51: 16.80 | G51: 16.30 | H51: 16.20 | I51: 16.70 | J51: 16.15 | K51: 17.25 | L51: 17.3 | M51: 0.000165
A52: 42 | B52: BEML | C52: 1028.8 | D52: 1060.55 | E52: 1055.00 | F52: 1081.20 | G52: 1075.65 | H52: 1034.35 | I52: 1039.90 | J52: 1013.70 | K52: 1066.1 | L52: 1086.75 | M52: 0.0106625
A53: 43 | B53: BFUTILITIE | C53: 411 | D53: 427.78 | E53: 420.47 | F53: 429.93 | G53: 422.62 | H53: 418.32 | I53: 425.63 | J53: 416.17 | K53: 435.1 | L53: 437.25 | M53: 0.0043725
A54: 44 | B54: BGRENERGY | C54: 106.2 | D54: 109.18 | E54: 109.47 | F54: 112.73 | G54: 113.02 | H54: 105.92 | I54: 105.63 | J54: 102.37 | K54: 108.9 | L54: 112.45 | M54: 0.0010825
A55: 45 | B55: BSE | C55: 2890 | D55: 2901.33 | E55: 2902.67 | F55: 2915.33 | G55: 2916.67 | H55: 2888.67 | I55: 2887.33 | J55: 2874.67 | K55: 2900 | L55: 2914 | M55: 0.02899
A56: 46 | B56: BAJAJ-AUTO | C56: 5.2 | D56: 5.33 | E56: 5.32 | F56: 5.43 | G56: 5.42 | H56: 5.22 | I56: 5.23 | J56: 5.12 | K56: 5.35 | L56: 5.45 | M56: 5.35e-05
A57: 47 | B57: BAJAJCORP | C57: 2950.05 | D57: 3004.37 | E57: 2989.08 | F57: 3028.12 | G57: 3012.83 | H57: 2965.33 | I57: 2980.62 | J57: 2941.58 | K57: 3019.65 | L57: 3043.4 | M57: 0.029526
A58: 48 | B58: BAJAJELEC | C58: 465.2 | D58: 472.32 | E58: 471.38 | F58: 477.57 | G58: 476.63 | H58: 466.13 | I58: 467.07 | J58: 460.88 | K58: 473.25 | L58: 478.5 | M58: 0.004799
A59: 49 | B59: BAJFINANCE | C59: 2676 | D59: 2700.45 | E59: 2695.25 | F59: 2714.50 | G59: 2709.30 | H59: 2681.20 | I59: 2686.40 | J59: 2667.15 | K59: 2705.65 | L59: 2719.7 | M59: 0.0270565
A60: 50 | B60: BAJAJFINSV | C60: 628.3 | D60: 646.82 | E60: 638.48 | F60: 648.67 | G60: 640.33 | H60: 636.63 | I60: 644.97 | J60: 634.78 | K60: 655.15 | L60: 657 | M60: 0.0065615
A61: 51 | B61: BAJAJHIND | C61: 5394 | D61: 5468.33 | E61: 5456.67 | F61: 5519.33 | G61: 5507.67 | H61: 5405.67 | I61: 5417.33 | J61: 5354.67 | K61: 5480 | L61: 5531 | M61: 0.054826
A62: 52 | B62: BAJAJHLDNG | C62: 8.5 | D62: 8.78 | E62: 8.72 | F62: 8.93 | G62: 8.87 | H62: 8.57 | I62: 8.63 | J62: 8.42 | K62: 8.85 | L62: 9 | M62: 8.75e-05
A63: 53 | B63: BALKRISIND | C63: 80 | D63: 81.58 | E63: 82.17 | F63: 84.33 | G63: 84.92 | H63: 79.42 | I63: 78.83 | J63: 76.67 | K63: 81 | L63: 83.75 | M63: 0.000812
A64: 54 | B64: BALLARPUR | C64: 1237.1 | D64: 1268.43 | E64: 1255.42 | F64: 1273.73 | G64: 1260.72 | H64: 1250.12 | I64: 1263.13 | J64: 1244.82 | K64: 1281.45 | L64: 1286.75 | M64: 0.012752
A65: 55 | B65: BALMLAWRIE | C65: 13 | D65: 13.23 | E65: 13.12 | F65: 13.23 | G65: 13.12 | H65: 13.12 | I65: 13.23 | J65: 13.12 | K65: 13.35 | L65: 13.35 | M65: 0.0001325
A66: 56 | B66: BALRAMCHIN | C66: 84.35 | D66: 85.15 | E66: 85.95 | F66: 87.55 | G66: 88.35 | H66: 83.55 | I66: 82.75 | J66: 81.15 | K66: 84.35 | L66: 86.75 | M66: 0.00086
A67: 57 | B67: BANKBARODA | C67: 34.65 | D67: 35.40 | E67: 36.10 | F67: 37.55 | G67: 38.25 | H67: 33.95 | I67: 33.25 | J67: 31.80 | K67: 34.7 | L67: 36.85 | M67: 0.000361
A68: 58 | B68: BANKINDIA | C68: 2590.01 | D68: 2601.10 | E68: 2604.19 | F68: 2618.38 | G68: 2621.47 | H68: 2586.91 | I68: 2583.82 | J68: 2569.63 | K68: 2598 | L68: 2615.28 | M68: 0.0259827
A69: 59 | B69: BATAINDIA | C69: 234.65 | D69: 240.53 | E69: 237.62 | F69: 240.58 | G69: 237.67 | H69: 237.57 | I69: 240.48 | J69: 237.52 | K69: 243.45 | L69: 243.5 | M69: 0.0023675
A70: 60 | B70: BERGEPAINT | C70: 277.75 | D70: 283.65 | E70: 280.70 | F70: 283.65 | G70: 280.70 | H70: 280.70 | I70: 283.65 | J70: 280.70 | K70: 286.6 | L70: 286.6 | M70: 0.002866
A71: 61 | B71: BEL | C71: 129.8 | D71: 131.35 | E71: 130.70 | F71: 131.60 | G71: 130.95 | H71: 130.45 | I71: 131.10 | J71: 130.20 | K71: 132 | L71: 132.25 | M71: 0.001312
A72: 62 | B72: BHARATFIN | C72: 763.6 | D72: 774.12 | E72: 774.28 | F72: 784.97 | G72: 785.13 | H72: 763.43 | I72: 763.27 | J72: 752.58 | K72: 773.95 | L72: 784.8 | M72: 0.007747
A73: 63 | B73: BHARATFORG | C73: 184 | D73: 187.83 | E73: 191.67 | F73: 199.33 | G73: 203.17 | H73: 180.17 | I73: 176.33 | J73: 168.67 | K73: 184 | L73: 195.5 | M73: 0.001824
A74: 64 | B74: BHEL | C74: 21.1 | D74: 21.78 | E74: 21.97 | F74: 22.83 | G74: 23.02 | H74: 20.92 | I74: 20.73 | J74: 19.87 | K74: 21.6 | L74: 22.65 | M74: 0.000216
A75: 65 | B75: BPCL | C75: 5408.8 | D75: 5506.43 | E75: 5467.87 | F75: 5526.93 | G75: 5488.37 | H75: 5447.37 | I75: 5485.93 | J75: 5426.87 | K75: 5545 | L75: 5565.5 | M75: 0.055132
A76: 66 | B76: BHARTIARTL | C76: 87.35 | D76: 88.68 | E76: 88.17 | F76: 88.98 | G76: 88.47 | H76: 87.87 | I76: 88.38 | J76: 87.57 | K76: 89.2 | L76: 89.5 | M76: 0.000878
A77: 67 | B77: INFRATEL | C77: 351.78 | D77: 355.93 | E77: 353.85 | F77: 355.93 | G77: 353.85 | H77: 353.85 | I77: 355.93 | J77: 353.85 | K77: 358 | L77: 358 | M77: 0.0035749
A78: 68 | B78: BHUSANSTL | C78: 167.85 | D78: 171.97 | E78: 171.88 | F78: 175.92 | G78: 175.83 | H78: 167.93 | I78: 168.02 | J78: 163.98 | K78: 172.05 | L78: 176 | M78: 0.0017145
A79: 69 | B79: BIOCON | C79: 735.2 | D79: 750.73 | E79: 749.47 | F79: 763.73 | G79: 762.47 | H79: 736.47 | I79: 737.73 | J79: 723.47 | K79: 752 | L79: 765 | M79: 0.0076415
A80: 70 | B80: BIRLACORPN | C80: 198 | D80: 200.23 | E80: 202.02 | F80: 206.03 | G80: 207.82 | H80: 196.22 | I80: 194.43 | J80: 190.42 | K80: 198.45 | L80: 204.25 | M80: 0.0019835
A81: 71 | B81: BLISSGVS | C81: 16.6 | D81: 16.73 | E81: 16.87 | F81: 17.13 | G81: 17.27 | H81: 16.47 | I81: 16.33 | J81: 16.07 | K81: 16.6 | L81: 17 | M81: 0.000168
A82: 72 | B82: BLUEDART | C82: 288 | D82: 305.80 | E82: 300.20 | F82: 312.40 | G82: 306.80 | H82: 293.60 | I82: 299.20 | J82: 287.00 | K82: 311.4 | L82: 318 | M82: 0.003102
A83: 73 | B83: BLUESTARCO | C83: 19401.2 | D83: 19479.98 | E83: 19511.22 | F83: 19621.23 | G83: 19652.47 | H83: 19369.97 | I83: 19338.73 | J83: 19228.72 | K83: 19448.75 | L83: 19590 | M83: 0.194048
A84: 74 | B84: BBTC | C84: 1674 | D84: 1738.53 | E84: 1725.27 | F84: 1776.53 | G84: 1763.27 | H84: 1687.27 | I84: 1700.53 | J84: 1649.27 | K84: 1751.8 | L84: 1789.8 | M84: 0.017373
A85: 75 | B85: BOMDYEING | C85: 78.5 | D85: 81.13 | E85: 79.82 | F85: 81.13 | G85: 79.82 | H85: 79.82 | I85: 81.13 | J85: 79.82 | K85: 82.45 | L85: 82.45 | M85: 0.0008195
A86: 77 | B86: BOSCHLTD | C86: 271.95 | D86: 281.47 | E86: 281.48 | F86: 291.02 | G86: 291.03 | H86: 271.93 | I86: 271.92 | J86: 262.38 | K86: 281.45 | L86: 291 | M86: 0.002817
A87: 78 | B87: BRIGADE | C87: 90.05 | D87: 93.53 | E87: 92.07 | F87: 94.08 | G87: 92.62 | H87: 91.52 | I87: 92.98 | J87: 90.97 | K87: 95 | L87: 95.55 | M87: 0.000947
A88: 79 | B88: BRITANNIA | C88: 808 | D88: 823.30 | E88: 815.65 | F88: 823.30 | G88: 815.65 | H88: 815.65 | I88: 823.30 | J88: 815.65 | K88: 830.95 | L88: 830.95 | M88: 0.00824
A89: 80 | B89: CARERATING | C89: 3.7 | D89: 3.83 | E89: 3.87 | F89: 4.03 | G89: 4.07 | H89: 3.67 | I89: 3.63 | J89: 3.47 | K89: 3.8 | L89: 4 | M89: 3.9e-05
A90: 81 | B90: CCL | C90: 14.8 | D90: 15.12 | E90: 15.03 | F90: 15.27 | G90: 15.18 | H90: 14.88 | I90: 14.97 | J90: 14.73 | K90: 15.2 | L90: 15.35 | M90: 0.000148
A91: 82 | B91: CGPOWER | C91: 80.25 | D91: 82.77 | E91: 84.48 | F91: 88.72 | G91: 90.43 | H91: 78.53 | I91: 76.82 | J91: 72.58 | K91: 81.05 | L91: 87 | M91: 0.000824
A92: 83 | B92: CRISIL | C92: 63.5 | D92: 65.03 | E92: 64.27 | F92: 65.03 | G92: 64.27 | H92: 64.27 | I92: 65.03 | J92: 64.27 | K92: 65.8 | L92: 65.8 | M92: 0.0006475
A93: 84 | B93: CADILAHC | C93: 253.65 | D93: 262.52 | E93: 259.03 | F93: 264.42 | G93: 260.93 | H93: 257.13 | I93: 260.62 | J93: 255.23 | K93: 266 | L93: 267.9 | M93: 0.0026595
A94: 85 | B94: CANFINHOME | C94: 598.95 | D94: 612.95 | E94: 605.95 | F94: 612.95 | G94: 605.95 | H94: 605.95 | I94: 612.95 | J94: 605.95 | K94: 619.95 | L94: 619.95 | M94: 0.005991
A95: 86 | B95: CANBK | C95: 348 | D95: 354.23 | E95: 353.47 | F95: 358.93 | G95: 358.17 | H95: 348.77 | I95: 349.53 | J95: 344.07 | K95: 355 | L95: 359.7 | M95: 0.0035685
A96: 87 | B96: CAPF | C96: 365.05 | D96: 377.68 | E96: 373.37 | F96: 381.68 | G96: 377.37 | H96: 369.37 | I96: 373.68 | J96: 365.37 | K96: 382 | L96: 386 | M96: 0.0037725
A97: 88 | B97: CAPLIPOINT | C97: 123 | D97: 126.97 | E97: 125.93 | F97: 128.87 | G97: 127.83 | H97: 124.03 | I97: 125.07 | J97: 122.13 | K97: 128 | L97: 129.9 | M97: 0.00127
A98: 89 | B98: CARBORUNIV | C98: 2.75 | D98: 2.75 | E98: 2.75 | F98: 2.75 | G98: 2.75 | H98: 2.75 | I98: 2.75 | J98: 2.75 | K98: 2.75 | L98: 2.75 | M98: 2.85e-05
A99: 90 | B99: CASTROLIND | C99: 309 | D99: 314.53 | E99: 312.17 | F99: 315.33 | G99: 312.97 | H99: 311.37 | I99: 313.73 | J99: 310.57 | K99: 316.9 | L99: 317.7 | M99: 0.0031285
A100: 91 | B100: CEATLTD | C100: 15 | D100: 15.48 | E100: 15.47 | F100: 15.93 | G100: 15.92 | H100: 15.02 | I100: 15.03 | J100: 14.57 | K100: 15.5 | L100: 15.95 | M100: 0.000154
A101: 92 | B101: CENTRALBK | C101: 321.95 | D101: 326.30 | E101: 326.60 | F101: 331.25 | G101: 331.55 | H101: 321.65 | I101: 321.35 | J101: 316.70 | K101: 326 | L101: 330.95 | M101: 0.0032595
A102: 93 | B102: CENTURYPLY | C102: 1031.65 | D102: 1055.23 | E102: 1047.22 | F102: 1062.78 | G102: 1054.77 | H102: 1039.67 | I102: 1047.68 | J102: 1032.12 | K102: 1063.25 | L102: 1070.8 | M102: 0.0106025
A103: 94 | B103: CENTURYTEX | C103: 91.7 | D103: 93.27 | E103: 92.88 | F103: 94.07 | G103: 93.68 | H103: 92.08 | I103: 92.47 | J103: 91.28 | K103: 93.65 | L103: 94.45 | M103: 0.000933
A104: 95 | B104: CERA | C104: 80.95 | D104: 82.82 | E104: 82.53 | F104: 84.12 | G104: 83.83 | H104: 81.23 | I104: 81.52 | J104: 79.93 | K104: 83.1 | L104: 84.4 | M104: 0.0008385
A105: 96 | B105: CHAMBLFERT | C105: 78.05 | D105: 79.98 | E105: 79.17 | F105: 80.28 | G105: 79.47 | H105: 78.87 | I105: 79.68 | J105: 78.57 | K105: 80.8 | L105: 81.1 | M105: 0.000804
A106: 97 | B106: CHENNPETRO | C106: 9.25 | D106: 9.40 | E106: 9.55 | F106: 9.85 | G106: 10.00 | H106: 9.10 | I106: 8.95 | J106: 8.65 | K106: 9.25 | L106: 9.7 | M106: 9.25e-05
A107: 98 | B107: CHOLAFIN | C107: 608.95 | D107: 613.62 | E107: 617.23 | F107: 625.52 | G107: 629.13 | H107: 605.33 | I107: 601.72 | J107: 593.43 | K107: 610 | L107: 621.9 | M107: 0.006074
A108: 99 | B108: CIPLA | C108: 34.3 | D108: 35.10 | E108: 35.00 | F108: 35.70 | G108: 35.60 | H108: 34.40 | I108: 34.50 | J108: 33.80 | K108: 35.2 | L108: 35.8 | M108: 0.000338
A109: 100 | B109: CUB | C109: 67.7 | D109: 68.63 | E109: 69.57 | F109: 71.43 | G109: 72.37 | H109: 66.77 | I109: 65.83 | J109: 63.97 | K109: 67.7 | L109: 70.5 | M109: 0.0006745
A110: 101 | B110: COALINDIA | C110: 39 | D110: 40.50 | E110: 39.75 | F110: 40.50 | G110: 39.75 | H110: 39.75 | I110: 40.50 | J110: 39.75 | K110: 41.25 | L110: 41.25 | M110: 0.0003985
A111: 102 | B111: COCHINSHIP | C111: 13.6 | D111: 14.22 | E111: 14.38 | F111: 15.17 | G111: 15.33 | H111: 13.43 | I111: 13.27 | J111: 12.48 | K111: 14.05 | L111: 15 | M111: 0.00014
A112: 103 | B112: COFFEEDAY | C112: 1317.8 | D112: 1330.02 | E112: 1327.73 | F112: 1337.67 | G112: 1335.38 | H112: 1320.08 | I112: 1322.37 | J112: 1312.43 | K112: 1332.3 | L112: 1339.95 | M112: 0.013039
A113: 104 | B113: COLPAL | C113: 61.25 | D113: 63.12 | E113: 62.18 | F113: 63.12 | G113: 62.18 | H113: 62.18 | I113: 63.12 | J113: 62.18 | K113: 64.05 | L113: 64.05 | M113: 0.000624
A114: 105 | B114: CONCOR | C114: 91.75 | D114: 95.92 | E114: 93.83 | F114: 95.92 | G114: 93.83 | H114: 93.83 | I114: 95.92 | J114: 93.83 | K114: 98 | L114: 98 | M114: 0.000944
A115: 106 | B115: COROMANDEL | C115: 216.25 | D115: 219.82 | E115: 218.03 | F115: 219.82 | G115: 218.03 | H115: 218.03 | I115: 219.82 | J115: 218.03 | K115: 221.6 | L115: 221.6 | M115: 0.002199
A116: 107 | B116: CORPBANK | C116: 27.5 | D116: 27.65 | E116: 27.70 | F116: 27.90 | G116: 27.95 | H116: 27.45 | I116: 27.40 | J116: 27.20 | K116: 27.6 | L116: 27.85 | M116: 0.0002777
A117: 108 | B117: COX&KINGS | C117: 1850 | D117: 1881.93 | E117: 1865.97 | F117: 1881.93 | G117: 1865.97 | H117: 1865.97 | I117: 1881.93 | J117: 1865.97 | K117: 1897.9 | L117: 1897.9 | M117: 0.0187835
A118: 109 | B118: CROMPTON | C118: 735 | D118: 761.15 | E118: 751.60 | F118: 768.20 | G118: 758.65 | H118: 744.55 | I118: 754.10 | J118: 737.50 | K118: 770.7 | L118: 777.75 | M118: 0.007695
A119: 110 | B119: CUMMINSIND | C119: 756.5 | D119: 782.85 | E119: 802.65 | F119: 848.80 | G119: 868.60 | H119: 736.70 | I119: 716.90 | J119: 670.75 | K119: 763.05 | L119: 829 | M119: 0.007609
A120: 111 | B120: CYIENT | C120: 2952.45 | D120: 3031.33 | E120: 2993.47 | F120: 3034.48 | G120: 2996.62 | H120: 2990.32 | I120: 3028.18 | J120: 2987.17 | K120: 3069.2 | L120: 3072.35 | M120: 0.0304935
A121: 112 | B121: DBREALTY | C121: 94.3 | D121: 95.78 | E121: 96.22 | F121: 98.13 | G121: 98.57 | H121: 93.87 | I121: 93.43 | J121: 91.52 | K121: 95.35 | L121: 97.7 | M121: 0.000956
A122: 113 | B122: DBCORP | C122: 367.2 | D122: 373.90 | E122: 371.90 | F122: 376.60 | G122: 374.60 | H122: 369.20 | I122: 371.20 | J122: 366.50 | K122: 375.9 | L122: 378.6 | M122: 0.0037395
A123: 114 | B123: DCBBANK | C123: 520.6 | D123: 529.60 | E123: 528.20 | F123: 535.80 | G123: 534.40 | H123: 522.00 | I123: 523.40 | J123: 515.80 | K123: 531 | L123: 537.2 | M123: 0.0053025
A124: 115 | B124: DCMSHRIRAM | C124: 265 | D124: 270.30 | E124: 268.10 | F124: 271.20 | G124: 269.00 | H124: 267.20 | I124: 269.40 | J124: 266.30 | K124: 272.5 | L124: 273.4 | M124: 0.002692
A125: 116 | B125: DLF | C125: 416 | D125: 422.98 | E125: 429.52 | F125: 443.03 | G125: 449.57 | H125: 409.47 | I125: 402.93 | J125: 389.42 | K125: 416.45 | L125: 436.5 | M125: 0.0041605
A126: 117 | B126: DABUR | C126: 129 | D126: 131.07 | E126: 132.43 | F126: 135.87 | G126: 137.23 | H126: 127.63 | I126: 126.27 | J126: 122.83 | K126: 129.7 | L126: 134.5 | M126: 0.001297
A127: 118 | B127: DALMIABHA | C127: 123.05 | D127: 127.98 | E127: 125.97 | F127: 128.88 | G127: 126.87 | H127: 125.07 | I127: 127.08 | J127: 124.17 | K127: 130 | L127: 130.9 | M127: 0.001288
A128: 119 | B128: DEEPAKFERT | C128: 54.4 | D128: 58.17 | E128: 56.28 | F128: 58.17 | G128: 56.28 | H128: 56.28 | I128: 58.17 | J128: 56.28 | K128: 60.05 | L128: 60.05 | M128: 0.000572
A129: 120 | B129: DELTACORP | C129: 485 | D129: 497.70 | E129: 493.45 | F129: 501.90 | G129: 497.65 | H129: 489.25 | I129: 493.50 | J129: 485.05 | K129: 501.95 | L129: 506.15 | M129: 0.0048205
A130: 121 | B130: DEN | C130: 1411.05 | D130: 1445.35 | E130: 1445.70 | F130: 1480.35 | G130: 1480.70 | H130: 1410.70 | I130: 1410.35 | J130: 1375.70 | K130: 1445 | L130: 1480 | M130: 0.0148165
A131: 122 | B131: DENABANK | C131: 89.25 | D131: 94.40 | E131: 93.25 | F131: 97.25 | G131: 96.10 | H131: 90.40 | I131: 91.55 | J131: 87.55 | K131: 95.55 | L131: 98.4 | M131: 0.0009495
A132: 123 | B132: DHFL | C132: 1348.2 | D132: 1361.60 | E132: 1371.20 | F132: 1394.20 | G132: 1403.80 | H132: 1338.60 | I132: 1329.00 | J132: 1306.00 | K132: 1352 | L132: 1384.6 | M132: 0.0137845
A133: 124 | B133: DHANUKA | C133: 397 | D133: 400.67 | E133: 404.33 | F133: 411.67 | G133: 415.33 | H133: 393.33 | I133: 389.67 | J133: 382.33 | K133: 397 | L133: 408 | M133: 0.0039955
A134: 125 | B134: DBL | C134: 192.4 | D134: 195.25 | E134: 193.85 | F134: 195.30 | G134: 193.90 | H134: 193.80 | I134: 195.20 | J134: 193.75 | K134: 196.65 | L134: 196.7 | M134: 0.001951
A135: 126 | B135: DISHTV | C135: 213.15 | D135: 220.02 | E135: 217.23 | F135: 221.32 | G135: 218.53 | H135: 215.93 | I135: 218.72 | J135: 214.63 | K135: 222.8 | L135: 224.1 | M135: 0.002231
A136: 127 | B136: DIVISLAB | C136: 1489 | D136: 1499.60 | E136: 1499.10 | F136: 1509.20 | G136: 1508.70 | H136: 1489.50 | I136: 1490.00 | J136: 1479.90 | K136: 1500.1 | L136: 1509.7 | M136: 0.0149065
A137: 128 | B137: LALPATHLAB | C137: 39 | D137: 40.27 | E137: 39.63 | F137: 40.27 | G137: 39.63 | H137: 39.63 | I137: 40.27 | J137: 39.63 | K137: 40.9 | L137: 40.9 | M137: 0.000396
A138: 129 | B138: DRREDDY | C138: 28.5 | D138: 29.70 | E138: 29.10 | F138: 29.70 | G138: 29.10 | H138: 29.10 | I138: 29.70 | J138: 29.10 | K138: 30.3 | L138: 30.3 | M138: 0.0002925
A139: 130 | B139: DREDGECORP | C139: 294 | D139: 300.32 | E139: 306.63 | F139: 319.27 | G139: 325.58 | H139: 287.68 | I139: 281.37 | J139: 268.73 | K139: 294 | L139: 312.95 | M139: 0.003064
A140: 131 | B140: EIDPARRY | C140: 176.25 | D140: 181.50 | E140: 186.75 | F140: 197.25 | G140: 202.50 | H140: 171.00 | I140: 165.75 | J140: 155.25 | K140: 176.25 | L140: 192 | M140: 0.001761
A141: 132 | B141: EIHOTEL | C141: 48.5 | D141: 50.85 | E141: 49.75 | F141: 51.00 | G141: 49.90 | H141: 49.60 | I141: 50.70 | J141: 49.45 | K141: 51.95 | L141: 52.1 | M141: 0.000517
A142: 133 | B142: EDELWEISS | C142: 273.1 | D142: 276.28 | E142: 276.82 | F142: 280.53 | G142: 281.07 | H142: 272.57 | I142: 272.03 | J142: 268.32 | K142: 275.75 | L142: 280 | M142: 0.002744
A143: 134 | B143: EICHERMOT | C143: 562 | D143: 588.67 | E143: 592.28 | F143: 622.57 | G143: 626.18 | H143: 558.38 | I143: 554.77 | J143: 524.48 | K143: 585.05 | L143: 618.95 | M143: 0.005832
A144: 135 | B144: EMAMILTD | C144: 173.15 | D144: 178.38 | E144: 175.77 | F144: 178.38 | G144: 175.77 | H144: 175.77 | I144: 178.38 | J144: 175.77 | K144: 181 | L144: 181 | M144: 0.001796
A145: 136 | B145: ENDURANCE | C145: 673.05 | D145: 684.25 | E145: 678.65 | F145: 684.25 | G145: 678.65 | H145: 678.65 | I145: 684.25 | J145: 678.65 | K145: 689.85 | L145: 689.85 | M145: 0.006896
A146: 137 | B146: ENGINERSIN | C146: 263 | D146: 274.33 | E146: 278.67 | F146: 294.33 | G146: 298.67 | H146: 258.67 | I146: 254.33 | J146: 238.67 | K146: 270 | L146: 290 | M146: 0.0027589
A147: 138 | B147: EQUITAS | C147: 680 | D147: 686.95 | E147: 683.95 | F147: 687.90 | G147: 684.90 | H147: 683.00 | I147: 686.00 | J147: 682.05 | K147: 689.95 | L147: 690.9 | M147: 0.0068485
A148: 139 | B148: EROSMEDIA | C148: 22 | D148: 22.35 | E148: 22.55 | F148: 23.10 | G148: 23.30 | H148: 21.80 | I148: 21.60 | J148: 21.05 | K148: 22.15 | L148: 22.9 | M148: 0.000223
A149: 140 | B149: ESCORTS | C149: 67.6 | D149: 70.47 | E149: 69.03 | F149: 70.47 | G149: 69.03 | H149: 69.03 | I149: 70.47 | J149: 69.03 | K149: 71.9 | L149: 71.9 | M149: 0.0007115
A150: 141 | B150: ESSELPACK | C150: 34.1 | D150: 34.70 | E150: 34.40 | F150: 34.70 | G150: 34.40 | H150: 34.40 | I150: 34.70 | J150: 34.40 | K150: 35 | L150: 35 | M150: 0.000336
A151: 142 | B151: EVEREADY | C151: 1410 | D151: 1436.33 | E151: 1425.67 | F151: 1441.33 | G151: 1430.67 | H151: 1420.67 | I151: 1431.33 | J151: 1415.67 | K151: 1447 | L151: 1452 | M151: 0.014442
A152: 143 | B152: EXIDEIND | C152: 56.85 | D152: 59.00 | E152: 58.10 | F152: 59.35 | G152: 58.45 | H152: 57.75 | I152: 58.65 | J152: 57.40 | K152: 59.9 | L152: 60.25 | M152: 0.0005955
A153: 144 | B153: FEDERALBNK | C153: 210.7 | D153: 220.00 | E153: 216.30 | F153: 221.90 | G153: 218.20 | H153: 214.40 | I153: 218.10 | J153: 212.50 | K153: 223.7 | L153: 225.6 | M153: 0.0022405
A154: 145 | B154: FINCABLES | C154: 462.55 | D154: 471.80 | E154: 467.65 | F154: 472.75 | G154: 468.60 | H154: 466.70 | I154: 470.85 | J154: 465.75 | K154: 475.95 | L154: 476.9 | M154: 0.004758
A155: 146 | B155: FINPIPE | C155: 125.2 | D155: 128.40 | E155: 127.50 | F155: 129.80 | G155: 128.90 | H155: 126.10 | I155: 127.00 | J155: 124.70 | K155: 129.3 | L155: 130.7 | M155: 0.00128
A156: 147 | B156: FSL | C156: 7.25 | D156: 7.55 | E156: 7.40 | F156: 7.55 | G156: 7.40 | H156: 7.40 | I156: 7.55 | J156: 7.40 | K156: 7.7 | L156: 7.7 | M156: 7.45e-05
A157: 148 | B157: FCONSUMER | C157: 36.4 | D157: 37.25 | E157: 37.35 | F157: 38.30 | G157: 38.40 | H157: 36.30 | I157: 36.20 | J157: 35.25 | K157: 37.15 | L157: 38.2 | M157: 0.000383
A158: 149 | B158: FLFL | C158: 240.1 | D158: 246.00 | E158: 243.05 | F158: 246.00 | G158: 243.05 | H158: 243.05 | I158: 246.00 | J158: 243.05 | K158: 248.95 | L158: 248.95 | M158: 0.00249
A159: 150 | B159: GAIL | C159: 297.05 | D159: 309.18 | E159: 303.12 | F159: 309.18 | G159: 303.12 | H159: 303.12 | I159: 309.18 | J159: 303.12 | K159: 315.25 | L159: 315.25 | M159: 0.002968
A160: 151 | B160: GEPIL | C160: 376.55 | D160: 380.52 | E160: 381.03 | F160: 385.52 | G160: 386.03 | H160: 376.03 | I160: 375.52 | J160: 371.03 | K160: 380 | L160: 385 | M160: 0.003781
A161: 152 | B161: GET&D | C161: 421 | D161: 430.67 | E161: 426.33 | F161: 431.67 | G161: 427.33 | H161: 425.33 | I161: 429.67 | J161: 424.33 | K161: 435 | L161: 436 | M161: 0.004335
A162: 153 | B162: GHCL | C162: 703 | D162: 707.38 | E162: 706.62 | F162: 710.23 | G162: 709.47 | H162: 703.77 | I162: 704.53 | J162: 700.92 | K162: 708.15 | L162: 711 | M162: 0.0070915
A163: 154 | B163: GMRINFRA | C163: 447.95 | D163: 471.65 | E163: 464.30 | F163: 480.65 | G163: 473.30 | H163: 455.30 | I163: 462.65 | J163: 446.30 | K163: 479 | L163: 488 | M163: 0.0047645
A164: 155 | B164: GVKPIL | C164: 1111.25 | D164: 1120.73 | E164: 1122.47 | F164: 1133.68 | G164: 1135.42 | H164: 1109.52 | I164: 1107.78 | J164: 1096.57 | K164: 1119 | L164: 1131.95 | M164: 0.0112435
A165: 156 | B165: GDL | C165: 261 | D165: 266.90 | E165: 264.60 | F165: 268.20 | G165: 265.90 | H165: 263.30 | I165: 265.60 | J165: 262.00 | K165: 269.2 | L165: 270.5 | M165: 0.002691
A166: 157 | B166: GATI | C166: 164 | D166: 166.43 | E166: 167.62 | F166: 171.23 | G166: 172.42 | H166: 162.82 | I166: 161.63 | J166: 158.02 | K166: 165.25 | L166: 170.05 | M166: 0.0016855
A167: 158 | B167: GILLETTE | C167: 102.3 | D167: 104.12 | E167: 103.23 | F167: 104.17 | G167: 103.28 | H167: 103.18 | I167: 104.07 | J167: 103.13 | K167: 105 | L167: 105.05 | M167: 0.0010415
A168: 159 | B168: GSKCONS | C168: 178.3 | D168: 180.43 | E168: 181.87 | F168: 185.43 | G168: 186.87 | H168: 176.87 | I168: 175.43 | J168: 171.87 | K168: 179 | L168: 184 | M168: 0.0017845
A169: 160 | B169: GLAXO | C169: 120.3 | D169: 124.85 | E169: 123.25 | F169: 126.20 | G169: 124.60 | H169: 121.90 | I169: 123.50 | J169: 120.55 | K169: 126.45 | L169: 127.8 | M169: 0.001243
A170: 161 | B170: GLENMARK | C170: 25.5 | D170: 26.73 | E170: 26.57 | F170: 27.63 | G170: 27.47 | H170: 25.67 | I170: 25.83 | J170: 24.77 | K170: 26.9 | L170: 27.8 | M170: 0.000265
A171: 162 | B171: GODFRYPHLP | C171: 1110.05 | D171: 1125.77 | E171: 1135.53 | F171: 1161.02 | G171: 1170.78 | H171: 1100.28 | I171: 1090.52 | J171: 1065.03 | K171: 1116 | L171: 1151.25 | M171: 0.0111705
A172: 163 | B172: GODREJCP | C172: 790 | D172: 804.42 | E172: 807.58 | F172: 825.17 | G172: 828.33 | H172: 786.83 | I172: 783.67 | J172: 766.08 | K172: 801.25 | L172: 822 | M172: 0.0080525
A173: 164 | B173: GODREJIND | C173: 101.6 | D173: 104.47 | E173: 104.63 | F173: 107.67 | G173: 107.83 | H173: 101.43 | I173: 101.27 | J173: 98.23 | K173: 104.3 | L173: 107.5 | M173: 0.001028
A174: 165 | B174: GODREJPROP | C174: 13.2 | D174: 14.20 | E174: 13.70 | F174: 14.20 | G174: 13.70 | H174: 13.70 | I174: 14.20 | J174: 13.70 | K174: 14.7 | L174: 14.7 | M174: 0.0001405
A175: 166 | B175: GRANULES | C175: 692.4 | D175: 705.77 | E175: 710.53 | F175: 728.67 | G175: 733.43 | H175: 687.63 | I175: 682.87 | J175: 664.73 | K175: 701 | L175: 723.9 | M175: 0.0069755
A176: 167 | B176: GESHIP | C176: 271.5 | D176: 277.50 | E176: 276.40 | F176: 281.30 | G176: 280.20 | H176: 272.60 | I176: 273.70 | J176: 268.80 | K176: 278.6 | L176: 282.4 | M176: 0.002764
A177: 168 | B177: GREAVESCOT | C177: 1191 | D177: 1215.63 | E177: 1203.32 | F177: 1215.63 | G177: 1203.32 | H177: 1203.32 | I177: 1215.63 | J177: 1203.32 | K177: 1227.95 | L177: 1227.95 | M177: 0.0119275
A178: 169 | B178: GREENPLY | C178: 9.85 | D178: 10.23 | E178: 10.22 | F178: 10.58 | G178: 10.57 | H178: 9.87 | I178: 9.88 | J178: 9.52 | K178: 10.25 | L178: 10.6 | M178: 0.0001015
A179: 170 | B179: GRUH | C179: 30.4 | D179: 31.00 | E179: 31.30 | F179: 32.20 | G179: 32.50 | H179: 30.10 | I179: 29.80 | J179: 28.90 | K179: 30.7 | L179: 31.9 | M179: 0.000312
A180: 171 | B180: GUJALKALI | C180: 227.05 | D180: 232.97 | E180: 236.93 | F180: 246.82 | G180: 250.78 | H180: 223.08 | I180: 219.12 | J180: 209.23 | K180: 229 | L180: 242.85 | M180: 0.002247
A181: 172 | B181: GUJFLUORO | C181: 866.65 | D181: 876.18 | E181: 873.52 | F181: 880.38 | G181: 877.72 | H181: 869.32 | I181: 871.98 | J181: 865.12 | K181: 878.85 | L181: 883.05 | M181: 0.008841
A182: 173 | B182: GUJGASLTD | C182: 890 | D182: 928.33 | E182: 911.67 | F182: 933.33 | G182: 916.67 | H182: 906.67 | I182: 923.33 | J182: 901.67 | K182: 945 | L182: 950 | M182: 0.009339
A183: 174 | B183: GMDCLTD | C183: 19.8 | D183: 20.40 | E183: 20.35 | F183: 20.90 | G183: 20.85 | H183: 19.85 | I183: 19.90 | J183: 19.35 | K183: 20.45 | L183: 20.95 | M183: 0.000205
A184: 175 | B184: GNFC | C184: 504.95 | D184: 506.83 | E184: 508.12 | F184: 511.28 | G184: 512.57 | H184: 503.67 | I184: 502.38 | J184: 499.22 | K184: 505.55 | L184: 510 | M184: 0.0050365
A185: 176 | B185: GPPL | C185: 184 | D185: 187.00 | E185: 189.00 | F185: 194.00 | G185: 196.00 | H185: 182.00 | I185: 180.00 | J185: 175.00 | K185: 185 | L185: 192 | M185: 0.001837
A186: 177 | B186: GSFC | C186: 6025.3 | D186: 6095.10 | E186: 6060.20 | F186: 6095.10 | G186: 6060.20 | H186: 6060.20 | I186: 6095.10 | J186: 6060.20 | K186: 6130 | L186: 6130 | M186: 0.0610085
A187: 178 | B187: GSPL | C187: 72.8 | D187: 76.68 | E187: 75.22 | F187: 77.63 | G187: 76.17 | H187: 74.27 | I187: 75.73 | J187: 73.32 | K187: 78.15 | L187: 79.1 | M187: 0.000781
A188: 179 | B188: GULFOILLUB | C188: 77.55 | D188: 79.83 | E188: 78.72 | F188: 79.88 | G188: 78.77 | H188: 78.67 | I188: 79.78 | J188: 78.62 | K188: 80.95 | L188: 81 | M188: 0.000795
A189: 180 | B189: HCL-INSYS | C189: 995.5 | D189: 1032.48 | E189: 1014.97 | F189: 1034.43 | G189: 1016.92 | H189: 1013.02 | I189: 1030.53 | J189: 1011.07 | K189: 1050 | L189: 1051.95 | M189: 0.0105275
A190: 181 | B190: HCLTECH | C190: 1871.35 | D190: 1893.62 | E190: 1890.23 | F190: 1909.12 | G190: 1905.73 | H190: 1874.73 | I190: 1878.12 | J190: 1859.23 | K190: 1897 | L190: 1912.5 | M190: 0.0188325
A191: 182 | B191: HDFCBANK | C191: 508.1 | D191: 518.05 | E191: 515.35 | F191: 522.60 | G191: 519.90 | H191: 510.80 | I191: 513.50 | J191: 506.25 | K191: 520.75 | L191: 525.3 | M191: 0.0051805
A192: 183 | B192: HSIL | C192: 363.4 | D192: 374.38 | E192: 369.77 | F192: 376.13 | G192: 371.52 | H192: 368.02 | I192: 372.63 | J192: 366.27 | K192: 379 | L192: 380.75 | M192: 0.003775
A193: 184 | B193: HTMEDIA | C193: 84.3 | D193: 89.10 | E193: 87.20 | F193: 90.10 | G193: 88.20 | H193: 86.20 | I193: 88.10 | J193: 85.20 | K193: 91 | L193: 92 | M193: 0.000904
A194: 185 | B194: HATHWAY | C194: 780.1 | D194: 798.70 | E194: 789.40 | F194: 798.70 | G194: 789.40 | H194: 789.40 | I194: 798.70 | J194: 789.40 | K194: 808 | L194: 808 | M194: 0.007877
A195: 186 | B195: HATSUN | C195: 533.95 | D195: 545.33 | E195: 542.22 | F195: 550.48 | G195: 547.37 | H195: 537.07 | I195: 540.18 | J195: 531.92 | K195: 548.45 | L195: 553.6 | M195: 0.0054725
A196: 187 | B196: HAVELLS | C196: 47.1 | D196: 48.65 | E196: 48.65 | F196: 50.20 | G196: 50.20 | H196: 47.10 | I196: 47.10 | J196: 45.55 | K196: 48.65 | L196: 50.2 | M196: 0.0004855
A197: 188 | B197: HEIDELBERG | C197: 711 | D197: 717.33 | E197: 714.67 | F197: 718.33 | G197: 715.67 | H197: 713.67 | I197: 716.33 | J197: 712.67 | K197: 720 | L197: 721 | M197: 0.0071195
A198: 189 | B198: HERITGFOOD | C198: 1552.05 | D198: 1575.52 | E198: 1563.78 | F198: 1575.52 | G198: 1563.78 | H198: 1563.78 | I198: 1575.52 | J198: 1563.78 | K198: 1587.25 | L198: 1587.25 | M198: 0.015886
A199: 190 | B199: HEROMOTOCO | C199: 440.65 | D199: 449.62 | E199: 449.23 | F199: 457.82 | G199: 457.43 | H199: 441.03 | I199: 441.42 | J199: 432.83 | K199: 450 | L199: 458.2 | M199: 0.004489
A200: 191 | B200: HEXAWARE | C200: 333.35 | D200: 336.33 | E200: 335.87 | F200: 338.38 | G200: 337.92 | H200: 333.82 | I200: 334.28 | J200: 331.77 | K200: 336.8 | L200: 338.85 | M200: 0.0033595
A201: 192 | B201: HFCL | C201: 920.2 | D201: 953.48 | E201: 936.97 | F201: 953.73 | G201: 937.22 | H201: 936.72 | I201: 953.23 | J201: 936.47 | K201: 970 | L201: 970.25 | M201: 0.009561
A202: 193 | B202: HIMATSEIDE | C202: 70.05 | D202: 72.55 | E202: 71.40 | F202: 72.75 | G202: 71.60 | H202: 71.20 | I202: 72.35 | J202: 71.00 | K202: 73.7 | L202: 73.9 | M202: 0.0007335
A203: 194 | B203: HINDALCO | C203: 2.6 | D203: 2.73 | E203: 2.67 | F203: 2.73 | G203: 2.67 | H203: 2.67 | I203: 2.73 | J203: 2.67 | K203: 2.8 | L203: 2.8 | M203: 2.7e-05
A204: 195 | B204: HCC | C204: 300.7 | D204: 313.85 | E204: 323.75 | F204: 346.80 | G204: 356.70 | H204: 290.80 | I204: 280.90 | J204: 257.85 | K204: 303.95 | L204: 336.9 | M204: 0.003006
A205: 196 | B205: HINDCOPPER | C205: 97.6 | D205: 99.53 | E205: 98.57 | F205: 99.53 | G205: 98.57 | H205: 98.57 | I205: 99.53 | J205: 98.57 | K205: 100.5 | L205: 100.5 | M205: 0.000981
A206: 197 | B206: HINDPETRO | C206: 5.85 | D206: 6.12 | E206: 6.08 | F206: 6.32 | G206: 6.28 | H206: 5.88 | I206: 5.92 | J206: 5.68 | K206: 6.15 | L206: 6.35 | M206: 6.15e-05
... 302 more rows

Sheet Bulk Deals
E6: Back To Main Page
A7: Subject : | B7: BULK DEAL | D7: =Main!B10 -> 2017-05-03
A9: Date | B9: Scrip code | C9: Scrip Name | D9: Client Name | E9: Buy / Sell | F9: Quantity Traded | G9: Trade Price / Wt.Avg.trade price | H9: Exchange
A10: 2018-05-02 | B10: 540024 | C10: ASHARI | D10: PREYASHBHAI SATHVARA | E10: SELL | F10: 54,206 | G10: 71.57 | H10: BSE
A11: 2018-05-02 | B11: 540024 | C11: ASHARI | D11: PREYASHBHAI SATHVARA | E11: BUY | F11: 54,206 | G11: 71.55 | H11: BSE
A12: 2018-05-02 | B12: 539770 | C12: DARJEELING | D12: PRASHANT B KOTHAMDI | E12: SELL | F12: 18,500 | G12: 20.24 | H12: BSE
A13: 2018-05-02 | B13: 524818 | C13: DYNAMIND | D13: MONEY GROW INVESTMENT | E13: SELL | F13: 42,654 | G13: 115.4 | H13: BSE
A14: 2018-05-02 | B14: 524818 | C14: DYNAMIND | D14: MONEY GROW INVESTMENT | E14: BUY | F14: 42,654 | G14: 112.2 | H14: BSE
A15: 2018-05-02 | B15: 524818 | C15: DYNAMIND | D15: NITIN SINGH BHATI | E15: SELL | F15: 18,000 | G15: 110.81 | H15: BSE
A16: 2018-05-02 | B16: 539844 | C16: EQUITAS | D16: CREATION INVESTMENTS EQUITAS HOLDINGS LLC | E16: SELL | F16: 2,424,812 | G16: 165 | H16: BSE
A17: 2018-05-02 | B17: 514474 | C17: FAIRDSY | D17: MEGHANA PREMAL SHAH | E17: SELL | F17: 40,000 | G17: 104 | H17: BSE
A18: 2018-05-02 | B18: 541276 | C18: GARVIND | D18: SANDEEP GOYAL | E18: SELL | F18: 150,000 | G18: 10 | H18: BSE
A19: 2018-05-02 | B19: 541276 | C19: GARVIND | D19: PRADEEP GOYAL | E19: SELL | F19: 80,000 | G19: 10 | H19: BSE
A20: 2018-05-02 | B20: 541276 | C20: GARVIND | D20: GOEL KANCHAN | E20: SELL | F20: 150,000 | G20: 10 | H20: BSE
A21: 2018-05-02 | B21: 541276 | C21: GARVIND | D21: MANJEET SINGH BHANDARI AND ASSOCIATES HUF | E21: BUY | F21: 120,000 | G21: 10 | H21: BSE
A22: 2018-05-02 | B22: 541276 | C22: GARVIND | D22: PUNEET | E22: BUY | F22: 90,000 | G22: 10 | H22: BSE
A23: 2018-05-02 | B23: 541276 | C23: GARVIND | D23: SURENDER KUMAR | E23: BUY | F23: 90,000 | G23: 10 | H23: BSE
A24: 2018-05-02 | B24: 541276 | C24: GARVIND | D24: ANITA | E24: BUY | F24: 90,000 | G24: 10 | H24: BSE
A25: 2018-05-02 | B25: 539009 | C25: GBLIL | D25: POPATBHAI RAMJIBHAI PARMAR | E25: BUY | F25: 50,000 | G25: 20.5 | H25: BSE
A26: 2018-05-02 | B26: 539009 | C26: GBLIL | D26: AKSHAY JITENDRAKUMAR BRAHAMBHATT | E26: SELL | F26: 51,000 | G26: 20.51 | H26: BSE
A27: 2018-05-02 | B27: 532951 | C27: GSS | D27: ANJALI FISCALS PVT LTD | E27: BUY | F27: 93,600 | G27: 77 | H27: BSE
A28: 2018-05-02 | B28: 513252 | C28: JAYUSH | D28: ASHWANI MINDA | E28: SELL | F28: 60,992 | G28: 600 | H28: BSE
A29: 2018-05-02 | B29: 513252 | C29: JAYUSH | D29: VANDANA MINDA | E29: SELL | F29: 25,800 | G29: 600 | H29: BSE
A30: 2018-05-02 | B30: 513252 | C30: JAYUSH | D30: J A BUILDERS LIMITED | E30: BUY | F30: 86,792 | G30: 600 | H30: BSE
A31: 2018-05-02 | B31: 540150 | C31: MHEL | D31: INDUMATIBEN N PATEL | E31: SELL | F31: 30,000 | G31: 61.48 | H31: BSE
A32: 2018-05-02 | B32: 540150 | C32: MHEL | D32: RAVIKUMAR PARMAR | E32: SELL | F32: 54,000 | G32: 62.3 | H32: BSE
A33: 2018-05-02 | B33: 540150 | C33: MHEL | D33: RAVIKUMAR PARMAR | E33: BUY | F33: 54,000 | G33: 62.3 | H33: BSE
A34: 2018-05-02 | B34: 540150 | C34: MHEL | D34: PARMAR MUKESHKUMAR | E34: SELL | F34: 42,000 | G34: 62.54 | H34: BSE
A35: 2018-05-02 | B35: 540150 | C35: MHEL | D35: PARMAR MUKESHKUMAR | E35: BUY | F35: 42,000 | G35: 62.57 | H35: BSE
A36: 2018-05-02 | B36: 540150 | C36: MHEL | D36: NILAY JITENDRAKUMAR MISTRY | E36: SELL | F36: 36,000 | G36: 62.44 | H36: BSE
A37: 2018-05-02 | B37: 540150 | C37: MHEL | D37: NILAY JITENDRAKUMAR MISTRY | E37: BUY | F37: 36,000 | G37: 62.41 | H37: BSE
A38: 2018-05-02 | B38: 526905 | C38: PADMAIND | D38: SHASHIKANT CHINUBHAI KAPADIA | E38: SELL | F38: 34,000 | G38: 115.1 | H38: BSE
A39: 2018-05-02 | B39: 511557 | C39: PROFINC | D39: SHASHIKANT CHINUBHAI KAPADIA | E39: SELL | F39: 40,821 | G39: 231.94 | H39: BSE
A40: 2018-05-02 | B40: 511557 | C40: PROFINC | D40: SHASHIKANT CHINUBHAI KAPADIA | E40: BUY | F40: 61,000 | G40: 225.09 | H40: BSE
A41: 2018-05-02 | B41: 500365 | C41: RMGALLOY | D41: CHETAN RASIKLAL SHAH | E41: SELL | F41: 726,000 | G41: 18.22 | H41: BSE
A42: 2018-05-02 | B42: 539520 | C42: SHAILJA | D42: AAKRITI OVERSEAS PRIVATE LIMITED | E42: SELL | F42: 67,200 | G42: 13.68 | H42: BSE
A43: 2018-05-02 | B43: 541112 | C43: SHREESHAY | D43: OVERSKUD MULTI ASSET MANAGEMENT PRIVATE LIMITED | E43: BUY | F43: 136,000 | G43: 17.89 | H43: BSE
A44: 2018-05-02 | B44: 538402 | C44: SPS | D44: SPS MULTI-COMMODITY LLP | E44: BUY | F44: 36,800 | G44: 168 | H44: BSE
A45: 2018-05-02 | B45: 538607 | C45: TOYAMIND | D45: BHARAT KISHANCHAND SERAI | E45: BUY | F45: 2,000,000 | G45: 3.01 | H45: BSE
A46: 2018-05-02 | B46: 534755 | C46: TRIOMERC | D46: SOHIL MOHSINBHAI PATEL | E46: BUY | F46: 65,000 | G46: 15.5 | H46: BSE
A47: 2018-05-02 | B47: 534755 | C47: TRIOMERC | D47: MOHSIN NAZARALLY PATEL | E47: BUY | F47: 70,000 | G47: 15.61 | H47: BSE
A48: 2018-05-02 | B48: 511764 | C48: UPASAFN | D48: REKHA M JAIN* | E48: SELL | F48: 25,850 | G48: 41.91 | H48: BSE
A49: 2018-05-02 | B49: 539123 | C49: VBIND | D49: JAGADISH RAMJIBHAI PARMAR | E49: SELL | F49: 66,019 | G49: 63.54 | H49: BSE
A50: 2018-05-02 | B50: 539123 | C50: VBIND | D50: JAGADISH RAMJIBHAI PARMAR | E50: BUY | F50: 66,019 | G50: 63.23 | H50: BSE
A51: 2018-05-02 | B51: 539123 | C51: VBIND | D51: ASTHVINAYAK TREXIM PRIVATE LIMITED | E51: SELL | F51: 100,000 | G51: 63.11 | H51: BSE
A52: 2018-05-02 | B52: BARTRONICS | C52: Bartronics India Limited | D52: NAVY STOCK CONSULTANT PRIVATE LIMITED | E52: BUY | F52: 24,741 | G52: 16 | H52: NSE
A53: 2018-05-02 | B53: BARTRONICS | C53: Bartronics India Limited | D53: SUMIT PRAFUL DESAI | E53: BUY | F53: 300,486 | G53: 15.7 | H53: NSE
A54: 2018-05-02 | B54: JUSTDIAL | C54: Justdial Ltd. | D54: CROSSLAND TRADING CO | E54: BUY | F54: 623,207 | G54: 413.87 | H54: NSE
A55: 2018-05-02 | B55: JUSTDIAL | C55: Justdial Ltd. | D55: QE SECURITIES | E55: BUY | F55: 311,646 | G55: 415.83 | H55: NSE
A56: 2018-05-02 | B56: JUSTDIAL | C56: Justdial Ltd. | D56: SHAASTRA SECURITIES TRADING PRIVATE LIMITED | E56: BUY | F56: 560,160 | G56: 419.83 | H56: NSE
A57: 2018-05-02 | B57: MAHICKRA | C57: Mahickra Chemical Limited | D57: BHAKTIBEN KIRTIKUMAR SHAH | E57: BUY | F57: 90,000 | G57: 41.97 | H57: NSE
A58: 2018-05-02 | B58: MAHICKRA | C58: Mahickra Chemical Limited | D58: SWAPNIL MEHTA | E58: BUY | F58: 30,000 | G58: 42.45 | H58: NSE
A59: 2018-05-02 | B59: PCJEWELLER | C59: PC Jeweller Ltd | D59: ALPHAGREP COMMODITIES PRIVATE LIMITED | E59: BUY | F59: 3,859,795 | G59: 123.09 | H59: NSE
A60: 2018-05-02 | B60: PCJEWELLER | C60: PC Jeweller Ltd | D60: CHANDARANA INTERMEDIARIES BROKERS P. LTD | E60: BUY | F60: 2,627,119 | G60: 117.28 | H60: NSE
A61: 2018-05-02 | B61: PCJEWELLER | C61: PC Jeweller Ltd | D61: CROSSLAND TRADING CO | E61: BUY | F61: 3,694,334 | G61: 119.46 | H61: NSE
A62: 2018-05-02 | B62: PCJEWELLER | C62: PC Jeweller Ltd | D62: GENUINE STOCK BROKERS PVT LTD | E62: BUY | F62: 3,541,607 | G62: 122.55 | H62: NSE
A63: 2018-05-02 | B63: PCJEWELLER | C63: PC Jeweller Ltd | D63: GKN SECURITIES | E63: BUY | F63: 3,759,899 | G63: 122.47 | H63: NSE
A64: 2018-05-02 | B64: PCJEWELLER | C64: PC Jeweller Ltd | D64: JMVD SECURITIES LLP | E64: BUY | F64: 2,050,458 | G64: 120.99 | H64: NSE
A65: 2018-05-02 | B65: PCJEWELLER | C65: PC Jeweller Ltd | D65: PURITY TRADEMAX LLP | E65: BUY | F65: 4,659,027 | G65: 122.29 | H65: NSE
A66: 2018-05-02 | B66: PCJEWELLER | C66: PC Jeweller Ltd | D66: QE SECURITIES | E66: BUY | F66: 3,743,267 | G66: 121.53 | H66: NSE
A67: 2018-05-02 | B67: PCJEWELLER | C67: PC Jeweller Ltd | D67: SHAASTRA SECURITIES TRADING PRIVATE LIMITED | E67: BUY | F67: 4,110,889 | G67: 123.48 | H67: NSE
A68: 2018-05-02 | B68: PCJEWELLER | C68: PC Jeweller Ltd | D68: WAY2WEALTH SECURITIES P LTD | E68: BUY | F68: 2,002,199 | G68: 134.72 | H68: NSE
A69: 2018-05-02 | B69: PENTAGOLD | C69: Penta Gold Limited | D69: JAISHRI CHANDEL | E69: BUY | F69: 135,000 | G69: 37 | H69: NSE
A70: 2018-05-02 | B70: PIGL | C70: Power Instrument (G) Ltd | D70: GUPTA RAMESH SUMIT KUMAR | E70: BUY | F70: 48,000 | G70: 31.5 | H70: NSE
A71: 2018-05-02 | B71: RUCHISOYA | C71: Ruchi Soya Inds Ltd. | D71: ROOF ONE SECURITIES PRIVATE LIMITED | E71: BUY | F71: 2,538,825 | G71: 14.39 | H71: NSE
A72: 2018-05-02 | B72: SAKAR | C72: Sakar Healthcare Ltd. | D72: MANGALA SUBHASH RATHOD | E72: BUY | F72: 132,000 | G72: 78.28 | H72: NSE
A73: 2018-05-02 | B73: SAKAR | C73: Sakar Healthcare Ltd. | D73: PURITY TRADEMAX LLP | E73: BUY | F73: 96,000 | G73: 74.49 | H73: NSE
A74: 2018-05-02 | B74: SECURCRED | C74: SecUR Credentials Limited | D74: ARCADIA SHARE & STOCK BROKERS PRIVATE LIMITED | E74: BUY | F74: 34,800 | G74: 154.81 | H74: NSE
A75: 2018-05-02 | B75: BARTRONICS | C75: Bartronics India Limited | D75: NAVY STOCK CONSULTANT PRIVATE LIMITED | E75: SELL | F75: 192,398 | G75: 15.71 | H75: NSE
A76: 2018-05-02 | B76: BARTRONICS | C76: Bartronics India Limited | D76: SUMIT PRAFUL DESAI | E76: SELL | F76: 100,586 | G76: 15.74 | H76: NSE
A77: 2018-05-02 | B77: BHARATGEAR | C77: Bharat Gears Ltd | D77: VIKRAM OMPRAKASH DAMANI | E77: SELL | F77: 50,000 | G77: 190.3 | H77: NSE
A78: 2018-05-02 | B78: INNOVANA | C78: Innovana Thinklabs Ltd. | D78: BHARTIDEVI MOHANLAL DUHLANI | E78: SELL | F78: 28,000 | G78: 430.39 | H78: NSE
A79: 2018-05-02 | B79: JUSTDIAL | C79: Justdial Ltd. | D79: CROSSLAND TRADING CO | E79: SELL | F79: 623207 | G79: 413.81 | H79: NSE
A80: 2018-05-02 | B80: JUSTDIAL | C80: Justdial Ltd. | D80: QE SECURITIES | E80: SELL | F80: 337309 | G80: 416.95 | H80: NSE
A81: 2018-05-02 | B81: JUSTDIAL | C81: Justdial Ltd. | D81: SHAASTRA SECURITIES TRADING PRIVATE LIMITED | E81: SELL | F81: 560160 | G81: 420.36 | H81: NSE
A82: 2018-05-02 | B82: MAHICKRA | C82: Mahickra Chemical Limited | D82: INDRA KUMAR BAGRI | E82: SELL | F82: 42000 | G82: 42.45 | H82: NSE
A83: 2018-05-02 | B83: MAHICKRA | C83: Mahickra Chemical Limited | D83: SWAPNIL MEHTA | E83: SELL | F83: 90000 | G83: 42.45 | H83: NSE
A84: 2018-05-02 | B84: MAHICKRA | C84: Mahickra Chemical Limited | D84: VINOD SOMANI HUF | E84: SELL | F84: 54000 | G84: 40.23 | H84: NSE
A85: 2018-05-02 | B85: PCJEWELLER | C85: PC Jeweller Ltd | D85: ALPHAGREP COMMODITIES PRIVATE LIMITED | E85: SELL | F85: 3859795 | G85: 123.09 | H85: NSE
A86: 2018-05-02 | B86: PCJEWELLER | C86: PC Jeweller Ltd | D86: CHANDARANA INTERMEDIARIES BROKERS P. LTD | E86: SELL | F86: 2673200 | G86: 117.28 | H86: NSE
A87: 2018-05-02 | B87: PCJEWELLER | C87: PC Jeweller Ltd | D87: CROSSLAND TRADING CO | E87: SELL | F87: 3694334 | G87: 119.58 | H87: NSE
A88: 2018-05-02 | B88: PCJEWELLER | C88: PC Jeweller Ltd | D88: GENUINE STOCK BROKERS PVT LTD | E88: SELL | F88: 3541607 | G88: 122.61 | H88: NSE
A89: 2018-05-02 | B89: PCJEWELLER | C89: PC Jeweller Ltd | D89: GKN SECURITIES | E89: SELL | F89: 3759859 | G89: 122.38 | H89: NSE
A90: 2018-05-02 | B90: PCJEWELLER | C90: PC Jeweller Ltd | D90: JMVD SECURITIES LLP | E90: SELL | F90: 2160533 | G90: 120.85 | H90: NSE
A91: 2018-05-02 | B91: PCJEWELLER | C91: PC Jeweller Ltd | D91: PURITY TRADEMAX LLP | E91: SELL | F91: 4659027 | G91: 122.29 | H91: NSE
A92: 2018-05-02 | B92: PCJEWELLER | C92: PC Jeweller Ltd | D92: QE SECURITIES | E92: SELL | F92: 3876121 | G92: 122.11 | H92: NSE
A93: 2018-05-02 | B93: PCJEWELLER | C93: PC Jeweller Ltd | D93: SHAASTRA SECURITIES TRADING PRIVATE LIMITED | E93: SELL | F93: 4110889 | G93: 123.53 | H93: NSE
A94: 2018-05-02 | B94: PCJEWELLER | C94: PC Jeweller Ltd | D94: WAY2WEALTH SECURITIES P LTD | E94: SELL | F94: 2002199 | G94: 134.74 | H94: NSE
A95: 2018-05-02 | B95: PENTAGOLD | C95: Penta Gold Limited | D95: KETAN V THAKKAR | E95: SELL | F95: 150000 | G95: 37 | H95: NSE
A96: 2018-05-02 | B96: PIGL | C96: Power Instrument (G) Ltd | D96: AFFINITY SECURITIES PVT. LTD. | E96: SELL | F96: 48000 | G96: 31.5 | H96: NSE
A97: 2018-05-02 | B97: RUCHISOYA | C97: Ruchi Soya Inds Ltd. | D97: ABHADEVI SHAHRA | E97: SELL | F97: 3825000 | G97: 13.89 | H97: NSE
A98: 2018-05-02 | B98: RUCHISOYA | C98: Ruchi Soya Inds Ltd. | D98: AMRITA DINESHCHANDRA SHAHRA | E98: SELL | F98: 1785418 | G98: 12.98 | H98: NSE
A99: 2018-05-02 | B99: RUCHISOYA | C99: Ruchi Soya Inds Ltd. | D99: ROOF ONE SECURITIES PRIVATE LIMITED | E99: SELL | F99: 2538825 | G99: 14.4 | H99: NSE
A100: 2018-05-02 | B100: SAKAR | C100: Sakar Healthcare Ltd. | D100: JOHNSON AND ANDREW PROPERTIES PVT LTD | E100: SELL | F100: 105000 | G100: 73.67 | H100: NSE
A101: 2018-05-02 | B101: SAKAR | C101: Sakar Healthcare Ltd. | D101: PURITY TRADEMAX LLP | E101: SELL | F101: 96000 | G101: 77.76 | H101: NSE
A102: 2018-05-02 | B102: SECURCRED | C102: SecUR Credentials Limited | D102: ARCADIA SHARE & STOCK BROKERS PRIVATE LIMITED | E102: SELL | F102: 37800 | G102: 157.03 | H102: NSE

Sheet Call Tracker (Equity & F&O)
N5: Back To Main Page
A6: Retail Research Technical Calls & Fundamental Performance Report for the month of May -2018
N7: =Main!B10 -> 2017-05-03
B8: Positional Call
A9: Sr.no | B9: Date | D9: Company | E9: Rec | F9: Rec Price | G9: Stop Loss*** | H9: Call Closed At | I9: Target | J9: Remark | L9: Profit / Loss per Share | M9: Gain / Loss % | N9: Status | O9: Closed Date | P9: NSE Closed Price
A10: 1 | B10: 2018-02-12 | D10: ITC | E10: Buy | F10: 271.5 | G10: 250 | H10: 285 | I10: 310 | J10: Profit of Rs.13.5/- | L10: =H10-F10 -> 13.5 | M10: =L10/F10 -> 4.97% | N10: Successful | O10: 2018-05-02 | S10: P
A11: 1 | B11: 2018-04-05 | D11: RECLTD | E11: Buy | F11: 128-130 | G11: 122 | I11: 140 | J11: Open | P11: =VLOOKUP(D11,Sheet2!$A$1:M2148,6,0) -> 127.5 | S11: R
A12: 2 | B12: 2018-04-11 | D12: FEDERALBNK | E12: Buy | F12: 98-50-99.00 | G12: 94 | I12: 106-109 | J12: Open | P12: =VLOOKUP(D12,Sheet2!$A$1:M2151,6,0) -> 98.3 | S12: R
A13: 4 | B13: 2018-04-18 | D13: BHEL | E13: Buy | F13: 88-89 | G13: 83 | I13: 100 | J13: Open | P13: =VLOOKUP(D13,Sheet2!$A$1:M2152,6,0) -> 87.8 | S13: A
A14: 5 | B14: 2018-04-20 | D14: HINDZINC | E14: Sell | F14: 325.5 | G14: 340 | H14: 314.5 | I14: 310-305 | J14: Profit of Rs.11/- | L14: =F14-H14 -> 11 | M14: =L14/F14 -> 3.38% | N14: Successful | O14: 2018-05-02 | S14: H
A15: 6 | B15: 2018-04-26 | D15: HCLTECH | E15: Buy | F15: 1060 | G15: 1018 | H15: 1015 | I15: 1130-1150 | J15: Loss of Rs.45/- | L15: =H15-F15 -> -45 | M15: -4.25% | N15: Unsuccessful | O15: 2018-05-02 | S15: H
A16: 7 | B16: 2018-04-27 | D16: PFC | E16: Buy | F16: 85.8 | G16: 82.5 | H16: 89.45 | I16: 91-93 | J16: Profit of Rs.3.65/- | L16: =H16-F16 -> 3.65 | M16: =L16/F16 -> 4.25% | N16: Successful | O16: 2018-05-02 | S16: H
A17: 8 | B17: 2018-04-30 | D17: HEXAWARE | E17: Sell | F17: 443-447 | G17: 464 | I17: 410-400 | J17: Open | P17: =VLOOKUP(D17,Sheet2!$A$1:M2158,6,0) -> 448.9 | S17: H
A31: CLBS = Closing Basis *** | F31: Reinitiated $
A32: Dividend adjusted <> | F32: Revised stoploss #
A34: Master Trade High Risk
A35: Sr.no | B35: Date | D35: Company | E35: Rec | F35: Rec Price | G35: Stop Loss | H35: Call Closed At | I35: Target | J35: Remark | L35: Profit / Loss per share | M35: Gain / Loss per Lot | N35: Lot | O35: Status | P35: Closed Date
A44: Master Trade Medium Risk
A45: Sr.no | B45: Date | D45: Company | E45: Rec | F45: Rec Price | G45: Stop Loss | H45: Call Closed At | I45: Target | J45: Remark | L45: Profit/Loss per lot | M45: Gain / Loss per Lot | N45: Lot | O45: Status | P45: Closed Date
B51: Smart Delivery Trade
A52: Sr.no | B52: Date | D52: Company | E52: Rec | F52: Rec Price | G52: Stop Loss*** | H52: Call Closed At | I52: Target | J52: Remark | L52: Profit / Loss per Share | M52: Gain / Loss % | N52: Status | O52: Closed Date | P52: NSE Closed Price
A53: 1 | B53: 2018-02-15 | D53: ACC | E53: Buy$ | F53: 1585 | G53: 1520 | I53: 1750 | J53: Open | P53: =VLOOKUP(D53,Sheet2!$A$1:M2140,6,0) -> 1587.15 | S53: R
A54: 2 | B54: 2018-04-09 | D54: SUNPHARMA | E54: Buy | F54: 514-517 | G54: 500 | I54: 540-545 | J54: Open | P54: =VLOOKUP(D54,Sheet2!$A$1:M2193,6,0) -> 528.4 | S54: R
A55: 3 | B55: 2018-04-23 | D55: TATACOMM | E55: Buy | F55: 630-632 | G55: 615 | I55: 660-665 | J55: Open | P55: =VLOOKUP(D55,Sheet2!$A$1:M2203,6,0) -> 623.8 | S55: R
A56: 4 | B56: 2018-04-24 | D56: IOC | E56: Buy | F56: 161.50-162.50 | G56: 157 | I56: 170-172 | J56: Open | P56: =VLOOKUP(D56,Sheet2!$A$1:M2204,6,0) -> 162.3 | S56: H
A57: 5 | B57: 2018-04-25 | D57: NTPC | E57: Buy | F57: 169-170 | G57: 164.8 | I57: 177-180 | J57: Open | P57: =VLOOKUP(D57,Sheet2!$A$1:M2206,6,0) -> 172.15 | S57: H
A58: 6 | B58: 2018-04-30 | D58: AMBUJACEM | E58: Buy | F58: 250-252 | G58: 240 | I58: 265-270 | J58: Open | P58: =VLOOKUP(D58,Sheet2!$A$1:M2210,6,0) -> 250.65 | S58: H
A59: 7 | B59: 2018-04-30 | D59: RAMCOCEM | E59: Buy | F59: 820-825 | G59: 805 | I59: 850 | J59: Open | S59: R
A60: 8 | B60: 2018-05-02 | D60: DHFL | E60: Sell | F60: 637.5 | G60: 662 | H60: 663.5 | I60: 610-600 | J60: Loss of Rs.26/- | L60: =F60-H60 -> -26 | M60: =L60/F60 -> -4.08% | N60: Unsuccessful | O60: 2018-05-02 | S60: H
A61: 9 | B61: 2018-05-02 | D61: DELTACORP | E61: Buy | F61: 272 | G61: 263 | H61: 263 | I61: 283-285 | J61: Loss of Rs.9/- | L61: =H61-F61 -> -9 | M61: -3.31% | N61: Unsuccessful | O61: 2018-05-02 | S61: R
A72: CLBS = Closing Basis *** | F72: Reinitiated $
A73: Dividend adjusted <> | F73: Revised stoploss #
A76: Techno -Funda (positional)
A77: Sr.no | B77: Date | D77: Company | E77: Rec | F77: Rec Price | G77: Stop Loss*** | H77: Call Closed At | I77: Target | J77: Remark | L77: Profit / Loss per Share | M77: Gain / Loss % | N77: Status | O77: Closed Date | P77: NSE Closed Price
A78: 1 | B78: 2018-04-16 | D78: ENGINERSIN | E78: Buy | F78: 157-160 | G78: 147 | I78: 185-190 | J78: Open | S78: H
A81: CLBS = Closing Basis *** | F81: Reinitiated $
A82: Dividend adjusted <> | F82: Revised stoploss #
B86: Momentum Call
A87: Sr.no | B87: Date | D87: Company | E87: Rec | F87: Rec Price | G87: Stop Loss | H87: Call Closed At | I87: Target | J87: Remark | L87: Profit / Loss per Share/Lot | M87: Gain / Loss % | N87: Gain / Loss per Lot | O87: Lot | P87: Status | Q87: Closed Date | R87: NSE Closed Price
A88: 1 | B88: 2018-04-30 | D88: RAIN | E88: Buy | F88: 326.5 | G88: 315 | H88: 315 | I88: 340-345 | J88: Loss of Rs.11.5/- | L88: =H88-F88 -> -11.5 | M88: =L88/F88 -> -3.52% | P88: Unsuccessful | Q88: 2018-05-02 | S88: R
A89: 2 | B89: 2018-05-02 | D89: TATACHEM MAY FUT | E89: Buy | F89: 785 | G89: 769 | H89: 771 | I89: 800-805 | J89: Loss of Rs.14/- | L89: =H89-F89 -> -14 | N89: =O89*L89 -> -10500 | O89: 750 | P89: Unsuccessful | Q89: 2018-05-02 | S89: H
A90: 3 | B90: 2018-05-02 | D90: EXIDEIND | E90: Buy | F90: 251 | G90: 246 | I90: 260-262 | J90: Open | S90: H
A100: CLBS = Closing Basis *** | F100: Reinitiated $
A101: Dividend adjusted <> | F101: Revised stoploss #
B105: Quick Pick Intraday
A106: Sr.no | B106: Date | D106: Company | E106: Rec | F106: Rec Price | G106: Stop Loss*** | H106: Call Closed At | I106: Target | J106: Remark | L106: Profit / Loss per Share | M106: Gain / Loss % | N106: Status | O106: Closed Date
A107: 1 | B107: 2018-05-02 | D107: GODREJPROP | E107: Buy | F107: 817.5 | G107: 804 | H107: 804 | I107: 835-840 | J107: Loss of Rs.13.5/- | L107: =H107-F107 -> -13.5 | M107: =L107/F107 -> -1.65% | N107: Unsuccessful | O107: 2018-05-02 | S107: H
B110: Investment Idea
A111: Sr.no | B111: Date | D111: Company | E111: Rec | F111: Rec Price | G111: Point of Review | H111: Close Rate | I111: Target | J111: Remark | L111: Profit / Loss per Share | M111: Gain / Loss % | N111: Status | O111: Closed Date
A112: 1 | B112: 2013-11-01 | D112: L&T Finance Holding | E112: Accu | F112: 82.00 | G112: - | H112: 100 | I112: 100.00 | J112: Target Achieved | L112: =H112-F112-K112 -> 18.00 | M112: =L112/F112 -> 21.95% | N112: Successful | O112: 2016-10-14
A113: 2 | B113: 2014-06-04 | D113: Finolex Inds | E113: Buy | F113: 257.00 | G113: - | H113: 300 | I113: 300.00 | J113: Target Achieved | L113: 43.00 | M113: 16.73% | N113: Successful | O113: 2014-07-02
A114: =1+A113 -> 3 | B114: 2014-07-08 | D114: JK Cement | E114: Buy | F114: 393.00 | G114: - | H114: 468 | I114: 468.00 | J114: Target Achieved | L114: 75.00 | M114: 19.08% | N114: Successful | O114: 2014-08-12
A115: 4 | B115: 2014-08-06 | D115: Finolex Cables | E115: Buy | F115: 205.00 | G115: - | H115: 275 | I115: 250.00 | J115: Target Achieved | L115: 70.00 | M115: 34.15% | N115: Successful | O115: 2014-11-19
A116: 5 | B116: 2014-09-04 | D116: Exide Inds | E116: Buy | F116: 162.00 | G116: - | H116: 190 | I116: 190.00 | J116: Target Achieved | L116: 28.00 | M116: 17.28% | N116: Successful | O116: 2015-01-02
A117: 6 | B117: 2014-09-04 | D117: Deepak Nitrite | E117: Buy | F117: 75.00 | G117: - | H117: 91.5 | I117: 95-100 | J117: Profit of Rs.16.50/- | L117: 16.50 | M117: 22.00% | N117: Successful | O117: 2014-11-11
A118: 7 | B118: 2014-10-01 | D118: Mercks | E118: Buy | F118: 850.00 | G118: - | H118: 982.5 | I118: 1050.00 | J118: Profit of Rs.132.50/- | L118: 132.50 | M118: 15.59% | N118: Successful | O118: 2015-02-04
A119: 8 | B119: 2014-10-01 | D119: Grindwell Norton | E119: Buy | F119: 475.00 | G119: - | H119: 515 | I119: 600.00 | J119: Profit of Rs.40/- | L119: 40.00 | M119: 8.42% | N119: Successful | O119: 2014-10-27
A120: 9 | B120: 2014-10-01 | D120: Snowman Logistics | E120: Buy | F120: 86.00 | G120: - | H120: 99 | I120: 140.00 | J120: Profit of Rs.13.00/- | L120: 13.00 | M120: 15.12% | N120: Successful | O120: 2014-10-27
A121: 10 | B121: 2014-10-14 | D121: Birla Corp | E121: Buy | F121: 496.60 | G121: - | H121: 621 | I121: 580.00 | J121: Target Achieved | L121: 124.40 | M121: 25.05% | N121: Successful | O121: 2016-08-23
A122: 11 | B122: 2014-10-14 | D122: Ultratech Cem | E122: Buy | F122: 2481.90 | G122: - | H122: 2840 | I122: 2870.00 | J122: Profit of Rs.358.10/- | L122: 358.10 | M122: 14.43% | N122: Successful | O122: 2015-01-13
A123: =1+A120 -> 10 | B123: 2014-10-16 | D123: Sintex Inds | E123: Buy | F123: 84.50 | G123: - | H123: 93 | I123: 110.00 | J123: Profit of Rs.8.50/- | L123: 8.50 | M123: 10.06% | N123: Successful | O123: 2014-10-27
A124: =1+A123 -> 11 | B124: 2014-10-16 | D124: HSIL | E124: Buy | F124: 401.00 | G124: - | H124: 428 | I124: 450.00 | J124: Profit of Rs.27.00/- | L124: 27.00 | M124: 6.73% | N124: Successful | O124: 2015-01-16
A125: 12 | B125: 2014-10-16 | D125: Eveready Inds | E125: Buy | F125: 101.00 | G125: - | H125: 112 | I125: 120.00 | J125: Profit of Rs.11.00/- | L125: 11.00 | M125: 10.89% | N125: Successful | O125: 2014-10-27
A126: 13 | B126: 2014-11-11 | D126: Pennar Inds | E126: Buy | F126: 59.00 | G126: - | H126: 76 | I126: 76.00 | J126: Target Achieved | L126: 17.00 | M126: 28.81% | N126: Successful | O126: 2017-10-24
A127: 14 | B127: 2014-11-11 | D127: Snowman Logistics | E127: Buy | F127: 99.00 | G127: - | H127: 120 | I127: 120.00 | J127: Profit of Rs.21/- | L127: 21.00 | M127: 21.21% | N127: Successful | O127: 2014-11-17
A128: 15 | B128: 2014-11-13 | D128: Dharamsi Morarji Chem | E128: Buy | F128: 22.00 | G128: - | H128: 33.55 | I128: 32.00 | J128: Profit of Rs 11.55/- | L128: 11.55 | M128: 52.50% | N128: Successful | O128: 2015-07-03
A129: 16 | B129: 2014-12-03 | D129: Tatachem | E129: Buy | F129: 440.00 | G129: - | H129: 520 | I129: 520.00 | J129: Profit of Rs 80.00/- | L129: 80.00 | M129: 18.18% | N129: Successful | O129: 2015-07-23
A130: 17 | B130: 2014-12-03 | D130: Advanta | E130: Buy | F130: 360.00 | G130: - | H130: 427 | I130: 425.00 | J130: Profit of Rs.67.00/- | L130: 67.00 | M130: 18.61% | N130: Successful | O130: 2015-02-23
A131: 18 | B131: 2015-01-08 | D131: GDL | E131: Buy | F131: 360.00 | G131: - | H131: 455 | I131: 420.00 | J131: Profit of Rs.95.00/- | L131: 95.00 | M131: 26.39% | N131: Successful | O131: 2015-01-20
A132: 19 | B132: 2015-01-08 | D132: NRB Bearing | E132: Buy | F132: 130.00 | H132: 175.5 | I132: 165.00 | J132: Profit of Rs 45.50/- | L132: 45.50 | M132: 35.00% | N132: Successful | O132: 2017-12-19
A133: 20 | B133: 2015-02-05 | D133: GSFC | E133: Accu | F133: 98.00 | H133: 120 | I133: 120.00 | J133: Target Achieved | L133: 22.00 | M133: 22.45% | N133: Successful | O133: 2017-01-18
A134: 21 | B134: 2015-02-05 | D134: Sundrmfast | E134: Accu | F134: 196.00 | H134: 262 | I134: 255.00 | J134: Target Achieved | L134: 66.00 | M134: 33.67% | N134: Successful | O134: 2016-08-17
A135: 22 | B135: 2015-03-04 | D135: GPPL | E135: Accu | F135: 230-240 | I135: 280-285 | J135: Open
A136: 23 | B136: 2015-03-04 | D136: ORIENTCEM | E136: Accu | F136: 185.00 | H136: 224 | I136: 220-225 | J136: Target Achieved | L136: =H136-F136-K136 -> 39.00 | M136: =L136/F136 -> 21.08% | N136: Successful | O136: 2016-10-04
A137: 24 | B137: 2015-03-27 | D137: PFS | E137: Accu | F137: 49-50 | I137: 67.00 | J137: Open
A138: 25 | B138: 2015-03-30 | D138: Walchandnagar Ind Ltd | E138: Accu | F138: 183.50 | H138: 219 | I138: 218.00 | J138: Profit of Rs.35.50/- | L138: =H138-F138-K138 -> 35.50 | M138: =L138/F138 -> 19.35% | N138: Successful | O138: 2015-04-09
A139: 26 | B139: 2015-04-20 | D139: Kalpataru Power Transmission Ltd | E139: Accu | F139: =(227+237)/2 -> 232.00 | H139: 298 | I139: 298.00 | J139: Target Achieved | L139: 66.00 | M139: 28.45% | N139: Successful | O139: 2017-03-29
A140: 27 | B140: 2015-05-04 | D140: Mastek Ltd | E140: Buy | F140: 385.00 | H140: =212.5+331 -> 543.5 | I140: 510.00 | J140: Profit of Rs 158.50/- | L140: 158.50 | M140: 41.17% | N140: Successful | O140: 2015-08-19
A141: 28 | B141: 2015-05-04 | D141: Suprajit Eng | E141: Buy | F141: 115.50 | H141: 146 | I141: 142.00 | J141: Profit of Rs 30.50/- | L141: 30.50 | M141: 26.41% | N141: Successful | O141: 2015-07-17
A142: 29 | B142: 2015-05-27 | D142: TCI | E142: Buy | F142: 237.50 | H142: 279.5 | I142: 278.00 | J142: Target Achieved | L142: 42.00 | M142: 17.68% | N142: Successful | O142: 2015-08-06
A143: 30 | B143: 2015-06-19 | D143: HSIL | E143: Accu | F143: 340.00 | H143: 448 | I143: 448.00 | J143: Target Achieved | L143: 108.00 | M143: 31.76% | N143: Successful | O143: 2017-10-10
A144: 31 | B144: 2015-07-06 | D144: Capital First | E144: Accu | F144: 390.00 | H144: 460 | I144: 460.00 | J144: Target Achieved | L144: 70.00 | M144: 17.95% | N144: Successful | O144: 2016-04-18
A145: 32 | B145: 2015-07-10 | D145: Dolphin OffShore | E145: Accu | F145: 118-127 | I145: 172.00 | J145: Open
A146: 33 | B146: 2015-08-03 | D146: Allcargo logistics | E146: Accu | F146: 297.50 | H146: 350 | I146: 360.00 | J146: Profit of Rs 52.50/- | L146: =H146-F146-K146 -> 52.50 | M146: =L146/F146 -> 17.65% | N146: Successful | O146: 2015-08-16
A147: 34 | B147: 2015-08-03 | D147: Camline Fine | E147: Accu | F147: 115.50 | H147: 149 | I147: 140.00 | J147: Profit of Rs 33.50/- | L147: 33.50 | M147: 29.00% | N147: Successful | O147: 2017-01-05
A148: 35 | B148: 2015-09-04 | D148: TCI | E148: Accu | F148: 226.00 | H148: 292 | I148: 292.00 | J148: Target Achieved | L148: 66.00 | M148: 29.20% | N148: Successful | O148: 2015-10-09
A149: 36 | B149: 2015-09-07 | D149: Kalpataru Power Transmission Ltd | E149: Accu | F149: 232.50 | H149: 312.5 | I149: 310.00 | J149: Target Achieved | L149: 80.00 | M149: 34.41% | N149: Successful | O149: 2017-03-29
A150: 37 | B150: 2015-09-21 | D150: LLOYD ELECTRIC & ENG LTD | E150: Accu | F150: 196.50 | H150: 238 | I150: 238.00 | J150: Target Achieved | L150: 41.50 | M150: 21.12% | N150: Successful | O150: 2015-10-14
A151: 38 | B151: 2015-09-24 | D151: L&T Finance Holding | E151: Accu | F151: 65.00 | H151: 82 | I151: 82.00 | J151: Target Achieved | L151: 17.00 | M151: 26.15% | N151: Successful | O151: 2016-07-27
A152: 39 | B152: 2015-10-14 | D152: KEC International ltd | E152: Accu | F152: 144.00 | H152: 182.5 | I152: 181.00 | J152: Target Achieved | L152: 38.50 | M152: 26.74% | N152: Successful | O152: 2017-03-23
A153: 40 | B153: 2015-10-14 | D153: Gruh Finance | E153: Accu | F153: 264.00 | H153: 311 | I153: 311.00 | J153: Target Achieved | L153: 47.00 | M153: 17.80% | N153: Successful | O153: 2016-08-22
A154: 41 | B154: 2015-11-10 | D154: Pidilitind | E154: Buy | F154: 549.50 | H154: 630 | I154: 630.00 | J154: Target Achieved | L154: 80.50 | M154: 14.65% | N154: Successful | O154: 2016-02-19
A155: 42 | B155: 2015-12-04 | D155: Zensar Technology | E155: Accu | F155: 1020-1035 | I155: 1250.00 | J155: Open
A156: 43 | B156: 2015-12-29 | D156: Vinati Organics Ltd | E156: Accu | F156: 465.00 | H156: 540 | I156: 540.00 | J156: Target Achieved | L156: =H156-F156-K156 -> 75.00 | M156: =L156/F156 -> 16.13% | N156: Successful | O156: 2016-06-09
A157: 44 | B157: 2016-01-11 | D157: GSFC | E157: Buy | F157: 81.00 | H157: 110 | I157: 110.00 | J157: Target Achieved | L157: 29.00 | M157: 35.80% | N157: Successful | O157: 2017-01-10
A158: 45 | B158: 2016-01-13 | D158: SSWL | E158: Buy | F158: 417.50 | H158: 547 | I158: 535.00 | J158: Target Achieved | L158: 129.50 | M158: 31.02% | N158: Successful | O158: 2016-07-27
A159: 46 | B159: 2016-02-08 | D159: Persistent System Ltd | E159: Accu | F159: 650.00 | H159: 800 | I159: 800.00 | J159: Target Achieved | L159: =H159-F159-K159 -> 150.00 | M159: =L159/F159 -> 23.08% | N159: Successful | O159: 2018-02-23
A160: 47 | B160: 2016-03-04 | D160: UPL | E160: Accu | F160: 437.50 | H160: 504.5 | I160: 522.00 | J160: Profit of Rs.67/- | L160: 67.00 | M160: 15.31% | N160: Successful | O160: 2016-04-20
A161: 48 | B161: 2016-03-09 | D161: Ashoka Buildcon Ltd | E161: Accu | F161: 189.50 | H161: 218 | I161: 218.00 | J161: Target Achieved | L161: 28.50 | M161: 15.04% | N161: Successful | O161: 2017-10-26
A162: 49 | B162: 2016-04-11 | D162: PTC INDIA FIN SERV LTD | E162: Accu | F162: 36-37 | I162: 60.00 | J162: Open
A163: 50 | B163: 2016-04-12 | D163: CAMLINFINE $ | E163: Accu | F163: 93.00 | H163: 149 | I163: 140.00 | J163: Profit of Rs 56/- | L163: =H163-F163-K163 -> 56.00 | M163: =L163/F163 -> 60.22% | N163: Successful | O163: 2017-01-05
A164: 51 | B164: 2016-04-12 | D164: Greaves Cotton Ltd. | E164: Accu | F164: 130.00 | H164: 150 | I164: 150-155 | J164: Target Achieved | L164: 20.00 | M164: 15.38% | N164: Successful | O164: 2016-07-13
A165: 52 | B165: 2016-04-13 | D165: DHFL | E165: Accu | F165: 196.00 | H165: 299 | I165: 299.00 | J165: Target Achieved | L165: 103.00 | M165: 52.55% | N165: Successful | O165: 2016-09-07
A166: 53 | B166: 2016-04-13 | D166: Magma | E166: Accu | F166: 88.00 | H166: 103 | I166: 103.00 | J166: Target Achieved | L166: 15.00 | M166: 17.05% | N166: Successful | O166: 2016-06-09
A167: 54 | B167: 2016-05-02 | D167: KEC International ltd $ | E167: Accu | F167: 127.50 | H167: 148 | I167: 148-150 | J167: Target Achieved | L167: 20.50 | M167: 16.08% | N167: Successful | O167: 2016-07-13
A168: 55 | B168: 2016-05-03 | D168: Mindtree | E168: Accu | F168: 675.00 | H168: 815 | I168: 790-800 | J168: Target Achieved | L168: 140.00 | M168: 20.74% | N168: Successful | O168: 2018-02-23
A169: 56 | B169: 2016-06-01 | D169: Atulauto | E169: Accu | F169: 495-505 | I169: 565-570 | J169: Open
A170: 57 | B170: 2016-06-06 | D170: TRITURBINE | E170: Accu | F170: 110.00 | H170: 126.5 | I170: 125.00 | J170: Profit of Rs.16.50/- | L170: =H170-F170-K170 -> 16.50 | M170: =L170/F170 -> 15.00% | N170: Successful | O170: 2016-07-01
A171: 58 | B171: 2016-06-17 | D171: Pennar Industries Ltd | E171: Accu | F171: 44.00 | H171: 69.5 | I171: 69.50 | J171: Profit of Rs.25.50/- | L171: =H171-F171-K171 -> 25.50 | M171: =L171/F171 -> 57.95% | N171: Successful | O171: 2017-08-30
A172: 59 | B172: 2016-06-28 | D172: EVEREADY INDS. IND. LTD. | E172: Accu | F172: 262.50 | H172: 340 | I172: 333.00 | J172: Profit of Rs.77.50/- | L172: =H172-F172-K172 -> 77.50 | M172: =L172/F172 -> 29.52% | N172: Successful | O172: 2017-10-09
A173: 60 | B173: 2016-06-28 | D173: FIEM INDUSTRIES LIMITED | E173: Accu | F173: 840.00 | H173: 1230 | I173: 1230.00 | J173: Target Achieved | L173: =H173-F173-K173 -> 390.00 | M173: =L173/F173 -> 46.43% | N173: Successful | O173: 2016-10-06
A174: 61 | B174: 2016-07-05 | D174: Bajaj Corp Ltd | E174: Accu | F174: 395 | H174: 468.50 | I174: 510.00 | J174: Part profit of Rs.73.50/- | L174: =H174-F174-K174 -> 73.50 | M174: =L174/F174 -> 19% | N174: Successful | O174: 2017-08-30
A175: 62 | B175: 2016-08-02 | D175: GPPL $ | E175: Buy | F175: 167-172 | I175: 198-200 | J175: Open
A176: 63 | B176: 2016-08-04 | D176: WONDERLA HOLIDAYS LTD | E176: Accu | F176: 395-405 | I176: 475.00 | J176: Open
A177: 64 | B177: 2016-08-11 | D177: CAMLINFINE | E177: Accu | F177: 86.50 | H177: 130 | I177: 130.00 | J177: Profit of Rs.43.50/- | L177: =H177-F177-K177 -> 43.50 | M177: =L177/F177 -> 50.29% | N177: Successful | O177: 2017-12-22
A178: 65 | B178: 2016-08-18 | D178: GRANULES | E178: Accu | F178: 133.5 | H178: 126.50 | I178: 178.00 | J178: Exit | L178: -7.00 | M178: -5.24% | N178: Unsuccessful | O178: 2016-09-02
A179: 66 | B179: 2016-08-31 | D179: VA TECH WABAG | E179: Accu | F179: 560.00 | H179: 725 | I179: 725.00 | J179: Target Achieved | L179: 165.00 | M179: 29.46% | N179: Successful | O179: 2016-03-27
A180: 67 | B180: 2016-09-01 | D180: SKIPPER LIMITED | E180: Accu | F180: 160.50 | H180: 210 | I180: 210.00 | J180: Target Achieved | L180: 49.50 | M180: 30.84% | N180: Successful | O180: 2017-05-16
A181: 68 | B181: 2016-10-03 | D181: IFB Industries | E181: Accu | F181: 430.00 | H181: 596 | I181: 575.00 | J181: Profit of Rs.166/- | L181: 166.00 | M181: 38.60% | N181: Successful | O181: 2017-02-03
A182: 69 | B182: 2016-10-14 | D182: ASIANTILES | E182: Accu | F182: 280.00 | H182: 345 | I182: 345.00 | J182: Target Achieved | L182: 65.00 | M182: 23.21% | N182: Successful | O182: 2017-03-20
A183: 70 | B183: 2016-10-14 | D183: DEEPIND | E183: Accu | F183: 245.00 | H183: 325.5 | I183: 330.00 | J183: Profit of Rs.80.5/- | L183: 80.50 | M183: 32.86% | N183: Successful | O183: 2017-02-03
A184: 71 | B184: 2016-10-17 | D184: DCBBANK | E184: Accu | F184: 125.00 | H184: 160 | I184: 160.00 | J184: Target Achieved | L184: 35.00 | M184: 28.00% | N184: Successful | O184: 2017-03-09
A185: 72 | B185: 2016-10-17 | D185: ORIENTREF | E185: Accu | F185: 114.00 | H185: 145 | I185: 145.00 | J185: Target Achieved | L185: =H185-F185-K185 -> 31.00 | M185: =L185/F185 -> 27.19% | N185: Successful | O185: 2017-05-04
A186: 73 | B186: 2016-10-17 | D186: GANECOS | E186: Accu | F186: 212.00 | H186: 280 | I186: 276.00 | J186: Profit of Rs.68/- | L186: =H186-F186-K186 -> 68.00 | M186: =L186/F186 -> 32.08% | N186: Successful | O186: 2017-05-03
A187: 74 | B187: 2016-11-04 | D187: NBCC | E187: Accu | F187: 155.00 | H187: 210 | I187: 210.00 | J187: Profit of Rs.55/- | L187: =H187-F187-K187 -> 55.00 | M187: =L187/F187 -> 35.48% | N187: Successful | O187: 2017-07-28
A188: 75 | B188: 2016-12-06 | D188: PRECAM | E188: Accu | F188: 148-153 | I188: 174.00 | J188: Open
A189: 76 | B189: 2016-12-08 | D189: INFRATEL | E189: Accu | F189: 380.00 | H189: 478 | I189: 468.00 | J189: Target Achieved | L189: =H189-F189-K189 -> 98.00 | M189: =L189/F189 -> 25.79% | N189: Successful | O189: 2017-10-17
A190: 77 | B190: 2016-12-30 | D190: GODREJPROP | E190: Accu | F190: 305.00 | H190: 375 | I190: 375.00 | J190: Target Achieved | L190: 70.00 | M190: 22.95% | N190: Successful | O190: 2017-02-02
A191: 78 | B191: 2017-01-04 | D191: DEEPAKNTR | E191: Accu | F191: 99.50 | H191: 158 | I191: 158.00 | J191: Target Achieved | L191: 58.50 | M191: 58.79% | N191: Successful | O191: 2017-06-12
A192: 79 | B192: 2017-02-20 | D192: SUBROS | E192: Accu | F192: 202.50 | H192: 234 | I192: 234.00 | J192: Target Achieved | L192: 31.50 | M192: 15.56% | N192: Successful | O192: 2017-04-11
A193: 80 | B193: 2017-02-20 | D193: RECLTD | E193: Accu | F193: 140.50 | H193: 220 | I193: 220.00 | J193: Target Achieved | L193: 79.50 | M193: 56.58% | N193: Successful | O193: 2017-05-09
A194: 81 | B194: 2017-03-24 | D194: VRLLOG | E194: Accu | F194: 300.50 | H194: 417.5 | I194: 420.00 | J194: Profit of Rs.117/- | L194: 117.00 | M194: 38.94% | N194: Successful | O194: 2017-12-01
A195: 82 | B195: 2017-03-24 | D195: FIEMIND | E195: Accu | F195: 850.00 | H195: 1042.5 | I195: 1023.00 | J195: Profit of Rs 192.50/- | L195: 192.50 | M195: 22.65% | N195: Successful | O195: 2017-04-05
A196: 83 | B196: 2017-04-05 | D196: RATNAMANI | E196: Accu | F196: 785.00 | H196: 930 | I196: 920.00 | J196: Profit of Rs.145/- | L196: 145.00 | M196: 18.47% | N196: Successful | O196: 2017-08-29
A197: 84 | B197: 2017-04-06 | D197: ZEEMEDIA | E197: Accu | F197: 39-41 | I197: 60.00 | J197: Open
A198: 85 | B198: 2017-04-12 | D198: DABUR | E198: Accu | F198: 289.50 | H198: 354 | I198: 360.00 | J198: Profit of Rs.64.5/- | L198: =H198-F198-K198 -> 64.50 | M198: =L198/F198 -> 22.28% | N198: Successful | O198: 2017-11-01
A199: 86 | B199: 2017-04-20 | D199: KPRMILL | E199: Accu | F199: 700.00 | H199: 840 | I199: 840.00 | J199: Profit of Rs.140/- | L199: =H199-F199-K199 -> 140.00 | M199: =L199/F199 -> 20.00% | N199: Successful | O199: 2017-06-07
A200: 87 | B200: 2017-05-22 | D200: GREAVESCOT | E200: Accu | F200: 153-158 | I200: 190.00 | J200: Open
A201: 88 | B201: 2017-06-01 | D201: ESSELPACK | E201: Accu | F201: 260 | H201: 311.00 | I201: 340.00 | J201: Part profit of Rs.51/- | L201: =H201-F201-K201 -> 51.00 | M201: =L201/F201 -> 20% | N201: Successful | O201: 2017-11-17
A202: 89 | B202: 2017-06-15 | D202: KEI | E202: Accu | F202: 214.50 | H202: 262 | I202: 262.00 | J202: Profit of Rs.47.5/- | L202: 47.50 | M202: 22.14% | N202: Successful | O202: 2017-08-30
A203: 90 | B203: 2017-07-17 | D203: MAYURUNIQ | E203: Accu | F203: 370.00 | H203: 447.5 | I203: 450.00 | J203: Target Achieved | L203: 77.50 | M203: 20.95% | N203: Successful | O203: 2017-10-27
A204: 91 | B204: 2017-07-27 | D204: RAMCOCEM | E204: Accu | F204: 657.50 | H204: 825 | I204: 820.00 | J204: Target Achieved | L204: 167.50 | M204: 25.48% | N204: Successful | O204: 2017-12-21
A205: 92 | B205: 2017-08-17 | D205: FINPIPE | E205: Accu | F205: 605.00 | H205: 750 | I205: 750.00 | J205: Profit of Rs.145/- | L205: 145.00 | M205: 23.97% | N205: Successful | O205: 2017-10-19
A206: 93 | B206: 2017-09-01 | D206: SHK | E206: Accu | F206: 255 | H206: 307.50 | I206: 320.00 | J206: Part profit of Rs.52.5/- | L206: 52.50 | M206: 21% | N206: Successful | O206: 2017-12-29
A207: 94 | B207: 2017-09-19 | D207: SKIPPER | E207: Accu | F207: 215.00 | H207: 258 | I207: 258.00 | J207: Target Achieved | L207: 43.00 | M207: 20.00% | N207: Successful | O207: 2017-11-01
A208: 95 | B208: 2017-09-20 | D208: CAMLINFINE | E208: Accu | F208: 75.00 | H208: 90 | I208: 90.00 | J208: Profit of Rs.15.00/- | L208: 15.00 | M208: 20.00% | N208: Successful | O208: 2017-10-11
A209: 96 | B209: 2017-10-03 | D209: GNA | E209: Accu | F209: 315.00 | H209: 392 | I209: 384.00 | J209: Profit of Rs.77/- | L209: 77.00 | M209: 24.44% | N209: Successful | O209: 2017-10-09
A210: 97 | B210: 2017-10-05 | D210: NOCIL | E210: Accu | F210: 145.00 | H210: 179 | I210: 180.00 | J210: Profit of Rs.34/- | L210: 34.00 | M210: 23.45% | N210: Successful | O210: 2017-10-17
A211: 98 | B211: 2017-10-06 | D211: CENTURYPLY | E211: Accu | F211: 256.00 | H211: 323 | I211: 320.00 | J211: Target Achieved | L211: 67.00 | M211: 26.17% | N211: Successful | O211: 2017-11-28
A212: 99 | B212: 2017-10-09 | D212: RECLTD | E212: Accu | F212: 152.5 | H212: 183.50 | I212: 210.00 | J212: Part Profit of Rs.31/- | L212: 31.00 | M212: 20% | N212: Successful | O212: 2017-11-03
A213: 100 | B213: 2017-10-09 | D213: EIHOTEL | E213: Accu | F213: 137.50 | H213: 184 | I213: 183.00 | J213: Profit of Rs.46.5/- | L213: 46.50 | M213: 33.82% | N213: Successful | O213: 2018-01-08
A214: 101 | B214: 2017-10-10 | D214: BOROSIL | E214: Accu | F214: 895.00 | H214: 1122.5 | I214: 1078.00 | J214: Profit of Rs.227.5/- | L214: 227.50 | M214: 25.42% | N214: Successful | O214: 2018-01-17
A215: 102 | B215: 2017-10-10 | D215: NRBBEARING | E215: Accu | F215: 125.50 | H215: 158 | I215: 155.00 | J215: Profit of Rs.32.5/- | L215: 32.50 | M215: 25.90% | N215: Successful | O215: 2017-11-28
A216: 103 | B216: 2017-10-12 | D216: CYIENT | E216: Accu | F216: 525.00 | H216: 629 | I216: 629.00 | J216: Target Achieved | L216: 104.00 | M216: 19.81% | N216: Successful | O216: 2018-01-19
A217: 104 | B217: 2017-11-07 | D217: HATSUN | E217: Accu | F217: 740.00 | H217: 892.5 | I217: 900.00 | J217: Profit of Rs.152.5/- | L217: 152.50 | M217: 20.61% | N217: Successful | O217: 2017-11-13
A218: 105 | B218: 2017-12-04 | D218: SANGHIIND | E218: Accu | F218: 118.50 | H218: 143.5 | I218: 145.00 | J218: Profit of Rs.25/- | L218: 25.00 | M218: 21.10% | N218: Successful | O218: 2017-12-28
A219: 106 | B219: 2017-12-05 | D219: ALLCARGO | E219: Accu | F219: 177.5 | H219: 215.00 | I219: 230.00 | J219: Part Profit of Rs.37.5/- | L219: 37.50 | M219: 21% | N219: Successful | O219: 2017-12-27
A220: 107 | B220: 2017-12-21 | D220: KAJARIACER | E220: Accu | F220: 710-720 | I220: 872.00 | J220: Open
A221: 108 | B221: 2017-12-29 | D221: GNA | E221: Accu | F221: 435.00 | H221: 542.5 | I221: 539.00 | J221: Target Achieved | L221: =H221-F221-K221 -> 107.50 | M221: =L221/F221 -> 24.71% | N221: Successful | O221: 2018-04-16
A222: 109 | B222: 2017-12-29 | D222: ZENSARTECH | E222: Accu | F222: 885.00 | H222: 1090 | I222: 1084.00 | J222: Target Achieved | L222: =H222-F222-K222 -> 205.00 | M222: =L222/F222 -> 23.16% | N222: Successful | O222: 2018-04-23
A223: 110 | B223: 2018-02-07 | D223: GREAVESCOT | E223: Accu | F223: 130-132 | I223: 190.00 | J223: Open
A224: 111 | B224: 2018-02-27 | D224: MOLDTKPAC | E224: Accu | F224: 320-330 | I224: 398.00 | J224: Open
A225: 112 | B225: 2018-03-05 | D225: LICHSGFIN | E225: Accu | F225: 505-515 | I225: 672.00 | J225: Open
A226: 113 | B226: 2018-04-02 | D226: EVERESTIND | E226: Accu | F226: 485-500 | I226: 613.00 | J226: Open
A227: 114 | B227: 2018-04-04 | D227: GPPL | E227: Accu | F227: 140-143 | I227: 180.00 | J227: Open
A228: 115 | B228: 2018-04-19 | D228: MANPASAND | E228: Accu | F228: 425-435 | I228: 537.00 | J228: Open
A229: 116 | B229: 2018-04-30 | D229: HEIDELBERG | E229: Accu | F229: 154-158 | I229: 196.00 | J229: Open
F231: Reinitiated $
A233: Disclaimer:
A234: This document has been prepared by the Retail Research Desk of Asit C Mehta
A235: Investment Intermediates Ltd. and is meant for use of the recipient only
A236: and is not for circulation. This document is not to be reported or
A237: copied or made available to others. It should not be considered to be
A238: taken as an offer to sell or a solicitation to buy any security. The
A239: information contained herein is from sources believed reliable. We do
A240: not represent that it is accurate or complete and it should not be
A241: relied upon as such. We may from time to time have positions in and buy
A242: and sell securities referred to herein

Sheet Call Tracker (Currency)
A1: Master Trade High Risk
A2: Sr.no | B2: Date | C2: Company | D2: Rec | E2: Rec Price | F2: Stop Loss | G2: Call Closed At | H2: Target | I2: Remark | K2: Profit / Loss per share | L2: Gain / Loss per Lot | M2: Lot | N2: Status | O2: Closed Date
A3: 1 | B3: 2017-05-08 | C3: USDINR MAY FUT | D3: Buy | E3: 64.3935 | F3: 64.29 | G3: 64.66 | H3: 64.59 | I3: Profit of Rs.0.27/- | K3: 0.27 | L3: 266.5 | M3: 1000 | N3: Successful | O3: 2017-05-09 | R3: P
A4: 2 | B4: 2017-05-08 | C4: USDINR JUN FUT | D4: Buy | E4: 64.6535 | F4: 64.45 | G4: 64.965 | H4: 65.05 | I4: Profit of Rs 0.31/- | K4: 0.31 | L4: 311.5 | M4: 1000 | N4: Successful | O4: 2017-05-09 | R4: P
A5: 3 | B5: 2017-05-09 | C5: EUROINR MAY FUT | D5: Sell | E5: 70.65 | F5: 70.8 | G5: 70.07 | H5: 70.4 | I5: Profit of Rs 0.58/- | K5: 0.58 | L5: 580 | M5: 1000 | N5: Successful | O5: 2017-05-12 | R5: P
A6: 4 | B6: 2017-05-09 | C6: GBPINR MAY FUT | D6: Buy | E6: 83.774 | F6: 83.37 | G6: 83.37 | H6: 84.77 | I6: Loss of Rs 0.40/- | K6: -0.40 | L6: -404 | M6: 1000 | N6: Unsuccessful | O6: 2017-05-11 | R6: P
A7: 5 | B7: 2017-05-11 | C7: USDINR MAY FUT | D7: Buy | E7: 64.6555 | F7: 64.55 | G7: 64.55 | H7: 64.86 | I7: Loss of Rs.0.1055/- | K7: -0.1055 | L7: =K7*M7 -> -105.50 | M7: 1000 | N7: Unsuccessful | O7: 2017-05-11 | R7: P
A8: 6 | B8: 2017-05-15 | C8: USDINR MAY FUT | D8: Buy | E8: 64.2275 | F8: 64.08 | G8: 64.46 | H8: 64.48 | I8: Profit of Rs 0.23/- | K8: 0.23 | L8: 232.5 | M8: 1000 | N8: Successful | O8: 2017-05-18 | R8: P
A9: 7 | B9: 2017-05-19 | C9: USDINR MAY FUT | D9: Sell | E9: 64.83 | F9: 65 | G9: 65 | H9: 64.5 | I9: Loss of Rs.0.17/- | K9: -0.17 | L9: -170 | M9: 1000 | N9: Unsuccessful | O9: 2017-05-19 | R9: P
A10: 8 | B10: 2017-05-23 | C10: USDINR MAY FUT | D10: Buy | E10: 64.83 | F10: 64.62 | G10: 64.95 | H10: 65.2 | I10: Profit of Rs 0.12/- | K10: 0.12 | L10: 120 | M10: 1000 | N10: Successful | O10: 2017-05-24 | R10: P
A11: 9 | B11: 2017-05-25 | C11: USDINR MAY FUT | D11: Buy | E11: 64.57 | F11: 64.25 | G11: 64.56 | H11: 65 | I11: Loss of Rs.0.01/- | K11: -0.01 | L11: -10 | M11: 1000 | N11: Neutral | O11: 2017-05-29 | R11: P
A12: 10 | B12: 2017-05-30 | C12: USDINR JUN FUT | D12: Buy | E12: 64.9125 | F12: 64.71 | G12: 64.71 | H12: 65.31 | I12: Loss of Rs.0.20/- | K12: -0.20 | L12: -202.5 | M12: 1000 | N12: Unsuccessful | O12: 2017-05-31 | R12: P
A13: 11 | B13: 2017-06-01 | C13: USDINR JUN FUT | D13: Buy | E13: 64.655 | F13: 64.45 | G13: 64.45 | H13: 65.05 | I13: Loss of Rs.0.20/- | K13: =G13-E13 -> -0.20 | L13: =K13*M13 -> -205 | M13: 1000.00 | N13: Unsuccessful | O13: 2017-06-08 | R13: P
A14: 12 | B14: 2017-06-12 | C14: USDINR JUN FUT | D14: Buy | E14: 64.45 | F14: 64 | G14: 64.7625 | H14: 65.2 | I14: Profit of Rs 0.31/- | K14: 0.31 | L14: 312.5 | M14: 1000 | N14: Successful | O14: 2017-06-16
A15: 13 | B15: 2017-06-16 | C15: USDINR JUN FUT | D15: Buy | E15: 64.51 | F15: 64.2 | G15: 64.7 | H15: 65.11 | I15: Profit of Rs 0.19/- | K15: 0.19 | L15: 190 | M15: 1000 | N15: Successful | O15: 2017-06-21
A16: 14 | B16: 2017-06-22 | C16: USDINR JUN FUT | D16: Buy | E16: 64.56 | F16: 64.2 | G16: 64.2 | H16: 65.1 | I16: Loss of Rs.0.36/- | K16: -0.36 | L16: -360 | M16: 1000.00 | N16: Unsuccessful | O16: 2017-06-30
A17: 15 | B17: 2017-07-10 | C17: USDINR JUL FUT | D17: Buy | E17: 64.67 | F17: 64.4 | G17: 64.4 | H17: 65.15 | I17: Loss of Rs.0.27/- | K17: -0.27 | L17: -270 | M17: 1000.00 | N17: Unsuccessful | O17: 2017-07-31
A18: 16 | B18: 2017-08-02 | C18: USDINR AUG FUT | D18: Buy | E18: 64.235 | F18: 63.98 | G18: 63.98 | H18: 64.75 | I18: Loss of Rs.0.26/- | K18: -0.26 | L18: -255 | M18: 1000.00 | N18: Unsuccessful | O18: 2017-08-02
A19: 17 | B19: 2017-08-08 | C19: USDINR AUG FUT | D19: Buy | E19: 63.9425 | F19: 63.6 | G19: 64.15 | H19: 64.5 | I19: Profit of Rs 0.21/- | K19: 0.21 | L19: 207.5 | M19: 1000 | N19: Successful | O19: 2017-08-10
A20: 18 | B20: 2017-08-22 | C20: USDINR AUG FUT | D20: Buy | E20: 64.1175 | F20: 63.9 | G20: 64.01 | H20: 64.5 | I20: Loss of Rs.0.11/- | K20: =G20-E20 -> -0.11 | L20: =K20*M20 -> -107.5 | M20: 1000.00 | N20: Unsuccessful | O20: 2017-08-29
A21: 19 | B21: 2017-09-01 | C21: USDINR SEP FUT | D21: Buy | E21: 64.1 | F21: 63.8 | G21: 64.205 | H21: 64.7 | I21: Profit of Rs 0.11/- | K21: 0.11 | L21: 105 | M21: 1000 | N21: Successful | O21: 2017-09-01
A22: 20 | B22: 2017-09-04 | C22: USDINR SEP FUT | D22: Buy | E22: 64.095 | F22: 63.8 | G22: 64.195 | H22: 64.7 | I22: Profit of Rs 0.10/- | K22: 0.10 | L22: =K22*M22 -> 100 | M22: 1000 | N22: Successful | O22: 2017-09-04
A23: 21 | B23: 2017-09-05 | C23: USDINR SEP FUT | D23: Buy | E23: 64.25 | F23: 64 | G23: 64.355 | H23: 64.75 | I23: Profit of Rs 0.11/- | K23: =G23-E23 -> 0.11 | L23: =K23*M23 -> 105 | M23: 1000 | N23: Successful | O23: 2017-09-06
A24: 22 | B24: 2017-09-06 | C24: USDINR SEP FUT | D24: Sell | E24: 64.365 | F24: 64.5 | G24: 64.265 | H24: 64 | I24: Profit of Rs 0.10/- | K24: =E24-G24 -> 0.10 | L24: 100 | M24: 1000 | N24: Successful | O24: 2017-09-06
A25: 23 | B25: 2017-09-07 | C25: USDINR SEP FUT | D25: Buy | E25: 64.145 | F25: 63.9 | G25: 64.2565 | H25: 64.65 | I25: Profit of Rs 0.11/- | K25: =G25-E25 -> 0.11 | L25: =K25*M25 -> 111.5 | M25: 1000 | N25: Successful | O25: 2017-09-14
A26: 24 | B26: 2017-09-11 | C26: JPYINR SEP FUT | D26: Sell | E26: 59.0285 | F26: 59.25 | G26: 58.645 | H26: 58.5 | I26: Profit of Rs 0.38/- | K26: =E26-G26 -> 0.38 | L26: 383.5 | M26: 1000 | N26: Successful | O26: 2017-09-12
A27: 25 | B27: 2017-09-14 | C27: USDINR SEP FUT | D27: Buy | E27: 64.145 | F27: 63.95 | G27: 64.26 | H27: 64.5 | I27: Profit of Rs 0.12/- | K27: =G27-E27 -> 0.12 | L27: 115 | M27: 1000 | N27: Successful | O27: 2017-09-19
A28: 26 | B28: 2017-09-20 | C28: USDINR SEP FUT | D28: Buy | E28: 64.3515 | F28: 64.15 | G28: 64.57 | H28: 64.75 | I28: Profit of Rs 0.22/- | K28: =G28-E28 -> 0.22 | L28: =K28*M28 -> 218.5 | M28: 1000 | N28: Successful | O28: 2017-09-21
A29: 27 | B29: 2017-09-21 | C29: USDINR SEP FUT | D29: Sell | E29: 64.795 | F29: 65.05 | G29: 65.05 | H29: 64.4 | I29: Loss of Rs.0.17/- | K29: -0.17 | L29: -170 | M29: 1000.00 | N29: Unsuccessful | O29: 2017-09-22
A30: 28 | B30: 2017-09-25 | C30: USDINR SEP FUT | D30: Buy | E30: 64.77 | F30: 64.4 | G30: 64.92 | H30: 65.1 | I30: Profit of Rs 0.15/- | K30: =G30-E30 -> 0.15 | L30: =K30*M30 -> 150 | M30: 1000 | N30: Successful | O30: 2017-09-25
A31: 29 | B31: 2017-09-25 | C31: USDINR SEP FUT | D31: Sell | E31: 65.1077 | F31: 65.3 | G31: 65.3 | H31: 64.5 | I31: Loss of Rs.0.19/- | K31: -0.19 | L31: -190 | M31: 1000.00 | N31: Unsuccessful | O31: 2017-09-26
A32: 30 | B32: 2017-09-27 | C32: USDINR SEP FUT | D32: Sell | E32: 65.7225 | F32: 65.83 | G32: 65.7 | H32: 65.52 | I32: Profit of Rs 0.02/- | K32: =E32-G32 -> 0.02 | L32: =K32*M32 -> 22.5 | M32: 1000 | N32: Neutral | O32: 2017-09-27
A33: 31 | B33: 2017-09-27 | C33: USDINR OCT FUT | D33: Sell | E33: 66 | F33: 66.5 | G33: 65.895 | H33: 65 | I33: Profit of Rs 0.11/- | K33: =E33-G33 -> 0.11 | L33: 105 | M33: 1000 | N33: Successful | O33: 2017-09-27
A34: 32 | B34: 2017-09-28 | C34: USDINR OCT FUT | D34: Sell | E34: 66.075 | F34: 66.3 | G34: 65.96 | H34: 65.4 | I34: Profit of Rs 0.12/- | K34: =E34-G34 -> 0.12 | L34: =K34*M34 -> 115 | M34: 1000 | N34: Successful | O34: 2017-09-28
A35: 33 | B35: 2017-09-29 | C35: GBPINR OCT fut | D35: Buy | E35: 87.745 | F35: 87.5 | G35: 87.84 | H35: 88.25 | I35: Profit of Rs 0.09/- | K35: =G35-E35 -> 0.09 | L35: 95 | M35: 1000 | N35: Successful | O35: 2017-09-29
A36: 34 | B36: 2017-09-29 | C36: USDINR OCT FUT | D36: Buy | E36: 65.514 | F36: 65.25 | G36: 65.85 | H36: 66 | I36: Profit of Rs 0.34/- | K36: 0.34 | L36: =K36*M36 -> 336 | M36: 1000 | N36: Successful | O36: 2017-10-03
A37: 35 | B37: 2017-10-09 | C37: USDINR OCT FUT | D37: Buy | E37: 65.48 | F37: 65.23 | G37: 65.5775 | H37: 65.95 | I37: Profit of Rs 0.10/- | K37: =G37-E37 -> 0.10 | L37: =K37*M37 -> 97.5 | M37: 1000 | N37: Successful | O37: 2017-10-09
A38: 36 | B38: 2017-10-10 | C38: USDINR OCT FUT | D38: Buy | E38: 65.41 | F38: 65.15 | G38: 65.5075 | H38: 66 | I38: Profit of Rs 0.10/- | K38: 0.10 | L38: 97.5 | M38: 1000 | N38: Successful | O38: 2017-10-10
A39: 37 | B39: 2017-10-11 | C39: USDINR OCT FUT | D39: Buy | E39: 65.38 | F39: 65.13 | G39: 65.13 | H39: 65.88 | I39: Loss of Rs.0.25/- | K39: -0.25 | L39: -250 | M39: 1000.00 | N39: Unsuccessful | O39: 2017-10-13
A40: 38 | B40: 2017-10-16 | C40: USDINR OCT FUT | D40: Buy | E40: 64.7925 | F40: 64.54 | G40: 64.905 | H40: 65.3 | I40: Profit of Rs 0.11/- | K40: =G40-E40 -> 0.11 | L40: =K40*M40 -> 112.5 | M40: 1000 | N40: Successful | O40: 2017-10-17
A41: 39 | B41: 2017-10-23 | C41: USDINR OCT FUT | D41: Buy | E41: 65.115 | F41: 64.85 | G41: 65.21 | H41: 65.5 | I41: Profit of Rs 0.09/- | K41: =G41-E41 -> 0.09 | L41: =K41*M41 -> 95 | M41: 1000 | N41: Successful | O41: 2017-10-25
A42: 40 | B42: 2017-10-23 | C42: JPYINR OCT FUT | D42: Buy | E42: 57.285 | F42: 57.03 | G42: 57.38 | H42: 58.4 | I42: Profit of Rs 0.10/- | K42: =G42-E42 -> 0.10 | L42: =K42*M42 -> 95 | M42: 1000 | N42: Successful | O42: 2017-10-23
A43: 41 | B43: 2017-10-26 | C43: USDINR OCT FUT | D43: Buy | E43: 64.755 | F43: 64.5 | G43: 64.87 | H43: 65.25 | I43: Profit of Rs 0.12/- | K43: 0.12 | L43: 115 | M43: 1000 | N43: Successful | O43: 2017-10-25
A44: 42 | B44: 2017-10-30 | C44: USDINR NOV FUT | D44: Buy | E44: 65.035 | F44: 64.79 | G44: 64.79 | H44: 65.5 | I44: Loss of Rs.0.24/- | K44: -0.24 | L44: -245 | M44: 1000.00 | N44: Unsuccessful | O44: 2017-11-01
A45: 43 | B45: 2017-11-01 | C45: JPYINR NOV FUT | D45: Buy | E45: 56.9875 | F45: 56.73 | G45: 57.0959 | H45: 57.5 | I45: Profit of Rs 0.11/- | K45: =G45-E45 -> 0.11 | L45: =K45*M45 -> 108.4 | M45: 1000 | N45: Successful | O45: 2017-11-07
A46: 44 | B46: 2017-11-02 | C46: USDINR NOV FUT | D46: Buy | E46: 64.7838 | F46: 64.5 | G46: 64.89 | H46: 65.25 | I46: Profit of Rs 0.11/- | K46: =G46-E46 -> 0.11 | L46: =K46*M46 -> 106.2 | M46: 1000 | N46: Successful | O46: 2017-11-06
A47: 45 | B47: 2017-11-08 | C47: USDINR NOV FUT | D47: Buy | E47: 65.1363 | F47: 64.8375 | G47: 65.235 | H47: 65.73 | I47: Profit of Rs 0.10/- | K47: =G47-E47 -> 0.10 | L47: =K47*M47 -> 98.7 | M47: 1000 | N47: Successful | O47: 2017-11-10
A48: 46 | B48: 2017-11-08 | C48: GBPINR NOV FUT | D48: Buy | E48: 85.4983 | F48: 85.25 | G48: 85.6 | H48: 86 | I48: Profit of Rs 0.10/- | K48: =G48-E48 -> 0.10 | L48: =K48*M48 -> 101.7 | M48: 1000 | N48: Successful | O48: 2017-11-09
A49: 47 | B49: 2017-11-16 | C49: EURINR NOV FUT | D49: Buy | E49: 76.8975 | F49: 76.3975 | G49: 76.3975 | H49: 77.8975 | I49: Loss of Rs.0.50/- | K49: =G49-E49 -> -0.50 | L49: -500 | M49: 1000.00 | N49: Unsuccessful | O49: 2017-11-01
A50: 48 | B50: 2017-11-16 | C50: JPYINR NOV FUT | D50: Buy | E50: 57.6625 | F50: 57.2675 | G50: 57.8075 | H50: 58.6675 | I50: Profit of Rs 0.14/- | K50: =G50-E50 -> 0.14 | L50: =K50*M50 -> 145 | M50: 1000 | N50: Successful | O50: 2017-11-17
A51: 49 | B51: 2017-11-22 | C51: EURINR NOV FUT | D51: Buy | E51: 76.175 | F51: 75.95 | G51: 76.335 | H51: 76.6 | I51: Profit of Rs 0.16/- | K51: 0.16 | L51: =K51*M51 -> 160 | M51: 1000 | N51: Successful | O51: 2017-11-22
A52: 50 | B52: 2017-11-22 | C52: USDINR NOV FUT | D52: Buy | E52: 64.87 | F52: 64.5 | G52: 64.5 | H52: 65.5 | I52: Loss of Rs.0.37/- | K52: -0.37 | L52: -370 | M52: 1000.00 | N52: Unsuccessful | O52: 2017-11-27
A53: 51 | B53: 2017-11-28 | C53: GBPINR DEC FUT | D53: Buy | E53: 86.17 | F53: 85.85 | G53: 86.46 | H53: 87 | I53: Profit of Rs 0.29/- | K53: 0.29 | L53: =K53*M53 -> 290 | M53: 1000 | N53: Successful | O53: 2017-11-29
A54: 52 | B54: 2017-11-28 | C54: JPYINR DEC FUT | D54: Buy | E54: 58.16 | F54: 57.85 | G54: 57.85 | H54: 58.6 | I54: Loss of Rs.0.31/- | K54: -0.31 | L54: -310 | M54: 1000.00 | N54: Unsuccessful | O54: 2017-11-29
A55: 53 | B55: 2017-11-28 | C55: USDINR DEC FUT | D55: Buy | E55: 64.63 | F55: 64.13 | G55: 64.13 | H55: 65.63 | I55: Loss of Rs.0.50/- | K55: -0.50 | L55: =K55*M55 -> -500 | M55: 1000.00 | N55: Unsuccessful | O55: 2017-12-15
A56: 54 | B56: 2017-11-28 | C56: EURINR DEC FUT | D56: Buy | E56: 76.93 | F56: 76.43 | G56: 76.43 | H56: 77.93 | I56: Loss of Rs.0.50/- | K56: =G56-E56 -> -0.50 | L56: =K56*M56 -> -500 | M56: 1000.00 | N56: Unsuccessful | O56: 2017-11-29
A57: 55 | B57: 2017-12-12 | C57: EURINR DEC FUT | D57: Buy | E57: 76.105 | F57: 75.7 | G57: 76.27 | H57: 76.8 | I57: Profit of Rs 0.16/- | K57: =G57-E57 -> 0.16 | L57: 165 | M57: 1000 | N57: Successful | O57: 2017-12-14
A58: 56 | B58: 2017-12-12 | C58: JPYINR DEC FUT | D58: Buy | E58: 56.975 | F58: 56.7 | G58: 57.21 | H58: 57.6 | I58: Profit of Rs 0.23/- | K58: =G58-E58 -> 0.23 | L58: =K58*M58 -> 235 | M58: 1000 | N58: Successful | O58: 2017-12-14

Sheet Sheet2 (hidden)
A1: SYMBOL | B1: SERIES | C1: OPEN | D1: HIGH | E1: LOW | F1: CLOSE | G1: LAST | H1: PREVCLOSE | I1: TOTTRDQTY | J1: TOTTRDVAL | K1: TIMESTAMP | L1: TOTALTRADES | M1: ISIN
A2: 20MICRONS | B2: EQ | C2: 48.6 | D2: 49.85 | E2: 46.85 | F2: 47.6 | G2: 47.45 | H2: 49.15 | I2: 157120 | J2: 7573043.6 | K2: 2018-04-30 | L2: 971 | M2: INE144J01027
A3: 21STCENMGM | B3: EQ | C3: 44.7 | D3: 44.7 | E3: 44.7 | F3: 44.7 | G3: 44.7 | H3: 43.85 | I3: 14455 | J3: 646138.5 | K3: 2018-04-30 | L3: 22 | M3: INE253B01015
A4: 3IINFOTECH | B4: EQ | C4: 4.95 | D4: 5 | E4: 4.85 | F4: 4.95 | G4: 4.95 | H4: 4.9 | I4: 1174232 | J4: 5791781.75 | K4: 2018-04-30 | L4: 738 | M4: INE748C01020
A5: 3MINDIA | B5: EQ | C5: 20700 | D5: 20700 | E5: 20455 | F5: 20524.1 | G5: 20455 | H5: 20479.2 | I5: 675 | J5: 13850315.4 | K5: 2018-04-30 | L5: 350 | M5: INE470A01017
A6: 63MOONS | B6: EQ | C6: 91.6 | D6: 95 | E6: 90 | F6: 90.4 | G6: 90.4 | H6: 90.55 | I6: 159602 | J6: 14582357.7 | K6: 2018-04-30 | L6: 2775 | M6: INE111B01023
A7: 8KMILES | B7: EQ | C7: 802.95 | D7: 809.55 | E7: 778.3 | F7: 786.1 | G7: 784 | H7: 795.65 | I7: 127879 | J7: 101208545.7 | K7: 2018-04-30 | L7: 5532 | M7: INE650K01021
A8: A2ZINFRA | B8: EQ | C8: 27.25 | D8: 27.9 | E8: 26.5 | F8: 26.75 | G8: 26.6 | H8: 27.1 | I8: 270864 | J8: 7290270.7 | K8: 2018-04-30 | L8: 1058 | M8: INE619I01012
A9: AARTIDRUGS | B9: EQ | C9: 587.65 | D9: 590 | E9: 571.7 | F9: 573.7 | G9: 573.05 | H9: 584.4 | I9: 2211 | J9: 1285307.3 | K9: 2018-04-30 | L9: 273 | M9: INE767A01016
A10: AARTIIND | B10: EQ | C10: 1327 | D10: 1358.15 | E10: 1327 | F10: 1343.45 | G10: 1337 | H10: 1325.9 | I10: 36743 | J10: 49228506.95 | K10: 2018-04-30 | L10: 2794 | M10: INE769A01020
A11: AARVEEDEN | B11: EQ | C11: 45.3 | D11: 49 | E11: 42.8 | F11: 45.45 | G11: 45.1 | H11: 43.9 | I11: 142729 | J11: 6611675.3 | K11: 2018-04-30 | L11: 1192 | M11: INE273D01019
A12: ABAN | B12: EQ | C12: 174.05 | D12: 178.9 | E12: 173.5 | F12: 175 | G12: 174.6 | H12: 173.85 | I12: 1404810 | J12: 247466882.7 | K12: 2018-04-30 | L12: 12888 | M12: INE421A01028
A13: ABB | B13: EQ | C13: 1349.2 | D13: 1370 | E13: 1340.15 | F13: 1358.5 | G13: 1356.35 | H13: 1339.75 | I13: 52088 | J13: 70464304.25 | K13: 2018-04-30 | L13: 3572 | M13: INE117A01022
A14: ABBOTINDIA | B14: EQ | C14: 6140 | D14: 6259.4 | E14: 6140 | F14: 6179.65 | G14: 6199 | H14: 6157.75 | I14: 4816 | J14: 29862102.9 | K14: 2018-04-30 | L14: 993 | M14: INE358A01014
A15: ABCAPITAL | B15: EQ | C15: 157.45 | D15: 162 | E15: 157.1 | F15: 159.75 | G15: 160 | H15: 156.3 | I15: 2127844 | J15: 340210895.6 | K15: 2018-04-30 | L15: 19900 | M15: INE674K01013
A16: ABFRL | B16: EQ | C16: 145.9 | D16: 148 | E16: 145.85 | F16: 146.75 | G16: 147 | H16: 145.3 | I16: 134495 | J16: 19740326.05 | K16: 2018-04-30 | L16: 1887 | M16: INE647O01011
A17: ACC | B17: EQ | C17: 1564.85 | D17: 1599.9 | E17: 1563 | F17: 1587.15 | G17: 1583.5 | H17: 1559.6 | I17: 265415 | J17: 421301133.9 | K17: 2018-04-30 | L17: 12356 | M17: INE012A01025
A18: ACCELYA | B18: EQ | C18: 1346.55 | D18: 1349.25 | E18: 1310 | F18: 1336.5 | G18: 1326.35 | H18: 1348.2 | I18: 4969 | J18: 6599463.2 | K18: 2018-04-30 | L18: 589 | M18: INE793A01012
A19: ACE | B19: EQ | C19: 184.5 | D19: 189.9 | E19: 182.9 | F19: 186.9 | G19: 186.6 | H19: 183.2 | I19: 501618 | J19: 93856209.85 | K19: 2018-04-30 | L19: 4874 | M19: INE731H01025
A20: ADANIENT | B20: EQ | C20: 142.35 | D20: 144.4 | E20: 138.6 | F20: 140.1 | G20: 140.3 | H20: 141.8 | I20: 2549744 | J20: 360937708.4 | K20: 2018-04-30 | L20: 15706 | M20: INE423A01024
A21: ADANIPORTS | B21: EQ | C21: 405.8 | D21: 411.3 | E21: 402.4 | F21: 407.3 | G21: 406.25 | H21: 402.45 | I21: 2264144 | J21: 920487584.9 | K21: 2018-04-30 | L21: 44313 | M21: INE742F01042
A22: ADANIPOWER | B22: EQ | C22: 25.4 | D22: 26.2 | E22: 25.2 | F22: 25.7 | G22: 25.55 | H22: 25.3 | I22: 7265939 | J22: 185893049.8 | K22: 2018-04-30 | L22: 8803 | M22: INE814H01011
A23: ADANITRANS | B23: EQ | C23: 169.9 | D23: 172.5 | E23: 167.55 | F23: 168.6 | G23: 168.3 | H23: 169.55 | I23: 1394162 | J23: 235739083.4 | K23: 2018-04-30 | L23: 10753 | M23: INE931S01010
A24: ADFFOODS | B24: EQ | C24: 241.9 | D24: 247.9 | E24: 236.75 | F24: 242.55 | G24: 242.8 | H24: 239 | I24: 238215 | J24: 58112489.9 | K24: 2018-04-30 | L24: 3686 | M24: INE982B01019
A25: ADHUNIK | B25: EQ | C25: 4.1 | D25: 4.1 | E25: 3.5 | F25: 3.6 | G25: 3.55 | H25: 3.8 | I25: 103634 | J25: 377940.75 | K25: 2018-04-30 | L25: 153 | M25: INE400H01019
A26: ADLABS | B26: EQ | C26: 51.4 | D26: 53.55 | E26: 50.2 | F26: 51.8 | G26: 52 | H26: 50.35 | I26: 54727 | J26: 2840993.95 | K26: 2018-04-30 | L26: 816 | M26: INE172N01012
A27: ADORWELD | B27: EQ | C27: 395.8 | D27: 398.25 | E27: 389.8 | F27: 393.85 | G27: 396.9 | H27: 392.8 | I27: 10217 | J27: 4035381.1 | K27: 2018-04-30 | L27: 290 | M27: INE045A01017
A28: ADROITINFO | B28: EQ | C28: 31.35 | D28: 32 | E28: 31.35 | F28: 31.7 | G28: 31.9 | H28: 31.7 | I28: 1660 | J28: 52411.2 | K28: 2018-04-30 | L28: 14 | M28: INE737B01033
A29: ADSL | B29: EQ | C29: 21.9 | D29: 21.9 | E29: 20.25 | F29: 21.05 | G29: 21.5 | H29: 21.95 | I29: 26126 | J29: 553589.55 | K29: 2018-04-30 | L29: 145 | M29: INE102I01027
A30: ADVANIHOTR | B30: EQ | C30: 69.9 | D30: 73 | E30: 67.95 | F30: 68.8 | G30: 67.95 | H30: 66.3 | I30: 55400 | J30: 3927813.5 | K30: 2018-04-30 | L30: 595 | M30: INE199C01026
A31: ADVENZYMES | B31: EQ | C31: 258.4 | D31: 263.7 | E31: 255 | F31: 261.6 | G31: 261.35 | H31: 254.6 | I31: 392588 | J31: 102486863.8 | K31: 2018-04-30 | L31: 7355 | M31: INE837H01020
A32: AEGISCHEM | B32: EQ | C32: 290.8 | D32: 292.35 | E32: 285 | F32: 289.25 | G32: 288.6 | H32: 287.45 | I32: 42579 | J32: 12299851.9 | K32: 2018-04-30 | L32: 1774 | M32: INE208C01025
A33: AFL | B33: EQ | C33: 56.65 | D33: 59.4 | E33: 53.65 | F33: 59.4 | G33: 59.4 | H33: 54 | I33: 31927 | J33: 1843190.65 | K33: 2018-04-30 | L33: 131 | M33: INE020G01017
A34: AGCNET | B34: EQ | C34: 131 | D34: 136 | E34: 128 | F34: 130.5 | G34: 133 | H34: 132 | I34: 50026 | J34: 6601978.4 | K34: 2018-04-30 | L34: 307 | M34: INE676A01019
A35: AGLSL | B35: EQ | C35: 105.2 | D35: 109 | E35: 105 | F35: 106.05 | G35: 106.05 | H35: 105.85 | I35: 11263 | J35: 1203801.95 | K35: 2018-04-30 | L35: 84 | M35: INE517U01013
A36: AGRITECH | B36: EQ | C36: 139.75 | D36: 142 | E36: 136.9 | F36: 137.55 | G36: 136.9 | H36: 138.05 | I36: 16879 | J36: 2338932.7 | K36: 2018-04-30 | L36: 504 | M36: INE449G01018
A37: AHLUCONT | B37: EQ | C37: 428.85 | D37: 429 | E37: 420.75 | F37: 421.5 | G37: 421.5 | H37: 422.2 | I37: 5253 | J37: 2219633.8 | K37: 2018-04-30 | L37: 617 | M37: INE758C01029
A38: AHLWEST | B38: EQ | C38: 337 | D38: 355 | E38: 332.55 | F38: 354.65 | G38: 355 | H38: 349.7 | I38: 1108 | J38: 382336.2 | K38: 2018-04-30 | L38: 83 | M38: INE915K01010
A39: AIAENG | B39: EQ | C39: 1436.1 | D39: 1448 | E39: 1430.05 | F39: 1443.85 | G39: 1442.5 | H39: 1435.65 | I39: 20174 | J39: 29071566.9 | K39: 2018-04-30 | L39: 1172 | M39: INE212H01026
A40: AIFL | B40: EQ | C40: 500.55 | D40: 510 | E40: 495.2 | F40: 496.6 | G40: 496.9 | H40: 506.7 | I40: 55596 | J40: 27768429.1 | K40: 2018-04-30 | L40: 623 | M40: INE428O01016
A41: AJANTPHARM | B41: EQ | C41: 1361 | D41: 1367.9 | E41: 1340 | F41: 1355.25 | G41: 1355 | H41: 1353.45 | I41: 84039 | J41: 113965899.2 | K41: 2018-04-30 | L41: 3220 | M41: INE031B01049
A42: AJMERA | B42: EQ | C42: 263.9 | D42: 271.75 | E42: 262.6 | F42: 267.6 | G42: 267 | H42: 262.1 | I42: 50790 | J42: 13588244.9 | K42: 2018-04-30 | L42: 1591 | M42: INE298G01027
A43: AKSHARCHEM | B43: EQ | C43: 639.7 | D43: 639.7 | E43: 619.05 | F43: 628.9 | G43: 625 | H43: 634.6 | I43: 12813 | J43: 8061467.9 | K43: 2018-04-30 | L43: 329 | M43: INE542B01011
A44: AKSHOPTFBR | B44: EQ | C44: 34.95 | D44: 35.45 | E44: 34.5 | F44: 34.65 | G44: 34.85 | H44: 34.6 | I44: 338706 | J44: 11836022.35 | K44: 2018-04-30 | L44: 1084 | M44: INE523B01011
A45: AKZOINDIA | B45: EQ | C45: 1934.55 | D45: 1934.55 | E45: 1915 | F45: 1926.7 | G45: 1932.95 | H45: 1915.75 | I45: 2681 | J45: 5155058.7 | K45: 2018-04-30 | L45: 249 | M45: INE133A01011
A46: ALANKIT | B46: EQ | C46: 42.4 | D46: 42.95 | E46: 41.1 | F46: 41.65 | G46: 41.3 | H46: 42.4 | I46: 43060 | J46: 1798722.2 | K46: 2018-04-30 | L46: 453 | M46: INE914E01040
A47: ALBK | B47: EQ | C47: 49 | D47: 49.75 | E47: 48.3 | F47: 49.1 | G47: 49.15 | H47: 49.15 | I47: 2780384 | J47: 136336301.9 | K47: 2018-04-30 | L47: 7613 | M47: INE428A01015
A48: ALEMBICLTD | B48: EQ | C48: 58.35 | D48: 58.65 | E48: 56.9 | F48: 57.35 | G48: 57.2 | H48: 58.1 | I48: 128830 | J48: 7437589.8 | K48: 2018-04-30 | L48: 2337 | M48: INE426A01027
A49: ALICON | B49: EQ | C49: 638.2 | D49: 650 | E49: 630 | F49: 637.7 | G49: 636.1 | H49: 636.05 | I49: 4592 | J49: 2959850.6 | K49: 2018-04-30 | L49: 259 | M49: INE062D01024
A50: ALKALI | B50: EQ | C50: 80.8 | D50: 80.8 | E50: 78.15 | F50: 78.75 | G50: 79.45 | H50: 79.15 | I50: 6942 | J50: 551504.7 | K50: 2018-04-30 | L50: 144 | M50: INE773I01017
A51: ALKEM | B51: EQ | C51: 1975 | D51: 1994 | E51: 1952.15 | F51: 1976.35 | G51: 1971.4 | H51: 1969.05 | I51: 12293 | J51: 24292826.35 | K51: 2018-04-30 | L51: 2875 | M51: INE540L01014
A52: ALKYLAMINE | B52: EQ | C52: 720 | D52: 725 | E52: 707 | F52: 715.3 | G52: 718 | H52: 716.9 | I52: 2962 | J52: 2124975.5 | K52: 2018-04-30 | L52: 241 | M52: INE150B01021
A53: ALLCARGO | B53: EQ | C53: 143 | D53: 145 | E53: 138.25 | F53: 139.8 | G53: 139.85 | H53: 143.5 | I53: 799091 | J53: 112357145.9 | K53: 2018-04-30 | L53: 11435 | M53: INE418H01029
A54: ALLSEC | B54: EQ | C54: 386.2 | D54: 389.4 | E54: 377.05 | F54: 380.55 | G54: 381.85 | H54: 378.05 | I54: 7934 | J54: 3033133.55 | K54: 2018-04-30 | L54: 357 | M54: INE835G01018
A55: ALMONDZ | B55: EQ | C55: 30 | D55: 31.5 | E55: 28.65 | F55: 31 | G55: 31 | H55: 29.6 | I55: 38513 | J55: 1166320.5 | K55: 2018-04-30 | L55: 317 | M55: INE326B01027
A56: ALOKTEXT | B56: EQ | C56: 2.3 | D56: 2.3 | E56: 2.3 | F56: 2.3 | G56: 2.3 | H56: 2.4 | I56: 2648754 | J56: 6092134.2 | K56: 2018-04-30 | L56: 763 | M56: INE270A01011
A57: ALPA | B57: EQ | C57: 37.85 | D57: 38.95 | E57: 37 | F57: 37.15 | G57: 37 | H57: 37.8 | I57: 47270 | J57: 1771678.15 | K57: 2018-04-30 | L57: 255 | M57: INE385I01010
A58: ALPHAGEO | B58: EQ | C58: 824.9 | D58: 839 | E58: 810.05 | F58: 819.5 | G58: 820.5 | H58: 821.2 | I58: 16926 | J58: 13904491.15 | K58: 2018-04-30 | L58: 1313 | M58: INE137C01018
A59: AMARAJABAT | B59: EQ | C59: 859 | D59: 866.8 | E59: 855 | F59: 861.4 | G59: 861.1 | H59: 859.45 | I59: 207878 | J59: 178897451.4 | K59: 2018-04-30 | L59: 9809 | M59: INE885A01032
A60: AMBER | B60: EQ | C60: 1070.55 | D60: 1146.2 | E60: 1070 | F60: 1138.7 | G60: 1144.9 | H60: 1073.55 | I60: 67163 | J60: 75090981.4 | K60: 2018-04-30 | L60: 4527 | M60: INE371P01015
A61: AMBIKCO | B61: EQ | C61: 1365 | D61: 1398 | E61: 1352 | F61: 1382.3 | G61: 1386 | H61: 1351.95 | I61: 13531 | J61: 18769326.05 | K61: 2018-04-30 | L61: 640 | M61: INE540G01014
A62: AMBUJACEM | B62: EQ | C62: 245.5 | D62: 252.75 | E62: 245.5 | F62: 250.65 | G62: 250.5 | H62: 244.9 | I62: 2454697 | J62: 615128630.1 | K62: 2018-04-30 | L62: 26604 | M62: INE079A01024
A63: AMJLAND | B63: EQ | C63: 29.5 | D63: 29.5 | E63: 26.65 | F63: 26.95 | G63: 27.25 | H63: 28.75 | I63: 18156 | J63: 501743.4 | K63: 2018-04-30 | L63: 209 | M63: INE606A01024
A64: AMRUTANJAN | B64: EQ | C64: 285.6 | D64: 291.35 | E64: 279.95 | F64: 281.4 | G64: 281.85 | H64: 283.55 | I64: 7951 | J64: 2253304.15 | K64: 2018-04-30 | L64: 354 | M64: INE098F01031
A65: ANANTRAJ | B65: EQ | C65: 47.4 | D65: 47.9 | E65: 47 | F65: 47.2 | G65: 47.2 | H65: 47.15 | I65: 594979 | J65: 28129504.95 | K65: 2018-04-30 | L65: 2141 | M65: INE242C01024
A66: ANDHRABANK | B66: EQ | C66: 40.15 | D66: 40.15 | E66: 38.85 | F66: 39.75 | G66: 39.8 | H66: 40.2 | I66: 5773619 | J66: 228201781.1 | K66: 2018-04-30 | L66: 12350 | M66: INE434A01013
A67: ANDHRACEMT | B67: EQ | C67: 10.5 | D67: 11.1 | E67: 10.5 | F67: 10.9 | G67: 10.9 | H67: 10.85 | I67: 187904 | J67: 2013130.35 | K67: 2018-04-30 | L67: 342 | M67: INE666E01012
A68: ANDHRSUGAR | B68: EQ | C68: 403.95 | D68: 407.4 | E68: 396 | F68: 396.65 | G68: 396.25 | H68: 403.2 | I68: 45353 | J68: 18164347.6 | K68: 2018-04-30 | L68: 1844 | M68: INE715B01013
A69: ANIKINDS | B69: EQ | C69: 43.25 | D69: 43.25 | E69: 40.05 | F69: 41 | G69: 41.55 | H69: 42.8 | I69: 27205 | J69: 1125266.9 | K69: 2018-04-30 | L69: 363 | M69: INE087B01017
A70: ANSALAPI | B70: EQ | C70: 21.4 | D70: 22.7 | E70: 21.4 | F70: 22.1 | G70: 22.3 | H70: 21.85 | I70: 150426 | J70: 3341652.05 | K70: 2018-04-30 | L70: 256 | M70: INE436A01026
A71: ANSALHSG | B71: EQ | C71: 20.9 | D71: 21.2 | E71: 20.4 | F71: 20.55 | G71: 20.5 | H71: 20.75 | I71: 23962 | J71: 497364.7 | K71: 2018-04-30 | L71: 97 | M71: INE880B01015
A72: APARINDS | B72: EQ | C72: 785.75 | D72: 818.5 | E72: 773 | F72: 807.35 | G72: 809 | H72: 782.45 | I72: 5673 | J72: 4487111.8 | K72: 2018-04-30 | L72: 881 | M72: INE372A01015
A73: APCL | B73: EQ | C73: 193 | D73: 197.5 | E73: 188.05 | F73: 189.45 | G73: 188.05 | H73: 192.45 | I73: 5525 | J73: 1059414.35 | K73: 2018-04-30 | L73: 89 | M73: INE071F01012
A74: APCOTEXIND | B74: EQ | C74: 560.95 | D74: 604.9 | E74: 560.5 | F74: 594.3 | G74: 595 | H74: 561.25 | I74: 56632 | J74: 33539645.65 | K74: 2018-04-30 | L74: 2135 | M74: INE116A01024
A75: APEX | B75: EQ | C75: 653.15 | D75: 653.15 | E75: 633 | F75: 637.15 | G75: 638 | H75: 646.7 | I75: 62492 | J75: 40095857.7 | K75: 2018-04-30 | L75: 2825 | M75: INE346W01013
A76: APLAPOLLO | B76: EQ | C76: 2230 | D76: 2230 | E76: 2163.8 | F76: 2194.2 | G76: 2198 | H76: 2188.9 | I76: 6753 | J76: 14849688.9 | K76: 2018-04-30 | L76: 1131 | M76: INE702C01019
A77: APLLTD | B77: EQ | C77: 530 | D77: 536.35 | E77: 525.8 | F77: 534.05 | G77: 535.05 | H77: 529.7 | I77: 19797 | J77: 10524144.2 | K77: 2018-04-30 | L77: 959 | M77: INE901L01018
A78: APOLLO | B78: EQ | C78: 231.2 | D78: 235.2 | E78: 227.8 | F78: 228.35 | G78: 228.7 | H78: 232.3 | I78: 41270 | J78: 9514751.4 | K78: 2018-04-30 | L78: 1271 | M78: INE713T01010
A79: APOLLOHOSP | B79: EQ | C79: 1070.25 | D79: 1099 | E79: 1070.25 | F79: 1091 | G79: 1090 | H79: 1072.4 | I79: 119488 | J79: 130238265.3 | K79: 2018-04-30 | L79: 6522 | M79: INE437A01024
A80: APOLLOTYRE | B80: EQ | C80: 295.85 | D80: 296.85 | E80: 293.05 | F80: 294.35 | G80: 293.8 | H80: 292.85 | I80: 1769276 | J80: 521337970.4 | K80: 2018-04-30 | L80: 15031 | M80: INE438A01022
A81: APOLSINHOT | B81: EQ | C81: 1700 | D81: 1750 | E81: 1671 | F81: 1723.6 | G81: 1740 | H81: 1662.5 | I81: 2152 | J81: 3698044.85 | K81: 2018-04-30 | L81: 300 | M81: INE451F01016
A82: APTECHT | B82: EQ | C82: 284 | D82: 294.3 | E82: 283.1 | F82: 289.75 | G82: 291.55 | H82: 282.45 | I82: 691803 | J82: 200095945.6 | K82: 2018-04-30 | L82: 9051 | M82: INE266F01018
A83: ARCHIDPLY | B83: EQ | C83: 97.75 | D83: 100.3 | E83: 96 | F83: 97.1 | G83: 97.1 | H83: 95.7 | I83: 234754 | J83: 23090406.4 | K83: 2018-04-30 | L83: 1955 | M83: INE877I01016
A84: ARCHIES | B84: EQ | C84: 40.25 | D84: 41 | E84: 39.3 | F84: 40.05 | G84: 40.25 | H84: 40.15 | I84: 221638 | J84: 8873950.95 | K84: 2018-04-30 | L84: 1497 | M84: INE731A01020
A85: ARCOTECH | B85: EQ | C85: 29 | D85: 29 | E85: 27.9 | F85: 28 | G85: 27.9 | H85: 28.3 | I85: 207576 | J85: 5875448.05 | K85: 2018-04-30 | L85: 1249 | M85: INE574I01035
A86: ARIES | B86: EQ | C86: 204.95 | D86: 213.45 | E86: 203.5 | F86: 206.05 | G86: 207 | H86: 205 | I86: 24558 | J86: 5096403.55 | K86: 2018-04-30 | L86: 505 | M86: INE298I01015
A87: ARIHANTSUP | B87: EQ | C87: 141.5 | D87: 141.5 | E87: 115.1 | F87: 125.2 | G87: 125.05 | H87: 139.6 | I87: 376791 | J87: 46887490.1 | K87: 2018-04-30 | L87: 25858 | M87: INE643K01018
A88: ARMANFIN | B88: EQ | C88: 448.9 | D88: 448.9 | E88: 430.2 | F88: 434.85 | G88: 435 | H88: 435.3 | I88: 3181 | J88: 1387636.55 | K88: 2018-04-30 | L88: 45 | M88: INE109C01017
A89: AROGRANITE | B89: EQ | C89: 58.65 | D89: 59.5 | E89: 56 | F89: 57.4 | G89: 57.25 | H89: 57.7 | I89: 25465 | J89: 1464534.05 | K89: 2018-04-30 | L89: 420 | M89: INE210C01013
A90: ARROWGREEN | B90: EQ | C90: 344.1 | D90: 346.85 | E90: 339.5 | F90: 342.95 | G90: 342.35 | H90: 338.85 | I90: 7240 | J90: 2495603.9 | K90: 2018-04-30 | L90: 297 | M90: INE570D01018
A91: ARROWTEX | B91: EQ | C91: 35.4 | D91: 36.4 | E91: 34.5 | F91: 35.95 | G91: 36 | H91: 34.85 | I91: 3600 | J91: 126816.55 | K91: 2018-04-30 | L91: 62 | M91: INE933J01015
A92: ARSHIYA | B92: EQ | C92: 74.55 | D92: 77.5 | E92: 73.65 | F92: 74.05 | G92: 74.15 | H92: 75.5 | I92: 31414 | J92: 2360297.15 | K92: 2018-04-30 | L92: 410 | M92: INE968D01022
A93: ARVIND | B93: EQ | C93: 414.4 | D93: 425.5 | E93: 412.55 | F93: 423.6 | G93: 423.95 | H93: 414.65 | I93: 1319006 | J93: 553245064.7 | K93: 2018-04-30 | L93: 45100 | M93: INE034A01011
A94: ARVSMART | B94: EQ | C94: 201.8 | D94: 206 | E94: 199.1 | F94: 201.3 | G94: 202 | H94: 200.55 | I94: 21390 | J94: 4339923.1 | K94: 2018-04-30 | L94: 788 | M94: INE034S01021
A95: ASAHIINDIA | B95: EQ | C95: 362.95 | D95: 365.2 | E95: 361 | F95: 363.3 | G95: 365 | H95: 361.7 | I95: 8745 | J95: 3172903.35 | K95: 2018-04-30 | L95: 473 | M95: INE439A01020
A96: ASAHISONG | B96: EQ | C96: 346 | D96: 350 | E96: 342.05 | F96: 347.6 | G96: 349 | H96: 339.5 | I96: 6057 | J96: 2096493.1 | K96: 2018-04-30 | L96: 193 | M96: INE228I01012
A97: ASAL | B97: EQ | C97: 80.55 | D97: 84.5 | E97: 78.6 | F97: 83.45 | G97: 83.4 | H97: 81.05 | I97: 61834 | J97: 5108191.8 | K97: 2018-04-30 | L97: 644 | M97: INE900C01027
A98: ASHAPURMIN | B98: EQ | C98: 73.45 | D98: 74.45 | E98: 72.8 | F98: 73.05 | G98: 73 | H98: 72.65 | I98: 135192 | J98: 9915875.8 | K98: 2018-04-30 | L98: 621 | M98: INE348A01023
A99: ASHIANA | B99: EQ | C99: 159.05 | D99: 162.5 | E99: 159.05 | F99: 160.3 | G99: 160.1 | H99: 159.05 | I99: 43476 | J99: 6988729.6 | K99: 2018-04-30 | L99: 782 | M99: INE365D01021
A100: ASHIMASYN | B100: EQ | C100: 30.7 | D100: 30.75 | E100: 29.9 | F100: 30.25 | G100: 30.25 | H100: 30.05 | I100: 74145 | J100: 2247698.75 | K100: 2018-04-30 | L100: 363 | M100: INE440A01010
A101: ASHOKA | B101: EQ | C101: 278.75 | D101: 294.8 | E101: 277.1 | F101: 284.25 | G101: 283.5 | H101: 277.1 | I101: 455890 | J101: 130525114.5 | K101: 2018-04-30 | L101: 10760 | M101: INE442H01029
A102: ASHOKLEY | B102: EQ | C102: 163.55 | D102: 165.55 | E102: 162.2 | F102: 164.45 | G102: 164.35 | H102: 162 | I102: 9223162 | J102: 1513324470 | K102: 2018-04-30 | L102: 38042 | M102: INE208A01029
A103: ASIANPAINT | B103: EQ | C103: 1189.7 | D103: 1207 | E103: 1182.4 | F103: 1201.7 | G103: 1201.1 | H103: 1181.6 | I103: 505974 | J103: 605415418.9 | K103: 2018-04-30 | L103: 20920 | M103: INE021A01026
A104: ASIANTILES | B104: EQ | C104: 484 | D104: 489.5 | E104: 476 | F104: 479.5 | G104: 479.95 | H104: 483.75 | I104: 18068 | J104: 8703996.7 | K104: 2018-04-30 | L104: 850 | M104: INE022I01019
A105: ASPINWALL | B105: EQ | C105: 376.55 | D105: 390 | E105: 354.7 | F105: 385.5 | G105: 387 | H105: 380.7 | I105: 7603 | J105: 2924435 | K105: 2018-04-30 | L105: 118 | M105: INE991I01015
A106: ASSAMCO | B106: EQ | C106: 4.2 | D106: 4.25 | E106: 4.05 | F106: 4.15 | G106: 4.1 | H106: 4.25 | I106: 367605 | J106: 1527170.75 | K106: 2018-04-30 | L106: 279 | M106: INE442A01024
A107: ASTEC | B107: EQ | C107: 687 | D107: 715 | E107: 682 | F107: 699.95 | G107: 698.2 | H107: 681.15 | I107: 125832 | J107: 88002612.55 | K107: 2018-04-30 | L107: 4966 | M107: INE563J01010
A108: ASTERDM | B108: EQ | C108: 170 | D108: 172 | E108: 169.15 | F108: 170.55 | G108: 169.75 | H108: 170.95 | I108: 161207 | J108: 27429131.4 | K108: 2018-04-30 | L108: 2230 | M108: INE914M01019
A109: ASTRAL | B109: EQ | C109: 907.8 | D109: 954.75 | E109: 907.05 | F109: 950.2 | G109: 946.1 | H109: 903.5 | I109: 36467 | J109: 34348928.5 | K109: 2018-04-30 | L109: 3476 | M109: INE006I01046
A110: ASTRAMICRO | B110: EQ | C110: 102.8 | D110: 109.7 | E110: 102.2 | F110: 108.3 | G110: 107.65 | H110: 102.2 | I110: 1557980 | J110: 166678832.8 | K110: 2018-04-30 | L110: 11143 | M110: INE386C01029
A111: ASTRAZEN | B111: EQ | C111: 1000.75 | D111: 1058.4 | E111: 1000.7 | F111: 1044.35 | G111: 1058.4 | H111: 997.2 | I111: 8433 | J111: 8743089.5 | K111: 2018-04-30 | L111: 721 | M111: INE203A01020
A112: ASTRON | B112: EQ | C112: 138.2 | D112: 143.45 | E112: 136.55 | F112: 141.85 | G112: 141.35 | H112: 137.85 | I112: 490836 | J112: 69234910.3 | K112: 2018-04-30 | L112: 6173 | M112: INE646X01014
A113: ATFL | B113: EQ | C113: 723 | D113: 725 | E113: 692.3 | F113: 697.75 | G113: 695.05 | H113: 723.75 | I113: 44418 | J113: 31320862.1 | K113: 2018-04-30 | L113: 1536 | M113: INE209A01019
A114: ATLANTA | B114: EQ | C114: 79.2 | D114: 80.15 | E114: 77.55 | F114: 78.5 | G114: 78.65 | H114: 78.2 | I114: 55520 | J114: 4380852 | K114: 2018-04-30 | L114: 1053 | M114: INE285H01022
A115: ATUL | B115: EQ | C115: 2940.25 | D115: 2970 | E115: 2860 | F115: 2945.35 | G115: 2964.9 | H115: 2919.25 | I115: 24833 | J115: 72882375.55 | K115: 2018-04-30 | L115: 3060 | M115: INE100A01010
A116: ATULAUTO | B116: EQ | C116: 454 | D116: 454 | E116: 440.5 | F116: 444.25 | G116: 441.15 | H116: 446.2 | I116: 13307 | J116: 5948632.55 | K116: 2018-04-30 | L116: 516 | M116: INE951D01028
A117: AUBANK | B117: EQ | C117: 739.7 | D117: 740 | E117: 711 | F117: 721.85 | G117: 719.95 | H117: 731.65 | I117: 100974 | J117: 72777346.5 | K117: 2018-04-30 | L117: 4862 | M117: INE949L01017
A118: AURIONPRO | B118: EQ | C118: 235.5 | D118: 241.15 | E118: 233.2 | F118: 234.45 | G118: 233.6 | H118: 236.65 | I118: 23004 | J118: 5469975.6 | K118: 2018-04-30 | L118: 392 | M118: INE132H01018
A119: AUROPHARMA | B119: EQ | C119: 636.35 | D119: 644.35 | E119: 633.1 | F119: 642 | G119: 641.45 | H119: 630.65 | I119: 1111425 | J119: 710069982.2 | K119: 2018-04-30 | L119: 24603 | M119: INE406A01037
A120: AUSOMENT | B120: EQ | C120: 75.75 | D120: 78.45 | E120: 75.15 | F120: 76 | G120: 76.05 | H120: 77.55 | I120: 17757 | J120: 1356778.9 | K120: 2018-04-30 | L120: 433 | M120: INE218C01016
A121: AUTOAXLES | B121: EQ | C121: 1588.9 | D121: 1588.9 | E121: 1493.1 | F121: 1515.25 | G121: 1527 | H121: 1539.3 | I121: 18222 | J121: 27887184.65 | K121: 2018-04-30 | L121: 1763 | M121: INE449A01011
A122: AUTOIND | B122: EQ | C122: 81.55 | D122: 88.5 | E122: 80 | F122: 86.8 | G122: 87 | H122: 81.55 | I122: 144337 | J122: 12428322.85 | K122: 2018-04-30 | L122: 1158 | M122: INE718H01014
A123: AUTOLITIND | B123: EQ | C123: 74 | D123: 77.55 | E123: 72.2 | F123: 75.7 | G123: 75.3 | H123: 74.75 | I123: 24594 | J123: 1860321.35 | K123: 2018-04-30 | L123: 738 | M123: INE448A01013
A124: AVADHSUGAR | B124: EQ | C124: 374 | D124: 394.25 | E124: 366.4 | F124: 383.2 | G124: 385.7 | H124: 369.45 | I124: 86039 | J124: 32919431.1 | K124: 2018-04-30 | L124: 3496 | M124: INE349W01017
A125: AVANTIFEED | B125: EQ | C125: 2513.75 | D125: 2513.75 | E125: 2434.65 | F125: 2482.9 | G125: 2490 | H125: 2486.4 | I125: 136025 | J125: 337553226.1 | K125: 2018-04-30 | L125: 11333 | M125: INE871C01020
A126: AVTNPL | B126: EQ | C126: 38.9 | D126: 38.9 | E126: 37.25 | F126: 37.45 | G126: 37.6 | H126: 38.2 | I126: 70070 | J126: 2650037.65 | K126: 2018-04-30 | L126: 466 | M126: INE488D01021
A127: AXISBANK | B127: EQ | C127: 535.8 | D127: 536.1 | E127: 513.4 | F127: 517.3 | G127: 518.5 | H127: 539.2 | I127: 18357008 | J127: 9550889152 | K127: 2018-04-30 | L127: 166443 | M127: INE238A01034
A128: AXISCADES | B128: EQ | C128: 179.25 | D128: 187.2 | E128: 176.1 | F128: 182.7 | G128: 183 | H128: 179 | I128: 301153 | J128: 55288075.05 | K128: 2018-04-30 | L128: 4567 | M128: INE555B01013
A129: AXISGOLD | B129: EQ | C129: 2788 | D129: 2809 | E129: 2725.5 | F129: 2754 | G129: 2754 | H129: 2731.1 | I129: 81 | J129: 224321.6 | K129: 2018-04-30 | L129: 21 | M129: INF846K01347
A130: AXISNIFTY | B130: EQ | C130: 1073 | D130: 1090.37 | E130: 1073 | F130: 1090.37 | G130: 1090.37 | H130: 1072.82 | I130: 20 | J130: 21633.7 | K130: 2018-04-30 | L130: 2 | M130: INF846K01ZL0
A131: AYMSYNTEX | B131: EQ | C131: 66.2 | D131: 68.55 | E131: 65.55 | F131: 66.95 | G131: 67.6 | H131: 66.55 | I131: 13744 | J131: 915924.75 | K131: 2018-04-30 | L131: 157 | M131: INE193B01039
A132: BAFNAPHARM | B132: EQ | C132: 29.3 | D132: 29.5 | E132: 27.2 | F132: 27.75 | G132: 27.95 | H132: 28.05 | I132: 12019 | J132: 336911.05 | K132: 2018-04-30 | L132: 122 | M132: INE878I01014
A133: BAGFILMS | B133: EQ | C133: 5.05 | D133: 5.4 | E133: 5.05 | F133: 5.35 | G133: 5.35 | H133: 5.05 | I133: 224787 | J133: 1182318.6 | K133: 2018-04-30 | L133: 249 | M133: INE116D01028
A134: BAJAJ-AUTO | B134: EQ | C134: 2972.95 | D134: 2977.5 | E134: 2928.85 | F134: 2952.6 | G134: 2946.85 | H134: 2947.15 | I134: 122656 | J134: 362539433.1 | K134: 2018-04-30 | L134: 9567 | M134: INE917I01010
A135: BAJAJCORP | B135: EQ | C135: 493.8 | D135: 493.8 | E135: 472 | F135: 479.9 | G135: 480.95 | H135: 456.65 | I135: 88786 | J135: 42578357.8 | K135: 2018-04-30 | L135: 3334 | M135: INE933K01021
A136: BAJAJELEC | B136: EQ | C136: 655 | D136: 660.95 | E136: 647.05 | F136: 656.15 | G136: 653.95 | H136: 653.8 | I136: 245083 | J136: 160743326.4 | K136: 2018-04-30 | L136: 7055 | M136: INE193E01025
A137: BAJAJFINSV | B137: EQ | C137: 5459 | D137: 5534.9 | E137: 5401.1 | F137: 5482.6 | G137: 5482 | H137: 5435.25 | I137: 93148 | J137: 510834384.4 | K137: 2018-04-30 | L137: 12612 | M137: INE918I01018
A138: BAJAJHIND | B138: EQ | C138: 8.5 | D138: 8.85 | E138: 8.5 | F138: 8.75 | G138: 8.7 | H138: 8.5 | I138: 2754589 | J138: 23914533.75 | K138: 2018-04-30 | L138: 3164 | M138: INE306A01021
A139: BAJAJHLDNG | B139: EQ | C139: 2645 | D139: 2735 | E139: 2645 | F139: 2705.65 | G139: 2700 | H139: 2645.95 | I139: 10759 | J139: 29058720.35 | K139: 2018-04-30 | L139: 2055 | M139: INE118A01012
A140: BAJFINANCE | B140: EQ | C140: 1924.9 | D140: 1924.9 | E140: 1894.8 | F140: 1907.7 | G140: 1904.8 | H140: 1901.15 | I140: 647210 | J140: 1235557150 | K140: 2018-04-30 | L140: 21509 | M140: INE296A01024
A141: BALAJITELE | B141: EQ | C141: 132.85 | D141: 132.95 | E141: 130.85 | F141: 131.15 | G141: 131.05 | H141: 132.3 | I141: 76669 | J141: 10090913.8 | K141: 2018-04-30 | L141: 575 | M141: INE794B01026
A142: BALAMINES | B142: EQ | C142: 716.25 | D142: 728.45 | E142: 702.3 | F142: 713.6 | G142: 712 | H142: 716.2 | I142: 29299 | J142: 20965822.45 | K142: 2018-04-30 | L142: 1241 | M142: INE050E01027
A143: BALKRISHNA | B143: EQ | C143: 78.2 | D143: 84 | E143: 78.2 | F143: 81.2 | G143: 80.3 | H143: 79.3 | I143: 14808 | J143: 1201931.55 | K143: 2018-04-30 | L143: 103 | M143: INE875R01011
A144: BALKRISIND | B144: EQ | C144: 1284.95 | D144: 1295.6 | E144: 1266.55 | F144: 1275.2 | G144: 1276 | H144: 1283.2 | I144: 290110 | J144: 370685318.4 | K144: 2018-04-30 | L144: 10680 | M144: INE787D01026
A145: BALLARPUR | B145: EQ | C145: 13.35 | D145: 13.7 | E145: 13.2 | F145: 13.25 | G145: 13.25 | H145: 13.35 | I145: 821074 | J145: 11013632.6 | K145: 2018-04-30 | L145: 1524 | M145: INE294A01037
A146: BALMLAWRIE | B146: EQ | C146: 220 | D146: 222.95 | E146: 219.8 | F146: 220.25 | G146: 220.5 | H146: 218.95 | I146: 61355 | J146: 13563649.05 | K146: 2018-04-30 | L146: 1206 | M146: INE164A01016
A147: BALPHARMA | B147: EQ | C147: 85.35 | D147: 87.25 | E147: 85 | F147: 86 | G147: 85.75 | H147: 85.6 | I147: 8517 | J147: 731139.7 | K147: 2018-04-30 | L147: 283 | M147: INE083D01012
A148: BALRAMCHIN | B148: EQ | C148: 67.2 | D148: 71.05 | E148: 66.35 | F148: 70 | G148: 70.6 | H148: 66.7 | I148: 6773403 | J148: 467210572.2 | K148: 2018-04-30 | L148: 24320 | M148: INE119A01028
A149: BANARBEADS | B149: EQ | C149: 59 | D149: 59.4 | E149: 57.25 | F149: 59.2 | G149: 59.2 | H149: 59.5 | I149: 1467 | J149: 86111.5 | K149: 2018-04-30 | L149: 30 | M149: INE655B01011
A150: BANARISUG | B150: EQ | C150: 1729 | D150: 1729 | E150: 1670 | F150: 1679.95 | G150: 1677.2 | H150: 1689.8 | I150: 340 | J150: 575524.75 | K150: 2018-04-30 | L150: 42 | M150: INE459A01010
A151: BANCOINDIA | B151: EQ | C151: 232.1 | D151: 234.35 | E151: 231.4 | F151: 231.95 | G151: 232.35 | H151: 231.6 | I151: 22472 | J151: 5227151.65 | K151: 2018-04-30 | L151: 941 | M151: INE213C01025
A152: BANDHANBNK | B152: EQ | C152: 509.5 | D152: 515.9 | E152: 502.7 | F152: 513.45 | G152: 513.5 | H152: 506.45 | I152: 1461600 | J152: 746676194 | K152: 2018-04-30 | L152: 41011 | M152: INE545U01014
A153: BANG | B153: EQ | C153: 35.05 | D153: 36.4 | E153: 35.05 | F153: 36.1 | G153: 36 | H153: 36.7 | I153: 1196 | J153: 43223.2 | K153: 2018-04-30 | L153: 25 | M153: INE863I01016
A154: BANKBARODA | B154: EQ | C154: 144.95 | D154: 149.85 | E154: 143.05 | F154: 148.95 | G154: 148.7 | H154: 143.2 | I154: 13735085 | J154: 2020630906 | K154: 2018-04-30 | L154: 126589 | M154: INE028A01039
A155: BANKBEES | B155: EQ | C155: 2582.5 | D155: 2608.29 | E155: 2582.5 | F155: 2598.27 | G155: 2608.29 | H155: 2569.82 | I155: 22927 | J155: 59565525.81 | K155: 2018-04-30 | L155: 288 | M155: INF732E01078
A156: BANKINDIA | B156: EQ | C156: 102.95 | D156: 105.2 | E156: 102.55 | F156: 104.05 | G156: 104 | H156: 102 | I156: 6106253 | J156: 634658918.2 | K156: 2018-04-30 | L156: 20801 | M156: INE084A01016
A157: BANSWRAS | B157: EQ | C157: 110 | D157: 113.85 | E157: 109.95 | F157: 111.1 | G157: 109.95 | H157: 111.2 | I157: 3122 | J157: 348208.6 | K157: 2018-04-30 | L157: 60 | M157: INE629D01012
A158: BARTRONICS | B158: EQ | C158: 16.3 | D158: 16.5 | E158: 16.1 | F158: 16.5 | G158: 16.5 | H158: 15.75 | I158: 330279 | J158: 5442981.45 | K158: 2018-04-30 | L158: 392 | M158: INE855F01034
A159: BASF | B159: EQ | C159: 2118 | D159: 2145 | E159: 2076.55 | F159: 2137.05 | G159: 2131 | H159: 2057.3 | I159: 16279 | J159: 34632014.8 | K159: 2018-04-30 | L159: 1403 | M159: INE373A01013
A160: BASML | B160: EQ | C160: 246.85 | D160: 246.85 | E160: 232.8 | F160: 236.75 | G160: 235 | H160: 242.8 | I160: 1683 | J160: 401484.55 | K160: 2018-04-30 | L160: 55 | M160: INE186H01014
A161: BATAINDIA | B161: EQ | C161: 810 | D161: 816.7 | E161: 798.7 | F161: 802.6 | G161: 799.5 | H161: 793.15 | I161: 1405436 | J161: 1134976258 | K161: 2018-04-30 | L161: 28419 | M161: INE176A01028
A162: BAYERCROP | B162: EQ | C162: 4644.55 | D162: 4744 | E162: 4635 | F162: 4706.3 | G162: 4744 | H162: 4660.85 | I162: 4942 | J162: 23178193.45 | K162: 2018-04-30 | L162: 1255 | M162: INE462A01022
A163: BBL | B163: EQ | C163: 1660.1 | D163: 1764.95 | E163: 1660 | F163: 1737.3 | G163: 1738 | H163: 1660.1 | I163: 77897 | J163: 134757460.7 | K163: 2018-04-30 | L163: 5581 | M163: INE464A01028
A164: BBTC | B164: EQ | C164: 1583 | D164: 1640 | E164: 1553.15 | F164: 1626.95 | G164: 1635 | H164: 1566.25 | I164: 503599 | J164: 810757658.4 | K164: 2018-04-30 | L164: 18096 | M164: INE050A01025
A165: BDL | B165: EQ | C165: 400.55 | D165: 411.4 | E165: 394.1 | F165: 402.35 | G165: 402.1 | H165: 405 | I165: 69904 | J165: 28134619.15 | K165: 2018-04-30 | L165: 3465 | M165: INE171Z01018
A166: BEARDSELL | B166: EQ | C166: 52.5 | D166: 53.4 | E166: 52 | F166: 52 | G166: 52 | H166: 53.85 | I166: 222 | J166: 11699 | K166: 2018-04-30 | L166: 8 | M166: INE520H01022
A167: BEDMUTHA | B167: EQ | C167: 22.15 | D167: 23.7 | E167: 22.15 | F167: 23.05 | G167: 23 | H167: 22.75 | I167: 17909 | J167: 414286.2 | K167: 2018-04-30 | L167: 186 | M167: INE844K01012
A168: BEL | B168: EQ | C168: 131.55 | D168: 132.95 | E168: 130.8 | F168: 131.2 | G168: 131.3 | H168: 133.2 | I168: 4615820 | J168: 607543021 | K168: 2018-04-30 | L168: 26759 | M168: INE263A01024
A169: BEML | B169: EQ | C169: 1070.15 | D169: 1074.95 | E169: 1056.1 | F169: 1066.25 | G169: 1066 | H169: 1060.6 | I169: 178542 | J169: 189977081.1 | K169: 2018-04-30 | L169: 6808 | M169: INE258A01016
A170: BEPL | B170: EQ | C170: 195.1 | D170: 199.4 | E170: 185.1 | F170: 191.05 | G170: 190.95 | H170: 199 | I170: 978856 | J170: 188378929.6 | K170: 2018-04-30 | L170: 11687 | M170: INE922A01025
A171: BERGEPAINT | B171: EQ | C171: 281.95 | D171: 287.45 | E171: 280.7 | F171: 286.6 | G171: 287 | H171: 279.8 | I171: 1004570 | J171: 286106586.4 | K171: 2018-04-30 | L171: 17283 | M171: INE463A01038
A172: BFINVEST | B172: EQ | C172: 334 | D172: 370.7 | E172: 327 | F172: 364.5 | G172: 363.6 | H172: 335.3 | I172: 999871 | J172: 356369022.8 | K172: 2018-04-30 | L172: 18188 | M172: INE878K01010
A173: BFUTILITIE | B173: EQ | C173: 427.6 | D173: 442 | E173: 418.35 | F173: 437.25 | G173: 434 | H173: 424.7 | I173: 1151570 | J173: 498286464.9 | K173: 2018-04-30 | L173: 20094 | M173: INE243D01012
A174: BGRENERGY | B174: EQ | C174: 109.3 | D174: 109.4 | E174: 107.75 | F174: 108.25 | G174: 108 | H174: 108.55 | I174: 36280 | J174: 3940880 | K174: 2018-04-30 | L174: 483 | M174: INE661I01014
A175: BHAGERIA | B175: EQ | C175: 346.5 | D175: 346.5 | E175: 317.05 | F175: 321.3 | G175: 321 | H175: 341 | I175: 54593 | J175: 17979083.2 | K175: 2018-04-30 | L175: 1181 | M175: INE354C01027
A176: BHAGYANGR | B176: EQ | C176: 47.95 | D176: 48.55 | E176: 46.6 | F176: 47 | G176: 46.7 | H176: 47.1 | I176: 43587 | J176: 2065029.45 | K176: 2018-04-30 | L176: 530 | M176: INE458B01036
A177: BHAGYAPROP | B177: EQ | C177: 31 | D177: 31.4 | E177: 27.1 | F177: 27.1 | G177: 27.1 | H177: 30.1 | I177: 588378 | J177: 16253326.65 | K177: 2018-04-30 | L177: 912 | M177: INE363W01018
A178: BHANDARI | B178: EQ | C178: 2.6 | D178: 2.75 | E178: 2.6 | F178: 2.75 | G178: 2.75 | H178: 2.65 | I178: 251064 | J178: 686053.2 | K178: 2018-04-30 | L178: 118 | M178: INE474E01029
A179: BHARATFIN | B179: EQ | C179: 1151.2 | D179: 1171.1 | E179: 1149.45 | F179: 1164.3 | G179: 1162.1 | H179: 1148.2 | I179: 750301 | J179: 873495232 | K179: 2018-04-30 | L179: 11901 | M179: INE180K01011
A180: BHARATFORG | B180: EQ | C180: 772.3 | D180: 777.7 | E180: 760 | F180: 774.7 | G180: 775.65 | H180: 772.2 | I180: 471151 | J180: 362981867.9 | K180: 2018-04-30 | L180: 13826 | M180: INE465A01025
A181: BHARATGEAR | B181: EQ | C181: 182.1 | D181: 184.95 | E181: 181.5 | F181: 182.4 | G181: 182.1 | H181: 182.4 | I181: 8531 | J181: 1563388.7 | K181: 2018-04-30 | L181: 270 | M181: INE561C01019
A182: BHARATRAS | B182: EQ | C182: 5700 | D182: 5950 | E182: 5505 | F182: 5918.5 | G182: 5949.4 | H182: 5659.95 | I182: 3646 | J182: 21223584.35 | K182: 2018-04-30 | L182: 856 | M182: INE838B01013
A183: BHARATWIRE | B183: EQ | C183: 126.5 | D183: 135 | E183: 126.5 | F183: 133.85 | G183: 134 | H183: 124.75 | I183: 391852 | J183: 51781538.6 | K183: 2018-04-30 | L183: 2739 | M183: INE316L01019
A184: BHARTIARTL | B184: EQ | C184: 407 | D184: 413.25 | E184: 404.2 | F184: 409.55 | G184: 410 | H184: 408.75 | I184: 3274387 | J184: 1341174696 | K184: 2018-04-30 | L184: 66371 | M184: INE397D01024
A185: BHEL | B185: EQ | C185: 87.1 | D185: 88.6 | E185: 87.1 | F185: 87.8 | G185: 87.75 | H185: 86.85 | I185: 2236471 | J185: 196456482.8 | K185: 2018-04-30 | L185: 10603 | M185: INE257A01026
A186: BHUSANSTL | B186: EQ | C186: 22.6 | D186: 23.65 | E186: 21.6 | F186: 21.6 | G186: 21.6 | H186: 23.95 | I186: 6690346 | J186: 147161524.1 | K186: 2018-04-30 | L186: 14947 | M186: INE824B01021
A187: BIGBLOC | B187: EQ | C187: 169.9 | D187: 178.75 | E187: 166 | F187: 171.45 | G187: 172 | H187: 164.65 | I187: 42425 | J187: 7199940.2 | K187: 2018-04-30 | L187: 771 | M187: INE412U01017
A188: BIL | B188: EQ | C188: 408.8 | D188: 414.9 | E188: 407 | F188: 410.7 | G188: 408.65 | H188: 406.05 | I188: 4326 | J188: 1768433.1 | K188: 2018-04-30 | L188: 237 | M188: INE828A01016
A189: BILPOWER | B189: EQ | C189: 1.45 | D189: 1.45 | E189: 1.45 | F189: 1.45 | G189: 1.45 | H189: 1.5 | I189: 20 | J189: 29 | K189: 2018-04-30 | L189: 1 | M189: INE952D01018
A190: BINANIIND | B190: EQ | C190: 87.35 | D190: 90 | E190: 85.05 | F190: 85.7 | G190: 86.5 | H190: 87.35 | I190: 68648 | J190: 5982297.2 | K190: 2018-04-30 | L190: 1133 | M190: INE071A01013
A191: BINDALAGRO | B191: EQ | C191: 28.9 | D191: 28.9 | E191: 28 | F191: 28.3 | G191: 28.5 | H191: 28.45 | I191: 18238 | J191: 514470.85 | K191: 2018-04-30 | L191: 128 | M191: INE143A01010
A192: BIOCON | B192: EQ | C192: 660 | D192: 677.9 | E192: 656.3 | F192: 667.6 | G192: 665.95 | H192: 653.2 | I192: 2467770 | J192: 1649856416 | K192: 2018-04-30 | L192: 37036 | M192: INE376G01013
A193: BIRLACABLE | B193: EQ | C193: 87.4 | D193: 87.4 | E193: 83.55 | F193: 84.65 | G193: 85 | H193: 83.45 | I193: 42863 | J193: 3641613 | K193: 2018-04-30 | L193: 531 | M193: INE800A01015
A194: BIRLACORPN | B194: EQ | C194: 759.6 | D194: 766 | E194: 756 | F194: 764.15 | G194: 765 | H194: 755.6 | I194: 33245 | J194: 25327961.6 | K194: 2018-04-30 | L194: 1257 | M194: INE340A01012
A195: BKMINDST | B195: EQ | C195: 29.2 | D195: 29.2 | E195: 28.25 | F195: 28.95 | G195: 29 | H195: 29.2 | I195: 1951 | J195: 56021.35 | K195: 2018-04-30 | L195: 32 | M195: INE831Q01016
A196: BLBLIMITED | B196: EQ | C196: 8.5 | D196: 8.5 | E196: 7.85 | F196: 8.35 | G196: 8.35 | H196: 8.1 | I196: 3568 | J196: 29358.8 | K196: 2018-04-30 | L196: 24 | M196: INE791A01024
A197: BLISSGVS | B197: EQ | C197: 200.55 | D197: 202.5 | E197: 197 | F197: 198.35 | G197: 199 | H197: 200.6 | I197: 282772 | J197: 56508212.4 | K197: 2018-04-30 | L197: 2228 | M197: INE416D01022
A198: BLKASHYAP | B198: EQ | C198: 49.85 | D198: 51.2 | E198: 49.2 | F198: 50.4 | G198: 50.25 | H198: 49.05 | I198: 302326 | J198: 15192508.75 | K198: 2018-04-30 | L198: 1775 | M198: INE350H01032
A199: BLS | B199: EQ | C199: 149.65 | D199: 149.65 | E199: 142.3 | F199: 148.1 | G199: 147.95 | H199: 148.2 | I199: 79962 | J199: 11786907.45 | K199: 2018-04-30 | L199: 1669 | M199: INE153T01027
A200: BLUEBLENDS | B200: EQ | C200: 16.9 | D200: 17.75 | E200: 16.3 | F200: 16.8 | G200: 16.65 | H200: 16.95 | I200: 11982 | J200: 200482.75 | K200: 2018-04-30 | L200: 96 | M200: INE113O01014
... 1300 more rows

Sheet Sheet1
